{"text_format":"1","workbook":"xlsx","n_sheets":3,"sheets":["Расчет","Медикаменты","Накладная"],"not_rendered":{"charts":0,"images":0,"macros":1,"external_links":0,"defined_names":2,"comments":0,"pivot_tables":0},"unopened":[],"bounds":{"document_bytes":16777216,"sheet_cells":100000,"rows_first":2000,"rows_last":500,"rows_between":2000,"halvings":0,"cell_chars":16384,"cell_head_chars":4096},"cells_cut":0,"cells_raw":0,"read":"whole","date_system":"1900"}

{"sheet":"Расчет","index":0,"n_rows":605,"n_cols":18,"rows_kept":605,"cut":false,"hidden":false,"merged":[]}
[]
[null,null,1,2,3,4,5,6,7,8,9,10,11,12,13,14,15,16]
[null,null,"Дата","Наименование","Операция","Место","Поставщик","Договор","Заказ","Дата поставки","Номер акта","Остаток на складе","Приход","Расход","Остаток","Кому выдано","Единицы","Группа"]
[null,null,"2018-08-01","Маска медицинская трёхслойная, одноразовая","Операции со складом","Склад",null,null,null,null,1,400,null,50,350,null,"шт.","Расходники"]
[null,null,"2018-08-01","Бонадерм - крем для рук восстанавливающий (100 мл.)","Операции со складом","Склад",null,null,null,null,2,42,null,1,41,null,"шт.","Расходники"]
[null,null,"2018-08-01","Перчатки (нестер, латекс.)","Операции со складом","Склад",null,null,null,null,2,3050,null,500,2550,null,"пар.","Расходники"]
[null,null,"2018-08-01","Салфетка спиртовая (стер., 60х100 мм., 70%)","Операции со складом","Склад",null,null,null,null,2,2650,null,650,2000,null,"шт.","Расходники"]
[null,null,"2018-08-01","Азитромицин (таб., 125 мг, №6)","Остатки по договору",null,null,null,null,null,null,0,null,null,0,null,"таб.","Медикаменты"]
[null,null,"2018-08-01","Амброксол (р-р, 7,5 мг./1 мл., 100 мл.)","Остатки по договору",null,null,null,null,null,null,0,null,null,0,null,"фл.","Медикаменты"]
[null,null,"2018-08-01","Беродуал (р-р флакон/кап. по 20 мл.)","Остатки по договору",null,null,null,null,null,null,0,null,null,0,null,"фл.","Медикаменты"]
[null,null,"2018-08-01","Бинт (нест.)","Остатки по договору",null,null,null,null,null,null,0,null,null,0,null,"шт.","t"]
[null,null,"2018-08-01","Бинт (стер.)","Остатки по договору",null,null,null,null,null,null,0,null,null,0,null,"шт.","t"]
[null,null,"2018-08-01","Бонадерм-гель (100 мл.)","Остатки по договору",null,null,null,null,null,null,0,null,null,0,null,"шт.","Дезсредства"]
[null,null,"2018-08-01","Бонадерм-ИП салфетки (100 шт.)","Остатки по договору",null,null,null,null,null,null,0,null,null,0,null,"уп.","Дезсредства"]
[null,null,"2018-08-01","Бонадерм-Ультра (100 мл., с распыляющей насадкой)","Остатки по договору",null,null,null,null,null,null,0,null,null,0,null,"шт.","Дезсредства"]
[null,null,"2018-08-01","Бонадерм-Ультра (50 мл., с распыляющей насадкой)","Остатки по договору",null,null,null,null,null,null,0,null,null,0,null,"шт.","Дезсредства"]
[null,null,"2018-08-01","Бромгексин (таб., 4 мг., № 50)","Остатки по договору",null,null,null,null,null,null,0,null,null,0,null,"таб.","Медикаменты"]
[null,null,"2018-08-01","Бромгексин (таб., 8 мг., № 20)","Остатки по договору",null,null,null,null,null,null,0,null,null,0,null,"таб.","Медикаменты"]
[null,null,"2018-08-01","Бумага для спирографа Микролаб viasys (110*12*12)","Остатки по договору",null,null,null,null,null,null,0,null,null,0,null,"уп.","t"]
[null,null,"2018-08-01","Бумага УЗИ сканер (20 м.)","Остатки по договору",null,null,null,null,null,null,0,null,null,0,null,"рул.","t"]
[null,null,"2018-08-01","Бумага ЭКГ (110 мм. х 30 мм.)","Остатки по договору",null,null,null,null,null,null,0,null,null,0,null,"рул.","t"]
[null,null,"2018-08-01","Вата (нест. 100 гр.)","Остатки по договору",null,null,null,null,null,null,0,null,null,0,null,"гр.","Расходники"]
[null,null,"2018-08-01","Вата (нест. 100 гр.)","Остатки по договору",null,null,null,null,null,null,0,null,null,0,null,"гр.","t"]
[null,null,"2018-08-01","Вата (нест. 250 гр.)","Остатки по договору",null,null,null,null,null,null,0,null,null,0,null,"гр.","t"]
[null,null,"2018-08-01","Вата (стер. 100 гр.)","Остатки по договору",null,null,null,null,null,null,0,null,null,0,null,"гр.","Расходники"]
[null,null,"2018-08-01","Вата (стер. 100 гр.)","Остатки по договору",null,null,null,null,null,null,0,null,null,0,null,"гр.","t"]
[null,null,"2018-08-01","Ватные палочки, ушные (100 шт.)","Остатки по договору",null,null,null,null,null,null,0,null,null,0,null,"уп.","t"]
[null,null,"2018-08-01","Ватные шарики (стер., №20)","Остатки по договору",null,null,null,null,null,null,0,null,null,0,null,"уп.","Расходники"]
[null,null,"2018-08-01","Ватные шарики (стер., №20)","Остатки по договору",null,null,null,null,null,null,0,null,null,0,null,"уп.","t"]
[null,null,"2018-08-01","Вентолин Небулы (амп., для ингаляций 1 мг/мл., 2,5 мл. № 20)","Остатки по договору",null,null,null,null,null,null,0,null,null,0,null,"уп.","Медикаменты"]
[null,null,"2018-08-01","Гель для УЗИ (5 л.)","Остатки по договору",null,null,null,null,null,null,0,null,null,0,null,"л.","t"]
[null,null,"2018-08-01","Глицин (таб., 100 мг., №50)","Остатки по договору",null,null,null,null,null,null,0,null,null,0,null,"таб.","Медикаменты"]
[null,null,"2018-08-01","Губка гемостатическая коллагеновая (50х50 мм.)","Остатки по договору",null,null,null,null,null,null,0,null,null,0,null,"шт.","t"]
[null,null,"2018-08-01","Дексаметазон (сусп., 5 мл., №1)","Остатки по договору",null,null,null,null,null,null,0,null,null,0,null,"фл.","t"]
[null,null,"2018-08-01","Игла с визуальной камерой Vacuette (0,8х38 мм (21Gх1 ½), 100 шт.)","Остатки по договору",null,null,null,null,null,null,0,null,null,0,null,"уп.","Расходники"]
[null,null,"2018-08-01","Калия йодит (2%-200 мл.)","Остатки по договору",null,null,null,null,null,null,0,null,null,0,null,"фл.","Растворы"]
[null,null,"2018-08-01","Кальция хлорид (2%-200мл.)","Остатки по договору",null,null,null,null,null,null,0,null,null,0,null,"фл.","Растворы"]
[null,null,"2018-08-01","Кальция хлорид (2%-200мл.)","Остатки по договору",null,null,null,null,null,null,0,null,null,0,null,"фл.","t"]
[null,null,"2018-08-01","Карандаш по стеклу (50 шт. в уп.)","Остатки по договору",null,null,null,null,null,null,0,null,null,0,null,"уп.","t"]
[null,null,"2018-08-01","Комплект \"Кассетница с пеналами-таблетница\"","Остатки по договору",null,null,null,null,null,null,0,null,null,0,null,"шт.","t"]
[null,null,"2018-08-01","Контейнер для предварительной дезинфекции и стерилизации (1,3л.)","Остатки по договору",null,null,null,null,null,null,0,null,null,0,null,"шт.","t"]
[null,null,"2018-08-01","Контейнер для предварительной дезинфекции и стерилизации (4,5л.)","Остатки по договору",null,null,null,null,null,null,0,null,null,0,null,"шт.","t"]
[null,null,"2018-08-01","Контейнер для предварительной дезинфекции и стерилизации (7,5 л.)","Остатки по договору",null,null,null,null,null,null,0,null,null,0,null,"шт.","t"]
[null,null,"2018-08-01","Контейнер для сбора м/отх. Кл. Б (50 л.)","Остатки по договору",null,null,null,null,null,null,0,null,null,0,null,"шт.","t"]
[null,null,"2018-08-01","Контейнер для утилизации отходов МК-01 (однораз., желтый, 0,25 л.)","Остатки по договору",null,null,null,null,null,null,0,null,null,0,null,"шт.","t"]
[null,null,"2018-08-01","Контейнер для утилизации отходов МК-01 (однораз., желтый, 3 л.)","Остатки по договору",null,null,null,null,null,null,0,null,null,0,null,"шт.","t"]
[null,null,"2018-08-01","Лейкопластырь (бактер. 2,5х7,2 см.)","Остатки по договору",null,null,null,null,null,null,0,null,null,0,null,"шт.","t"]
[null,null,"2018-08-01","Лейкопластырь (катушка, 2х500 см.)","Остатки по договору",null,null,null,null,null,null,0,null,null,0,null,"шт.","t"]
[null,null,"2018-08-01","Ложка Фолькмана","Остатки по договору",null,null,null,null,null,null,0,null,null,0,null,"шт.","t"]
[null,null,"2018-08-01","Марля (нестр.)","Остатки по договору",null,null,null,null,null,null,0,null,null,0,null,"м.","Расходники"]
[null,null,"2018-08-01","Марля (нестр.)","Остатки по договору",null,null,null,null,null,null,0,null,null,0,null,"м.","t"]
[null,null,"2018-08-01","Маска медицинская трёхслойная, одноразовая","Остатки по договору",null,null,null,null,null,null,0,null,null,0,null,"шт.","Расходники"]
[null,null,"2018-08-01","Маска медицинская трёхслойная, одноразовая","Остатки по договору",null,null,null,null,null,null,0,null,null,0,null,"шт.","t"]
[null,null,"2018-08-01","Материал упаковочный для стерилизации: пакеты самоклеящиеся \"СтериТ\" (150ммХ250мм)","Остатки по договору",null,null,null,null,null,null,0,null,null,0,null,"шт.","t"]
[null,null,"2018-08-01","МДГР (5 л.)","Остатки по договору",null,null,null,null,null,null,0,null,null,0,null,"шт.","Дезсредства"]
[null,null,"2018-08-01","Мексидол (амп., 50 мг.- 2 мл., №10)","Остатки по договору",null,null,null,null,null,null,0,null,null,0,null,"амп.","Медикаменты"]
[null,null,"2018-08-01","Мундштук картонный одноразовый","Остатки по договору",null,null,null,null,null,null,0,null,null,0,null,"шт.","Расходники"]
[null,null,"2018-08-01","Набор оториноларинголога одноразовый, стерильный","Остатки по договору",null,null,null,null,null,null,0,null,null,0,null,"шт.","t"]
[null,null,"2018-08-01","Напальчник медицинский (5 шт.)","Остатки по договору",null,null,null,null,null,null,0,null,null,0,null,"уп.","t"]
[null,null,"2018-08-01","Натрия бромид (2%-200мл.)","Остатки по договору",null,null,null,null,null,null,0,null,null,0,null,"фл.","Растворы"]
[null,null,"2018-08-01","Натрия бромид (2%-200мл.)","Остатки по договору",null,null,null,null,null,null,0,null,null,0,null,"фл.","Растворы"]
[null,null,"2018-08-01","Натрия хлорид (амп., 0,9%, 10 мл., №10)","Остатки по договору",null,null,null,null,null,null,0,null,null,0,null,"уп.","Медикаменты"]
[null,null,"2018-08-01","Натрия хлорид (фл., 0,9%, 250 мл.)","Остатки по договору",null,null,null,null,null,null,0,null,null,0,null,"фл.","Медикаменты"]
[null,null,"2018-08-01","Натрия хлорид (фл., 0,9%, 250 мл.)","Остатки по договору",null,null,null,null,null,null,0,null,null,0,null,"фл.","t"]
[null,null,"2018-08-01","Ножницы остроконечные, изогнутые (16,0 см.)","Остатки по договору",null,null,null,null,null,null,0,null,null,0,null,"шт.","t"]
[null,null,"2018-08-01","Ножницы хирургические, тупоконечные (14,5 см.)","Остатки по договору",null,null,null,null,null,null,0,null,null,0,null,"шт.","t"]
[null,null,"2018-08-01","Пакет для утилизации медицинских отходов (кл.Б, 330х300мм.)","Остатки по договору",null,null,null,null,null,null,0,null,null,0,null,"шт.","t"]
[null,null,"2018-08-01","Пантогам (таб., 250 мг., №50)","Остатки по договору",null,null,null,null,null,null,0,null,null,0,null,"таб.","Медикаменты"]
[null,null,"2018-08-01","Перчатки (нестер, латекс.)","Остатки по договору",null,null,null,null,null,null,0,null,null,0,null,"пар.","Расходники"]
[null,null,"2018-08-01","Перчатки (нестер, латекс.)","Остатки по договору",null,null,null,null,null,null,0,null,null,0,null,"пар.","t"]
[null,null,"2018-08-01","Перчатки (нестер, нитрил.)","Остатки по договору",null,null,null,null,null,null,0,null,null,0,null,"пар.","t"]
[null,null,"2018-08-01","Пинцет (однораз., стер.)","Остатки по договору",null,null,null,null,null,null,0,null,null,0,null,"шт.","t"]
[null,null,"2018-08-01","Пиридоксина гидрохлорид (амп., 5%, 1 мл., №10)","Остатки по договору",null,null,null,null,null,null,0,null,null,0,null,"амп.","Медикаменты"]
[null,null,"2018-08-01","Пробирка вакуумная Cerebrum (4 мл., 50 шт.)","Остатки по договору",null,null,null,null,null,null,0,null,null,0,null,"шт.","Расходники"]
[null,null,"2018-08-01","Пробирка вакуумная Cerebrum (6 мл., 50 шт.)","Остатки по договору",null,null,null,null,null,null,0,null,null,0,null,"шт.","Расходники"]
[null,null,"2018-08-01","Проклин антисептик (1 л. с триггером, экспресс)","Остатки по договору",null,null,null,null,null,null,0,null,null,0,null,"л.","Дезсредства"]
[null,null,"2018-08-01","Простыня (нест, 70х80 см., 200 шт.)","Остатки по договору",null,null,null,null,null,null,0,null,null,0,null,"рул.","t"]
[null,null,"2018-08-01","Пульмикорт (суспензия для ингаляций 0,5 мг/мл, 2 мл., №20)","Остатки по договору",null,null,null,null,null,null,0,null,null,0,null,"уп.","Медикаменты"]
[null,null,"2018-08-01","Салфетка (спанлейс, 30х40 см., 100 шт.)","Остатки по договору",null,null,null,null,null,null,0,null,null,0,null,"уп.","t"]
[null,null,"2018-08-01","Салфетка (стер., 14х16 см., №10)","Остатки по договору",null,null,null,null,null,null,0,null,null,0,null,"уп.","Расходники"]
[null,null,"2018-08-01","Салфетка (стер., 14х16 см., №10)","Остатки по договору",null,null,null,null,null,null,0,null,null,0,null,"уп.","t"]
[null,null,"2018-08-01","Салфетка (стер., 5х5 см., №10)","Остатки по договору",null,null,null,null,null,null,0,null,null,0,null,"уп.","Расходники"]
[null,null,"2018-08-01","Салфетка (стер., 5х5 см., №10)","Остатки по договору",null,null,null,null,null,null,0,null,null,0,null,"уп.","t"]
[null,null,"2018-08-01","Салфетка марлевая стерильная (45х29 см.)","Остатки по договору",null,null,null,null,null,null,0,null,null,0,null,"уп.","t"]
[null,null,"2018-08-01","Салфетка спиртовая (стер., 60х100 мм., 70%)","Остатки по договору",null,null,null,null,null,null,0,null,null,0,null,"шт.","Расходники"]
[null,null,"2018-08-01","Салфетка спиртовая (стер., 60х100 мм., 70%)","Остатки по договору",null,null,null,null,null,null,0,null,null,0,null,"шт.","t"]
[null,null,"2018-08-01","Септолит-Форте (1 л.)","Остатки по договору",null,null,null,null,null,null,0,null,null,0,null,"шт.","Дезсредства"]
[null,null,"2018-08-01","Скальпель (однораз., хир., стер.)","Остатки по договору",null,null,null,null,null,null,0,null,null,0,null,"шт.","t"]
[null,null,"2018-08-01","Спирт этиловый (70%)","Остатки по договору",null,null,null,null,null,null,0,null,null,0,null,"мл.","Спирт"]
[null,null,"2018-08-01","Спирт этиловый (95%)","Остатки по договору",null,null,null,null,null,null,0,null,null,0,null,"мл.","Спирт"]
[null,null,"2018-08-01","Термоиндикатор ФС-3","Остатки по договору",null,null,null,null,null,null,0,null,null,0,null,"шт.","t"]
[null,null,"2018-08-01","Термометр для холодильника","Остатки по договору",null,null,null,null,null,null,0,null,null,0,null,"шт.","t"]
[null,null,"2018-08-01","Фенибут (таб., 250 мг., №20)","Остатки по договору",null,null,null,null,null,null,0,null,null,0,null,"таб.","Медикаменты"]
[null,null,"2018-08-01","Халат хирургический стерильный, одноразовый","Остатки по договору",null,null,null,null,null,null,0,null,null,0,null,"уп","t"]
[null,null,"2018-08-01","Хлоргексидин (0,05%, 100 мл.)","Остатки по договору",null,null,null,null,null,null,0,null,null,0,null,"фл.","Медикаменты"]
[null,null,"2018-08-01","Хлоргексидин (0,05%, 100 мл.)","Остатки по договору",null,null,null,null,null,null,0,null,null,0,null,"шт.","t"]
[null,null,"2018-08-01","Цетиризин (таб., 10 мг., № 10)","Остатки по договору",null,null,null,null,null,null,0,null,null,0,null,"таб.","Медикаменты"]
[null,null,"2018-08-01","Цианокобаламин (амп., 0,5 мг./1 мл., 1 мл., №10)","Остатки по договору",null,null,null,null,null,null,0,null,null,0,null,"амп.","Медикаменты"]
[null,null,"2018-08-01","Циннаризин (таб. 25 мг., №50)","Остатки по договору",null,null,null,null,null,null,0,null,null,0,null,"таб.","Медикаменты"]
[null,null,"2018-08-01","Шовный материал хирургический (Этикон Эл-Эл-Си)","Остатки по договору",null,null,null,null,null,null,0,null,null,0,null,"уп","t"]
[null,null,"2018-08-01","Шпатель (стер.)","Остатки по договору",null,null,null,null,null,null,0,null,null,0,null,"шт.","Расходники"]
[null,null,"2018-08-01","Шпатель (стер.)","Остатки по договору",null,null,null,null,null,null,0,null,null,0,null,"шт.","t"]
[null,null,"2018-08-01","Шприц (1 мл.)","Остатки по договору",null,null,null,null,null,null,0,null,null,0,null,"шт.","Расходники"]
[null,null,"2018-08-01","Шприц (10 мл.)","Остатки по договору",null,null,null,null,null,null,0,null,null,0,null,"шт.","Расходники"]
[null,null,"2018-08-01","Шприц (5 мл.)","Остатки по договору",null,null,null,null,null,null,0,null,null,0,null,"шт.","Расходники"]
[null,null,"2018-08-01","Шприц многоразовый стеклянный (20 мл.)","Остатки по договору",null,null,null,null,null,null,0,null,null,0,null,"шт.","t"]
[null,null,"2018-08-01","Электрод взрослый грудной для ЭКГ (D-20мм.)","Остатки по договору",null,null,null,null,null,null,0,null,null,0,null,"набор","t"]
[null,null,"2018-08-02","Перчатки (нестер, латекс.)","Операции со складом","Склад",null,null,null,null,3,2550,null,50,2500,null,"пар.","Расходники"]
[null,null,"2018-08-02","Шприц (1 мл.)","Операции со складом","Склад",null,null,null,null,4,4100,null,200,3900,null,"шт.","Расходники"]
[null,null,"2018-08-02","Шприц (1 мл.)","Операции со складом","Склад",null,null,null,null,5,3900,null,100,3800,null,"шт.","Расходники"]
[null,null,"2018-08-02","Шприц (2 мл.)","Операции со складом","Склад",null,null,null,null,6,1900,null,200,1700,null,"шт.","Расходники"]
[null,null,"2018-08-06","Бинт (нест.)","Операции со складом","Склад",null,null,null,null,7,69,null,4,65,null,"шт.","Расходники"]
[null,null,"2018-08-06","Вата (нест. 250 гр.)","Операции со складом","Склад",null,null,null,null,7,5500,null,250,5250,null,"гр.","Расходники"]
[null,null,"2018-08-06","Перчатки (нестер, латекс.)","Операции со складом","Склад",null,null,null,null,7,2500,null,100,2400,null,"пар.","Расходники"]
[null,null,"2018-08-06","Салфетка (спанлейс, 30х40 см., 100 шт.)","Операции со складом","Склад",null,null,null,null,7,95,null,2,93,null,"уп.","Расходники"]
[null,null,"2018-08-06","Салфетка спиртовая (стер., 60х100 мм., 70%)","Операции со складом","Склад",null,null,null,null,7,2000,null,100,1900,null,"шт.","Расходники"]
[null,null,"2018-08-06","Спирт этиловый (70%)","Операции со складом","Склад",null,null,null,null,7,900,null,200,700,null,"мл.","Спирт"]
[null,null,"2018-08-06","БЦЖ-М","Операции со складом","Склад",null,null,null,null,8,5,null,5,0,null,"комп.","Вакцина"]
[null,null,"2018-08-06","Вода очищенна (200 мл.)","Операции со складом","Склад",null,null,null,null,8,54,null,2,52,null,"фл.","Растворы"]
[null,null,"2018-08-06","Перчатки (нестер, латекс.)","Операции со складом","Склад",null,null,null,null,8,2400,null,500,1900,null,"пар.","Расходники"]
[null,null,"2018-08-06","Салфетка (спанлейс, 30х40 см., 100 шт.)","Операции со складом","Склад",null,null,null,null,8,93,null,1,92,null,"уп.","Расходники"]
[null,null,"2018-08-06","Спирт этиловый (70%)","Операции со складом","Склад",null,null,null,null,8,700,null,300,400,null,"мл.","Спирт"]
[null,null,"2018-08-06","Шприц (1 мл.)","Операции со складом","Склад",null,null,null,null,8,3800,null,200,3600,null,"шт.","Расходники"]
[null,null,"2018-08-06","Шприц (2 мл.)","Операции со складом","Склад",null,null,null,null,8,1700,null,200,1500,null,"шт.","Расходники"]
[null,null,"2018-08-06","Салфетка спиртовая (стер., 60х100 мм., 70%)","Операции со складом","Склад",null,null,null,null,9,1900,null,100,1800,null,"шт.","Расходники"]
[null,null,"2018-08-06","Шпатель (стер.)","Операции со складом","Склад",null,null,null,null,9,16200,null,1000,15200,null,"шт.","Расходники"]
[null,null,"2018-08-06","Бинт (нест.)","Операции со складом","Склад",null,null,null,null,10,65,null,5,60,null,"шт.","Расходники"]
[null,null,"2018-08-06","Вода очищенна (200 мл.)","Операции со складом","Склад",null,null,null,null,10,52,null,2,50,null,"фл.","Растворы"]
[null,null,"2018-08-06","Спирт этиловый (70%)","Операции со складом","Склад",null,null,null,null,10,400,null,200,200,null,"мл.","Спирт"]
[null,null,"2018-08-06","Шприц (2 мл.)","Операции со складом","Склад",null,null,null,null,10,1500,null,100,1400,null,"шт.","Расходники"]
[null,null,"2018-08-06","Шприц (5 мл.)","Операции со складом","Склад",null,null,null,null,10,2200,null,100,2100,null,"шт.","Расходники"]
[null,null,"2018-08-06","Грудной сбор №4","Операции со складом","Склад",null,null,null,null,11,2,null,2,0,null,"уп.","Медикаменты"]
[null,null,"2018-08-06","Калия йодит (2%-200 мл.)","Операции со складом","Склад",null,null,null,null,11,1,null,1,0,null,"уп.","Растворы"]
[null,null,"2018-08-06","Кальция хлорид (2%-200мл.)","Операции со складом","Склад",null,null,null,null,11,1,null,1,0,null,"уп.","Растворы"]
[null,null,"2018-08-06","Натрия бромид (2%-200мл.)","Операции со складом","Склад",null,null,null,null,11,1,null,1,0,null,"уп.","Растворы"]
[null,null,"2018-08-06","Калия перманганат (0,05)","Операции со складом","Склад",null,null,null,null,12,10,null,10,0,null,"фл.","Растворы"]
[null,null,"2018-08-06","Вода очищенна (200 мл.)","Операции со складом","Склад",null,null,null,null,13,50,null,2,48,null,"фл.","Растворы"]
[null,null,"2018-08-06","Люгоря (р-р, 100 мл.)","Операции со складом","Склад",null,null,null,null,13,2,null,1,1,null,"уп.","Растворы"]
[null,null,"2018-08-06","Натрия цитрат (р-р, 100 мл.)","Операции со складом","Склад",null,null,null,null,13,6,null,6,0,null,"уп.","Растворы"]
[null,null,"2018-08-06","Перчатки (нестер, латекс.)","Операции со складом","Склад",null,null,null,null,13,1900,null,1000,900,null,"пар.","Расходники"]
[null,null,"2018-08-06","Полотенце бумажное","Операции со складом","Склад",null,null,null,null,13,110,null,2,108,null,"уп.","Расходники"]
[null,null,"2018-08-06","Вода очищенна (200 мл.)","Операции со складом","Склад",null,null,null,null,14,48,null,2,46,null,"фл.","Растворы"]
[null,null,"2018-08-06","Кислота уксусная (р-р, 100 мл.)","Операции со складом","Склад",null,null,null,null,14,1,null,1,0,null,"уп.","Растворы"]
[null,null,"2018-08-06","Люгоря (р-р, 100 мл.)","Операции со складом","Склад",null,null,null,null,14,1,null,1,0,null,"уп.","Растворы"]
[null,null,"2018-08-06","Вода очищенна (200 мл.)","Операции со складом","Склад",null,null,null,null,15,46,null,2,44,null,"фл.","Растворы"]
[null,null,"2018-08-06","Перекись водорода (3%, 350 мл.)","Операции со складом","Склад",null,null,null,null,15,4,null,4,0,null,"уп.","Растворы"]
[null,null,"2018-08-06","Бинт (стер.)","Операции со складом","Склад",null,null,null,null,16,81,null,2,79,null,"шт.","Расходники"]
[null,null,"2018-08-06","Бонадерм-гель (100 мл.)","Операции со складом","Склад",null,null,null,null,16,183,null,1,182,null,"шт.","Дезсредства"]
[null,null,"2018-08-06","Вода очищенна (200 мл.)","Операции со складом","Склад",null,null,null,null,16,44,null,2,42,null,"фл.","Растворы"]
[null,null,"2018-08-06","МДГР (1 л.)","Операции со складом","Склад",null,null,null,null,16,5,null,1,4,null,"л.","Дезсредства"]
[null,null,"2018-08-06","Перчатки (нестер, латекс.)","Операции со складом","Склад",null,null,null,null,16,900,null,200,700,null,"пар.","Расходники"]
[null,null,"2018-08-06","Проклин антисептик (1 л. УМР)","Операции со складом","Склад",null,null,null,null,16,112,null,1,111,null,"л.","Дезсредства"]
[null,null,"2018-08-06","Фурацилин (р-р)","Операции со складом","Склад",null,null,null,null,16,1,null,1,0,null,"фл.","Растворы"]
[null,null,"2018-08-06","Шпатель (стер.)","Операции со складом","Склад",null,null,null,null,16,15200,null,400,14800,null,"шт.","Расходники"]
[null,null,"2018-08-06","Вода очищенна (200 мл.)","Операции со складом","Склад",null,null,null,null,17,42,null,2,40,null,"фл.","Растворы"]
[null,null,"2018-08-06","Перекись водорода (6%, 400 мл.)","Операции со складом","Склад",null,null,null,null,17,8,null,8,0,null,"фл.","Растворы"]
[null,null,"2018-08-06","Колларгол (р-р, 10 мл.)","Операции со складом","Склад",null,null,null,null,18,1,null,1,0,null,"уп.","Растворы"]
[null,null,"2018-08-06","Бонадерм-Ультра (50 мл., с распыляющей насадкой)","Операции со складом","Склад",null,null,null,null,19,81,null,1,80,null,"шт.","Дезсредства"]
[null,null,"2018-08-06","Перчатки (нестер, латекс.)","Операции со складом","Склад",null,null,null,null,19,700,null,100,600,null,"пар.","Расходники"]
[null,null,"2018-08-06","Салфетка (спанлейс, 30х40 см., 100 шт.)","Операции со складом","Склад",null,null,null,null,19,92,null,1,91,null,"уп.","Расходники"]
[null,null,"2018-08-06","Салфетка спиртовая (стер., 60х100 мм., 70%)","Операции со складом","Склад",null,null,null,null,19,1800,null,50,1750,null,"шт.","Расходники"]
[null,null,"2018-08-06","Шпатель (стер.)","Операции со складом","Склад",null,null,null,null,19,14800,null,1000,13800,null,"шт.","Расходники"]
[null,null,"2018-08-06","Вода очищенна (200 мл.)","Операции со складом","Склад",null,null,null,null,20,40,null,40,0,null,"фл.","Растворы"]
[null,null,"2018-08-06","МДГР (1 л.)","Операции со складом","Склад",null,null,null,null,21,4,null,1,3,null,"л.","Дезсредства"]
[null,null,"2018-08-06","Перчатки (нестер, латекс.)","Операции со складом","Склад",null,null,null,null,21,600,null,100,500,null,"пар.","Расходники"]
[null,null,"2018-08-08","Бонадерм - крем для рук восстанавливающий (100 мл.)","Операции со складом","Склад",null,null,null,null,22,41,null,1,40,null,"шт.","Расходники"]
[null,null,"2018-08-08","Бонадерм-гель (100 мл.)","Операции со складом","Склад",null,null,null,null,22,182,null,1,181,null,"шт.","Дезсредства"]
[null,null,"2018-08-08","Бонадерм-гель (100 мл.)","Операции со складом","Склад",null,null,null,null,23,181,null,1,180,null,"шт.","Дезсредства"]
[null,null,"2018-08-08","Салфетка спиртовая (стер., 60х100 мм., 70%)","Операции со складом","Склад",null,null,null,null,23,1750,null,200,1550,null,"шт.","Расходники"]
[null,null,"2018-08-08","АДС-М","Операции со складом","Склад",null,null,null,null,24,280,null,60,220,null,"доз.","Вакцина"]
[null,null,"2018-08-08","АКДС","Операции со складом","Склад",null,null,null,null,24,300,null,100,200,null,"доз.","Вакцина"]
[null,null,"2018-08-08","Бубо-кок","Операции со складом","Склад",null,null,null,null,24,130,null,30,100,null,"доз.","Вакцина"]
[null,null,"2018-08-08","Гепатит В","Операции со складом","Склад",null,null,null,null,24,210,null,60,150,null,"доз.","Вакцина"]
[null,null,"2018-08-08","Краснушная","Операции со складом","Склад",null,null,null,null,24,200,null,80,120,null,"доз.","Вакцина"]
[null,null,"2018-08-08","Паротитно-корьевая","Операции со складом","Склад",null,null,null,null,24,110,null,80,30,null,"доз.","Вакцина"]
[null,null,"2018-08-08","Превенар-13","Операции со складом","Склад",null,null,null,null,24,300,null,100,200,null,"доз.","Вакцина"]
[null,null,"2018-08-10","Игла с визуальной камерой Vacuette (0,8х38 мм (21Gх1 ½), 100 шт.)","Получено от поставщика","Склад",null,null,null,null,null,0,30,null,30,null,"шт.","Расходники"]
[null,null,"2018-08-10","Марля (нестр.)","Получено от поставщика","Склад",null,null,null,null,null,0,38,null,38,null,"м.","Расходники"]
[null,null,"2018-08-10","Маска медицинская трёхслойная, одноразовая","Получено от поставщика","Склад",null,null,null,null,null,350,500,null,850,null,"шт.","Расходники"]
[null,null,"2018-08-10","Перчатки (нестер, латекс.)","Получено от поставщика","Склад",null,null,null,null,null,500,5650,null,6150,null,"пар.","Расходники"]
[null,null,"2018-08-10","Салфетка (стер., 5х5 см., №10)","Получено от поставщика","Склад",null,null,null,null,null,0,110,null,110,null,"уп.","Расходники"]
[null,null,"2018-08-10","Салфетка спиртовая (стер., 60х100 мм., 70%)","Получено от поставщика","Склад",null,null,null,null,null,1550,8000,null,9550,null,"шт.","Расходники"]
[null,null,"2018-08-10","Шприц (1 мл.)","Получено от поставщика","Склад",null,null,null,null,null,3600,2400,null,6000,null,"шт.","Расходники"]
[null,null,"2018-08-10","Бонадерм-гель (100 мл.)","Операции со складом","Склад",null,null,null,null,25,180,null,1,179,null,"шт.","Дезсредства"]
[null,null,"2018-08-10","Перчатки (нестер, латекс.)","Операции со складом","Склад",null,null,null,null,25,6150,null,500,5650,null,"пар.","Расходники"]
[null,null,"2018-08-10","Шприц (1 мл.)","Операции со складом","Склад",null,null,null,null,25,6000,null,400,5600,null,"шт.","Расходники"]
[null,null,"2018-08-10","Бинт (нест.)","Операции со складом","Склад",null,null,null,null,26,60,null,5,55,null,"шт.","Расходники"]
[null,null,"2018-08-10","Перчатки (нестер, латекс.)","Операции со складом","Склад",null,null,null,null,26,5650,null,500,5150,null,"пар.","Расходники"]
[null,null,"2018-08-10","Шприц (10 мл.)","Операции со складом","Склад",null,null,null,null,26,900,null,100,800,null,"шт.","Расходники"]
[null,null,"2018-08-10","Кавинтон (амп., 10 мг., 2 мл., №10)","Операции со складом","ДС",null,null,null,null,27,20,null,10,10,null,"амп.","Медикаменты (ДС)"]
[null,null,"2018-08-10","Бонадерм - крем для рук восстанавливающий (100 мл.)","Операции со складом","Склад",null,null,null,null,28,40,null,1,39,null,"шт.","Расходники"]
[null,null,"2018-08-10","Бонадерм-гель (100 мл.)","Операции со складом","Склад",null,null,null,null,28,179,null,1,178,null,"шт.","Дезсредства"]
[null,null,"2018-08-10","Бонадерм-ИП салфетки (100 шт.)","Операции со складом","Склад",null,null,null,null,28,80,null,10,70,null,"уп.","Дезсредства"]
[null,null,"2018-08-10","Перчатки (нестер, латекс.)","Операции со складом","Склад",null,null,null,null,28,5150,null,50,5100,null,"пар.","Расходники"]
[null,null,"2018-08-10","Салфетка (спанлейс, 30х40 см., 100 шт.)","Операции со складом","Склад",null,null,null,null,28,91,null,1,90,null,"шт.","Расходники"]
[null,null,"2018-08-10","Спирт этиловый (70%)","Операции со складом","Склад",null,null,null,null,28,200,null,200,0,null,"мл.","Спирт"]
[null,null,"2018-08-13","Бинт (нест.)","Операции со складом","Склад",null,null,null,null,29,55,null,5,50,null,"шт.","Расходники"]
[null,null,"2018-08-13","Перчатки (нестер, латекс.)","Операции со складом","Склад",null,null,null,null,29,5100,null,150,4950,null,"пар.","Расходники"]
[null,null,"2018-08-13","Салфетка (стер., 14х16 см., №10)","Операции со складом","Склад",null,null,null,null,29,100,null,5,95,null,"уп.","Расходники"]
[null,null,"2018-08-13","Шпатель (стер.)","Операции со складом","Склад",null,null,null,null,29,13800,null,500,13300,null,"шт.","Расходники"]
[null,null,"2018-08-13","Маска медицинская трёхслойная, одноразовая","Операции со складом","Склад",null,null,null,null,30,850,null,50,800,null,"шт.","Расходники"]
[null,null,"2018-08-13","Проклин антисептик (1 л. с триггером, экспресс)","Операции со складом","Склад",null,null,null,null,30,17,null,2,15,null,"л.","Дезсредства"]
[null,null,"2018-08-13","Салфетка спиртовая (стер., 60х100 мм., 70%)","Операции со складом","Склад",null,null,null,null,30,9550,null,2000,7550,null,"шт.","Расходники"]
[null,null,"2018-08-13","Экобак (5 л.)","Операции со складом","Склад",null,null,null,null,30,20,null,5,15,null,"л.","Дезсредства"]
[null,null,"2018-08-14","Калия йодит (2%-200 мл.)","Получено от поставщика","Склад",null,null,null,"2018-08-16",null,0,1,null,1,null,"фл.","Растворы"]
[null,null,"2018-08-14","Кальция хлорид (2%-200мл.)","Получено от поставщика","Склад",null,null,null,"2018-08-16",null,0,1,null,1,null,"фл.","Растворы"]
[null,null,"2018-08-14","Натрия бромид (2%-200мл.)","Получено от поставщика","Склад",null,null,null,"2018-08-16",null,0,1,null,1,null,"фл.","Растворы"]
[null,null,"2018-08-14","Спирт этиловый (70%)","Получено от поставщика","Склад",null,null,null,"2018-08-16",null,0,2800,null,2800,null,"мл.","Спирт"]
[null,null,"2018-08-15","Би Вак полио","Операции со складом","Склад",null,null,null,null,31,400,null,100,300,null,"доз.","Вакцина"]
[null,null,"2018-08-15","Калия йодит (2%-200 мл.)","Операции со складом","Склад",null,null,null,null,32,1,null,1,0,null,"фл.","Растворы"]
[null,null,"2018-08-15","Кальция хлорид (2%-200мл.)","Операции со складом","Склад",null,null,null,null,32,1,null,1,0,null,"фл.","Растворы"]
[null,null,"2018-08-15","Натрия бромид (2%-200мл.)","Операции со складом","Склад",null,null,null,null,32,1,null,1,0,null,"фл.","Растворы"]
[null,null,"2018-08-15","Спирт этиловый (70%)","Операции со складом","Склад",null,null,null,null,32,2800,null,100,2700,null,"мл.","Спирт"]
[null,null,"2018-08-16","Азитромицин (таб., 125 мг, №6)","Получено от поставщика","ДС",null,null,null,"2018-08-16",null,0,60,null,60,null,"таб.","Медикаменты (ДС)"]
[null,null,"2018-08-16","Амброксол (р-р, 7,5 мг./1 мл., 100 мл.)","Получено от поставщика","Склад",null,null,null,"2018-08-16",null,0,5,null,5,null,"фл.","Медикаменты"]
[null,null,"2018-08-16","Беродуал (р-р флакон/кап. по 20 мл.)","Получено от поставщика","Склад",null,null,null,"2018-08-16",null,0,5,null,5,null,"фл.","Медикаменты"]
[null,null,"2018-08-16","Биолек-туберкулин","Получено от поставщика","Склад",null,null,null,"2018-08-16",null,0,20,null,20,null,"мл.","Вакцина"]
[null,null,"2018-08-16","Бромгексин (таб., 4 мг., № 50)","Получено от поставщика","ДС",null,null,null,"2018-08-16",null,0,1000,null,1000,null,"таб.","Медикаменты (ДС)"]
[null,null,"2018-08-16","Бромгексин (таб., 8 мг., № 20)","Получено от поставщика","ДС",null,null,null,"2018-08-16",null,0,400,null,400,null,"таб.","Медикаменты (ДС)"]
[null,null,"2018-08-16","Вентолин Небулы (амп., для ингаляций 1 мг/мл., 2,5 мл. № 20)","Получено от поставщика","Склад",null,null,null,"2018-08-16",null,0,3,null,3,null,"уп.","Медикаменты"]
[null,null,"2018-08-16","Глицин (таб., 100 мг., №50)","Получено от поставщика","ДС",null,null,null,"2018-08-16",null,500,1000,null,1500,null,"таб.","Медикаменты (ДС)"]
[null,null,"2018-08-16","Диаскинтест","Получено от поставщика","Склад",null,null,null,"2018-08-16",null,0,10500,null,10500,null,"доз.","Вакцина"]
[null,null,"2018-08-16","Натрия хлорид (амп., 0,9%, 10 мл., №10)","Получено от поставщика","Склад",null,null,null,"2018-08-16",null,0,20,null,20,null,"уп.","Медикаменты"]
[null,null,"2018-08-16","Пантогам (таб., 250 мг., №50)","Получено от поставщика","ДС",null,null,null,"2018-08-16",null,150,1000,null,1150,null,"таб.","Медикаменты (ДС)"]
[null,null,"2018-08-16","Пиридоксина гидрохлорид (амп., 5%, 1 мл., №10)","Получено от поставщика","ДС",null,null,null,"2018-08-16",null,0,1000,null,1000,null,"амп.","Медикаменты (ДС)"]
[null,null,"2018-08-16","Спирт этиловый (95%)","Получено от поставщика","Склад",null,null,null,"2018-08-16",null,2400,1500,null,3900,null,"мл.","Спирт"]
[null,null,"2018-08-16","Фенибут (таб., 250 мг., №20)","Получено от поставщика","ДС",null,null,null,"2018-08-16",null,0,100,null,100,null,"таб.","Медикаменты (ДС)"]
[null,null,"2018-08-16","Хлоргексидин (0,05%, 100 мл.)","Получено от поставщика","Склад",null,null,null,"2018-08-16",null,0,45,null,45,null,"фл.","Медикаменты"]
[null,null,"2018-08-16","Цетиризин (таб., 10 мг., № 10)","Получено от поставщика","ДС",null,null,null,"2018-08-16",null,0,1050,null,1050,null,"таб.","Медикаменты (ДС)"]
[null,null,"2018-08-16","Цианокобаламин (амп., 0,5 мг./1 мл., 1 мл., №10)","Получено от поставщика","ДС",null,null,null,"2018-08-16",null,0,1000,null,1000,null,"амп.","Медикаменты (ДС)"]
[null,null,"2018-08-16","Бонадерм-гель (100 мл.)","Операции со складом","Склад",null,null,null,null,33,178,null,1,177,null,"шт.","Дезсредства"]
[null,null,"2018-08-16","Бонадерм-гель (100 мл.)","Операции со складом","Склад",null,null,null,null,34,177,null,1,176,null,"шт.","Дезсредства"]
[null,null,"2018-08-20","Натрия хлорид (фл., 0,9%, 250 мл.)","Получено от поставщика","Склад",null,null,null,null,null,0,50,null,50,null,"фл.","Медикаменты"]
[null,null,"2018-08-20","Бинт (стер.)","Операции со складом","Склад",null,null,null,null,35,79,null,5,74,null,"шт.","Расходники"]
[null,null,"2018-08-20","Бонадерм-гель (100 мл.)","Операции со складом","Склад",null,null,null,null,35,176,null,1,175,null,"шт.","Дезсредства"]
[null,null,"2018-08-20","Перчатки (нестер, латекс.)","Операции со складом","Склад",null,null,null,null,35,4950,null,150,4800,null,"пар.","Расходники"]
[null,null,"2018-08-20","Шпатель (стер.)","Операции со складом","Склад",null,null,null,null,35,13300,null,300,13000,null,"шт.","Расходники"]
[null,null,"2018-08-20","Бромгексин (таб., 4 мг., № 50)","Операции со складом","ДС",null,null,null,null,36,1000,null,50,950,null,"таб.","Медикаменты (ДС)"]
[null,null,"2018-08-20","Глицин (таб., 100 мг., №50)","Операции со складом","ДС",null,null,null,null,36,1500,null,300,1200,null,"таб.","Медикаменты (ДС)"]
[null,null,"2018-08-20","Кальция хлорид (10%, 5,0 №10)","Операции со складом","ДС",null,null,null,null,36,30,null,30,0,null,"амп.","Медикаменты (ДС)"]
[null,null,"2018-08-20","Пирацетам (амп., 20%, 5 мл., №10)","Операции со складом","ДС",null,null,null,null,36,560,null,100,460,null,"амп.","Медикаменты (ДС)"]
[null,null,"2018-08-20","Пиридоксина гидрохлорид (амп., 5%, 1 мл., №10)","Операции со складом","ДС",null,null,null,null,36,1000,null,100,900,null,"амп.","Медикаменты (ДС)"]
[null,null,"2018-08-20","Цетиризин (таб., 10 мг., № 10)","Операции со складом","ДС",null,null,null,null,36,1050,null,10,1040,null,"таб.","Медикаменты (ДС)"]
[null,null,"2018-08-20","Цетиризин (таб., 10 мг., № 10)","Операции со складом","ДС",null,null,null,null,36,1040,null,10,1030,null,"таб.","Медикаменты (ДС)"]
[null,null,"2018-08-20","Цианокобаламин (амп., 0,5 мг./1 мл., 1 мл., №10)","Операции со складом","ДС",null,null,null,null,36,1000,null,100,900,null,"амп.","Медикаменты (ДС)"]
[null,null,"2018-08-20","Бонадерм-Ультра (100 мл., с распыляющей насадкой)","Операции со складом","Склад",null,null,null,null,37,85,null,2,83,null,"шт.","Дезсредства"]
[null,null,"2018-08-20","Перчатки (нестер, латекс.)","Операции со складом","Склад",null,null,null,null,37,4800,null,100,4700,null,"пар.","Расходники"]
[null,null,"2018-08-20","Проклин антисептик (1 л. УМР)","Операции со складом","Склад",null,null,null,null,37,111,null,1,110,null,"л.","Дезсредства"]
[null,null,"2018-08-20","Салфетка (спанлейс, 30х40 см., 100 шт.)","Операции со складом","Склад",null,null,null,null,37,90,null,3,87,null,"уп.","Расходники"]
[null,null,"2018-08-20","Салфетка спиртовая (стер., 60х100 мм., 70%)","Операции со складом","Склад",null,null,null,null,37,7550,null,100,7450,null,"шт.","Расходники"]
[null,null,"2018-08-20","Шпатель (стер.)","Операции со складом","Склад",null,null,null,null,37,13000,null,200,12800,null,"шт.","Расходники"]
[null,null,"2018-08-20","Экобак (1 л.)","Операции со складом","Склад",null,null,null,null,37,1,null,1,0,null,"л.","Дезсредства"]
[null,null,"2018-08-20","Маска медицинская трёхслойная, одноразовая","Операции со складом","Склад",null,null,null,null,38,800,null,100,700,null,"шт.","Расходники"]
[null,null,"2018-08-20","Перчатки (нестер, латекс.)","Операции со складом","Склад",null,null,null,null,38,4700,null,100,4600,null,"пар.","Расходники"]
[null,null,"2018-08-20","Полотенце бумажное","Операции со складом","Склад",null,null,null,null,38,108,null,1,107,null,"уп.","Расходники"]
[null,null,"2018-08-20","Проклин антисептик (1 л. УМР)","Операции со складом","Склад",null,null,null,null,38,110,null,1,109,null,"л.","Дезсредства"]
[null,null,"2018-08-20","Салфетка (спанлейс, 30х40 см., 100 шт.)","Операции со складом","Склад",null,null,null,null,38,87,null,2,85,null,"уп.","Расходники"]
[null,null,"2018-08-20","Биолек-туберкулин","Операции со складом","Склад",null,null,null,null,39,20,null,20,0,null,"мл.","Вакцина"]
[null,null,"2018-08-20","БЦЖ","Операции со складом","Склад",null,null,null,null,39,35,null,5,30,null,"комп.","Вакцина"]
[null,null,"2018-08-20","Диаскинтест","Операции со складом","Склад",null,null,null,null,39,10500,null,300,10200,null,"доз.","Вакцина"]
[null,null,"2018-08-20","Маска медицинская трёхслойная, одноразовая","Операции со складом","Склад",null,null,null,null,39,700,null,50,650,null,"шт.","Расходники"]
[null,null,"2018-08-20","Перчатки (нестер, латекс.)","Операции со складом","Склад",null,null,null,null,39,4600,null,500,4100,null,"пар.","Расходники"]
[null,null,"2018-08-20","Салфетка спиртовая (стер., 60х100 мм., 70%)","Операции со складом","Склад",null,null,null,null,39,7450,null,2000,5450,null,"шт.","Расходники"]
[null,null,"2018-08-20","Шприц (1 мл.)","Операции со складом","Склад",null,null,null,null,39,5600,null,400,5200,null,"шт.","Расходники"]
[null,null,"2018-08-20","Бинт (нест.)","Операции со складом","Склад",null,null,null,null,40,50,null,5,45,null,"шт.","Расходники"]
[null,null,"2018-08-20","Игла с визуальной камерой Vacuette (0,8х38 мм (21Gх1 ½), 100 шт.)","Операции со складом","Склад",null,null,null,null,40,30,null,30,0,null,"уп.","Лабораторные расходники"]
[null,null,"2018-08-20","Маска медицинская трёхслойная, одноразовая","Операции со складом","Склад",null,null,null,null,40,650,null,50,600,null,"шт.","Расходники"]
[null,null,"2018-08-20","МДГР (1 л.)","Операции со складом","Склад",null,null,null,null,40,3,null,1,2,null,"л.","Дезсредства"]
[null,null,"2018-08-20","Полотенце бумажное","Операции со складом","Склад",null,null,null,null,40,107,null,1,106,null,"уп.","Расходники"]
[null,null,"2018-08-20","Салфетка (спанлейс, 30х40 см., 100 шт.)","Операции со складом","Склад",null,null,null,null,40,85,null,1,84,null,"уп.","Расходники"]
[null,null,"2018-08-20","Маска медицинская трёхслойная, одноразовая","Операции со складом","Склад",null,null,null,null,41,600,null,50,550,null,"шт.","Расходники"]
[null,null,"2018-08-20","Перчатки (нестер, латекс.)","Операции со складом","Склад",null,null,null,null,41,4100,null,100,4000,null,"пар.","Расходники"]
[null,null,"2018-08-20","Салфетка спиртовая (стер., 60х100 мм., 70%)","Операции со складом","Склад",null,null,null,null,41,5450,null,100,5350,null,"шт.","Расходники"]
[null,null,"2018-08-20","Шприц (1 мл.)","Операции со складом","Склад",null,null,null,null,41,5200,null,200,5000,null,"шт.","Расходники"]
[null,null,"2018-08-20","Бонадерм-гель (100 мл.)","Операции со складом","Склад",null,null,null,null,42,175,null,2,173,null,"шт.","Дезсредства"]
[null,null,"2018-08-20","Шпатель (стер.)","Операции со складом","Склад",null,null,null,null,42,12800,null,200,12600,null,"шт.","Расходники"]
[null,null,"2018-08-20","Перчатки (нестер, латекс.)","Операции со складом","Склад",null,null,null,null,43,4000,null,1000,3000,null,"пар.","Расходники"]
[null,null,"2018-08-20","Полотенце бумажное","Операции со складом","Склад",null,null,null,null,43,106,null,2,104,null,"уп.","Расходники"]
[null,null,"2018-08-22","Бонадерм-гель (100 мл.)","Получено от поставщика","Склад",null,null,null,"2018-08-21",null,173,66,null,239,null,"шт.","Дезсредства"]
[null,null,"2018-08-22","Бонадерм-ИП салфетки (100 шт.)","Получено от поставщика","Склад",null,null,null,null,null,70,50,null,120,null,"уп.","Дезсредства"]
[null,null,"2018-08-22","Бонадерм-Ультра (100 мл., с распыляющей насадкой)","Получено от поставщика","Склад",null,null,null,"2018-08-21",null,83,190,null,273,null,"шт.","Дезсредства"]
[null,null,"2018-08-22","Бонадерм-Ультра (50 мл., с распыляющей насадкой)","Получено от поставщика","Склад",null,null,null,"2018-08-21",null,80,104,null,184,null,"шт.","Дезсредства"]
[null,null,"2018-08-22","Массажные валики с подушкой","Получено от поставщика","Склад",null,null,null,null,null,0,3,null,3,null,"комп.","Многоразовые расходники"]
[null,null,"2018-08-22","МДГР (5 л.)","Получено от поставщика","Склад",null,null,null,"2018-08-21",null,20,45,null,65,null,"л.","Дезсредства"]
[null,null,"2018-08-22","Мексидол (амп., 50 мг.- 2 мл., №10)","Получено от поставщика","ДС",null,null,null,"2018-08-22",null,0,200,null,200,null,"амп.","Медикаменты (ДС)"]
[null,null,"2018-08-22","Проклин антисептик (1 л. с триггером, экспресс)","Получено от поставщика","Склад",null,null,null,"2018-08-21",null,15,60,null,75,null,"шт.","Дезсредства"]
[null,null,"2018-08-22","Септолит-Форте (1 л.)","Получено от поставщика","Склад",null,null,null,"2018-08-21",null,1,2,null,3,null,"л.","Дезсредства"]
[null,null,"2018-08-22","Спирт этиловый (70%)","Получено от поставщика","Склад",null,null,null,null,null,2700,2200,null,4900,null,"мл.","Спирт"]
[null,null,"2018-08-22","Электрод воротниковый средний №2","Получено от поставщика","Склад",null,null,null,null,null,0,150,null,150,null,"шт.","Расходники"]
[null,null,"2018-08-22","Электрод эндауральный-эндоназальный малый","Получено от поставщика","Склад",null,null,null,null,null,0,750,null,750,null,"шт.","Расходники"]
[null,null,"2018-08-22","АКДС","Операции со складом","Склад",null,null,null,null,44,200,null,100,100,null,"доз.","Вакцина"]
[null,null,"2018-08-23","Гепатит В","Операции со складом","Склад",null,null,null,null,44,150,null,50,100,null,"доз.","Вакцина"]
[null,null,"2018-08-23","Краснушная","Операции со складом","Склад",null,null,null,null,44,120,null,80,40,null,"доз.","Вакцина"]
[null,null,"2018-08-23","Паротитно-корьевая","Операции со складом","Склад",null,null,null,null,44,30,null,30,0,null,"доз.","Вакцина"]
[null,null,"2018-08-23","Превенар-13","Операции со складом","Склад",null,null,null,null,44,200,null,90,110,null,"доз.","Вакцина"]
[null,null,"2018-08-23","Амброксол (р-р, 7,5 мг./1 мл., 100 мл.)","Операции со складом","Склад",null,null,null,null,45,5,null,5,0,null,"фл.","Медикаменты"]
[null,null,"2018-08-23","Беродуал (р-р флакон/кап. по 20 мл.)","Операции со складом","Склад",null,null,null,null,45,5,null,5,0,null,"фл.","Медикаменты"]
[null,null,"2018-08-23","Вентолин Небулы (амп., для ингаляций 1 мг/мл., 2,5 мл. № 20)","Операции со складом","Склад",null,null,null,null,45,3,null,3,0,null,"уп.","Медикаменты"]
[null,null,"2018-08-23","Массажные валики с подушкой","Операции со складом","Склад",null,null,null,null,45,3,null,0,3,null,"комп.","Многоразовые расходники"]
[null,null,"2018-08-23","Натрия хлорид (амп., 0,9%, 10 мл., №10)","Операции со складом","Склад",null,null,null,null,45,20,null,20,0,null,"уп.","Медикаменты"]
[null,null,"2018-08-23","Электрод воротниковый средний №2","Операции со складом","Склад",null,null,null,null,45,150,null,150,0,null,"шт.","Расходники"]
[null,null,"2018-08-24","Пробирка вакуумная Cerebrum (6 мл., 50 шт.)","Получено от поставщика","Склад",null,null,null,"2018-08-24",null,0,2000,null,2000,null,"шт.","Расходники"]
[null,null,"2018-08-24","Маска медицинская трёхслойная, одноразовая","Операции со складом","Склад",null,null,null,null,46,550,null,100,450,null,"шт.","Расходники"]
[null,null,"2018-08-24","Перчатки (нестер, латекс.)","Операции со складом","Склад",null,null,null,null,46,3000,null,500,2500,null,"пар.","Расходники"]
[null,null,"2018-08-24","Полотенце бумажное","Операции со складом","Склад",null,null,null,null,46,104,null,1,103,null,"уп.","Расходники"]
[null,null,"2018-08-24","Шприц (1 мл.)","Операции со складом","Склад",null,null,null,null,46,5000,null,600,4400,null,"шт.","Расходники"]
[null,null,"2018-08-24","Экобак (5 л.)","Операции со складом","Склад",null,null,null,null,46,15,null,5,10,null,"л.","Дезсредства"]
[null,null,"2018-08-24","Маска медицинская трёхслойная, одноразовая","Операции со складом","Склад",null,null,null,null,47,450,null,50,400,null,"шт.","Расходники"]
[null,null,"2018-08-24","Перчатки (нестер, латекс.)","Операции со складом","Склад",null,null,null,null,47,2500,null,150,2350,null,"пар.","Расходники"]
[null,null,"2018-08-24","Бинт (нест.)","Операции со складом","Склад",null,null,null,null,48,45,null,30,15,null,"шт.","Расходники"]
[null,null,"2018-08-24","Салфетка (стер., 14х16 см., №10)","Операции со складом","Склад",null,null,null,null,48,95,null,20,75,null,"шт.","Расходники"]
[null,null,"2018-08-24","Спирт этиловый (95%)","Операции со складом","Склад",null,null,null,null,48,3900,null,100,3800,null,"мл.","Спирт"]
[null,null,"2018-08-27","Перчатки (нестер, латекс.)","Операции со складом","Склад",null,null,null,null,49,2350,null,300,2050,null,"пар.","Расходники"]
[null,null,"2018-08-27","Салфетка (спанлейс, 30х40 см., 100 шт.)","Операции со складом","Склад",null,null,null,null,49,84,null,1,83,null,"уп.","Расходники"]
[null,null,"2018-08-27","Шприц (10 мл.)","Операции со складом","Склад",null,null,null,null,49,800,null,100,700,null,"шт.","Расходники"]
[null,null,"2018-08-27","Шприц (5 мл.)","Операции со складом","Склад",null,null,null,null,49,2100,null,100,2000,null,"шт.","Расходники"]
[null,null,"2018-08-27","Зеркало гинекологическое \"Куско\"","Операции со складом","Склад",null,null,null,null,50,100,null,100,0,null,"шт.","Расходники"]
[null,null,"2018-08-27","Ложка Фолькмана","Операции со складом","Склад",null,null,null,null,50,100,null,100,0,null,"шт.","Расходники"]
[null,null,"2018-08-27","Перчатки (нестер, латекс.)","Операции со складом","Склад",null,null,null,null,50,2050,null,250,1800,null,"пар.","Расходники"]
[null,null,"2018-08-27","Салфетка (спанлейс, 30х40 см., 100 шт.)","Операции со складом","Склад",null,null,null,null,50,83,null,2,81,null,"уп.","Расходники"]
[null,null,"2018-08-27","Перчатки (нестер, латекс.)","Операции со складом","Склад",null,null,null,null,51,1800,null,100,1700,null,"пар.","Расходники"]
[null,null,"2018-08-27","Салфетка (спанлейс, 30х40 см., 100 шт.)","Операции со складом","Склад",null,null,null,null,51,81,null,1,80,null,"уп.","Расходники"]
[null,null,"2018-08-27","Салфетка спиртовая (стер., 60х100 мм., 70%)","Операции со складом","Склад",null,null,null,null,51,5350,null,50,5300,null,"шт.","Расходники"]
[null,null,"2018-08-27","Шпатель (стер.)","Операции со складом","Склад",null,null,null,null,51,12600,null,1000,11600,null,"шт.","Расходники"]
[null,null,"2018-08-27","Бумага для спирографа Микролаб viasys (110*12*12)","Операции со складом","Склад",null,null,null,null,52,3,null,3,0,null,"уп.","Расходники"]
[null,null,"2018-08-27","Мундштук картонный одноразовый","Операции со складом","Склад",null,null,null,null,52,250,null,250,0,null,"шт.","Расходники"]
[null,null,"2018-08-27","Перчатки (нестер, латекс.)","Операции со складом","Склад",null,null,null,null,53,1700,null,50,1650,null,"пар.","Расходники"]
[null,null,"2018-08-27","Салфетка (спанлейс, 30х40 см., 100 шт.)","Операции со складом","Склад",null,null,null,null,53,80,null,1,79,null,"уп.","Расходники"]
[null,null,"2018-08-27","Салфетка спиртовая (стер., 60х100 мм., 70%)","Операции со складом","Склад",null,null,null,null,54,5300,null,100,5200,null,"шт.","Расходники"]
[null,null,"2018-08-28","Бонадерм-гель (100 мл.)","Операции со складом","Склад",null,null,null,null,55,239,null,1,238,null,"шт.","Дезсредства"]
[null,null,"2018-08-28","Полотенце бумажное","Операции со складом","Склад",null,null,null,null,55,103,null,1,102,null,"уп.","Расходники"]
[null,null,"2018-08-29","АДС","Получено от поставщика","Склад",null,null,null,null,null,0,40,null,40,null,"доз.","Вакцина"]
[null,null,"2018-08-29","АДС-М","Получено от поставщика","Склад",null,null,null,null,null,220,400,null,620,null,"доз.","Вакцина"]
[null,null,"2018-08-29","АКДС","Получено от поставщика","Склад",null,null,null,null,null,100,400,null,500,null,"доз.","Вакцина"]
[null,null,"2018-08-29","Би Вак полио","Получено от поставщика","Склад",null,null,null,null,null,300,800,null,1100,null,"доз.","Вакцина"]
[null,null,"2018-08-29","Биолек-туберкулин","Получено от поставщика","Склад",null,null,null,null,null,0,400,null,400,null,"мл.","Вакцина"]
[null,null,"2018-08-29","БЦЖ-М","Получено от поставщика","Склад",null,null,null,null,null,0,10,null,10,null,"комп.","Вакцина"]
[null,null,"2018-08-29","Гепатит В","Получено от поставщика","Склад",null,null,null,null,null,100,150,null,250,null,"доз.","Вакцина"]
[null,null,"2018-08-29","Краснушная","Получено от поставщика","Склад",null,null,null,null,null,40,300,null,340,null,"доз.","Вакцина"]
[null,null,"2018-08-29","Паротитно-корьевая","Получено от поставщика","Склад",null,null,null,null,null,0,300,null,300,null,"доз.","Вакцина"]
[null,null,"2018-08-29","Пентаксим","Получено от поставщика","Склад",null,null,null,null,null,160,50,null,210,null,"доз.","Вакцина"]
[null,null,"2018-08-29","Полимилекс","Получено от поставщика","Склад",null,null,null,null,null,100,250,null,350,null,"доз.","Вакцина"]
[null,null,"2018-08-29","Превенар-13","Получено от поставщика","Склад",null,null,null,null,null,110,100,null,210,null,"доз.","Вакцина"]
[null,null,"2018-08-29","Совигрипп","Получено от поставщика","Склад",null,null,null,null,null,0,2790,null,2790,null,"доз.","Вакцина"]
[null,null,"2018-08-29","АДС-М","Операции со складом","Склад",null,null,null,null,56,620,null,80,540,null,"доз.","Вакцина"]
[null,null,"2018-08-29","АКДС","Операции со складом","Склад",null,null,null,null,56,500,null,100,400,null,"доз.","Вакцина"]
[null,null,"2018-08-29","Би Вак полио","Операции со складом","Склад",null,null,null,null,56,1100,null,100,1000,null,"доз.","Вакцина"]
[null,null,"2018-08-29","Пентаксим","Операции со складом","Склад",null,null,null,null,56,210,null,20,190,null,"доз.","Вакцина"]
[null,null,"2018-08-29","Полимилекс","Операции со складом","Склад",null,null,null,null,56,350,null,50,300,null,"доз.","Вакцина"]
[null,null,"2018-08-29","Превенар-13","Операции со складом","Склад",null,null,null,null,56,210,null,50,160,null,"доз.","Вакцина"]
[null,null,"2018-08-29","Совигрипп","Операции со складом","Склад",null,null,null,null,59,2790,null,2610,180,null,"доз.","Вакцина"]
[null,null,"2018-08-30","Калия йодит (2%-200 мл.)","Получено от поставщика","Склад",null,null,null,"2018-08-29",null,0,1,null,1,null,"фл.","Растворы"]
[null,null,"2018-08-30","Кальция хлорид (2%-200мл.)","Получено от поставщика","Склад",null,null,null,"2018-08-29",null,0,1,null,1,null,"фл.","Растворы"]
[null,null,"2018-08-30","Натрия бромид (2%-200мл.)","Получено от поставщика","Склад",null,null,null,"2018-08-29",null,0,1,null,1,null,"фл.","Растворы"]
[null,null,"2018-08-30","Биолек-туберкулин","Операции со складом","Склад",null,null,null,null,57,400,null,20,380,null,"мл.","Вакцина"]
[null,null,"2018-08-30","БЦЖ-М","Операции со складом","Склад",null,null,null,null,57,10,null,5,5,null,"комп.","Вакцина"]
[null,null,"2018-08-30","Гепатит В","Операции со складом","Склад",null,null,null,null,57,250,null,50,200,null,"доз.","Вакцина"]
[null,null,"2018-08-30","Паротитно-корьевая","Операции со складом","Склад",null,null,null,null,57,300,null,80,220,null,"доз.","Вакцина"]
[null,null,"2018-08-30","Калия йодит (2%-200 мл.)","Операции со складом","Склад",null,null,null,null,58,1,null,1,0,null,"фл.","Растворы"]
[null,null,"2018-08-30","Кальция хлорид (2%-200мл.)","Операции со складом","Склад",null,null,null,null,58,1,null,1,0,null,"фл.","Растворы"]
[null,null,"2018-08-30","Натрия бромид (2%-200мл.)","Операции со складом","Склад",null,null,null,null,58,1,null,1,0,null,"фл.","Растворы"]
[null,null,"2018-08-30","Натрия хлорид (фл., 0,9%, 250 мл.)","Операции со складом","Склад",null,null,null,null,58,50,null,50,0,null,"фл.","Медикаменты"]
[null,null,"2018-08-30","Биолек-туберкулин","Операции со складом","Склад",null,null,null,null,60,380,null,20,360,null,"мл.","Вакцина"]
[null,null,"2018-09-01","Электрод эндауральный-эндоназальный малый","Операции со складом","Склад",null,null,null,null,45,750,null,750,0,null,"шт.","Расходники"]
[null,null,"2018-09-01","Биолек-туберкулин","Операции со складом","Склад",null,null,null,null,61,360,null,20,340,null,"мл.","Вакцина"]
[null,null,"2018-09-01","Перчатки (нестер, латекс.)","Операции со складом","Склад",null,null,null,null,63,1650,null,500,1150,null,"пар.","Расходники"]
[null,null,"2018-09-01","Шприц (1 мл.)","Операции со складом","Склад",null,null,null,null,63,4400,null,400,4000,null,"шт.","Расходники"]
[null,null,"2018-09-01","Шприц (5 мл.)","Операции со складом","Склад",null,null,null,null,63,2000,null,100,1900,null,"шт.","Расходники"]
[null,null,"2018-09-03","Бинт (нест.)","Операции со складом","Склад",null,null,null,null,62,15,null,4,11,null,"шт.","Расходники"]
[null,null,"2018-09-03","Вата (нест. 250 гр.)","Операции со складом","Склад",null,null,null,null,62,5250,null,750,4500,null,"гр.","Расходники"]
[null,null,"2018-09-03","Марля (нестр.)","Операции со складом","Склад",null,null,null,null,62,38,null,5,33,null,"м.","Расходники"]
[null,null,"2018-09-03","Перчатки (нестер, латекс.)","Операции со складом","Склад",null,null,null,null,62,1150,null,200,950,null,"пар.","Расходники"]
[null,null,"2018-09-03","Салфетка (спанлейс, 30х40 см., 100 шт.)","Операции со складом","Склад",null,null,null,null,62,79,null,3,76,null,"уп.","Расходники"]
[null,null,"2018-09-03","Салфетка (стер., 14х16 см., №10)","Операции со складом","Склад",null,null,null,null,62,75,null,10,65,null,"уп.","Расходники"]
[null,null,"2018-09-03","Салфетка (стер., 5х5 см., №10)","Операции со складом","Склад",null,null,null,null,62,110,null,20,90,null,"уп.","Расходники"]
[null,null,"2018-09-03","Салфетка спиртовая (стер., 60х100 мм., 70%)","Операции со складом","Склад",null,null,null,null,62,5200,null,300,4900,null,"шт.","Расходники"]
[null,null,"2018-09-03","Спирт этиловый (70%)","Операции со складом","Склад",null,null,null,null,62,4900,null,300,4600,null,"мл.","Спирт"]
[null,null,"2018-09-03","Краснушная","Операции со складом","Склад",null,null,null,null,64,340,null,40,300,null,"доз.","Вакцина"]
[null,null,"2018-09-03","Превенар-13","Операции со складом","Склад",null,null,null,null,64,160,null,40,120,null,"доз.","Вакцина"]
[null,null,"2018-09-03","Совигрипп","Операции со складом","Склад",null,null,null,null,64,180,null,90,90,null,"доз.","Вакцина"]
[null,null,"2018-09-03","АДС-М","Операции со складом","Склад",null,null,null,null,65,540,null,200,340,null,"доз.","Вакцина"]
[null,null,"2018-09-03","Би Вак полио","Операции со складом","Склад",null,null,null,null,65,1000,null,100,900,null,"доз.","Вакцина"]
[null,null,"2018-09-03","Биолек-туберкулин","Операции со складом","Склад",null,null,null,null,65,340,null,50,290,null,"мл.","Вакцина"]
[null,null,"2018-09-03","Диаскинтест","Операции со складом","Склад",null,null,null,null,65,10200,null,300,9900,null,"доз.","Вакцина"]
[null,null,"2018-09-03","Краснушная","Операции со складом","Склад",null,null,null,null,65,300,null,80,220,null,"доз.","Вакцина"]
[null,null,"2018-09-03","Паротитно-корьевая","Операции со складом","Склад",null,null,null,null,65,220,null,50,170,null,"доз.","Вакцина"]
[null,null,"2018-09-03","Перчатки (нестер, латекс.)","Операции со складом","Склад",null,null,null,null,65,950,null,450,500,null,"пар.","Расходники"]
[null,null,"2018-09-03","Салфетка (спанлейс, 30х40 см., 100 шт.)","Операции со складом","Склад",null,null,null,null,65,76,null,7,69,null,"уп.","Расходники"]
[null,null,"2018-09-03","Салфетка спиртовая (стер., 60х100 мм., 70%)","Операции со складом","Склад",null,null,null,null,65,4900,null,3000,1900,null,"шт.","Расходники"]
[null,null,"2018-09-03","Шпатель (стер.)","Операции со складом","Склад",null,null,null,null,65,11600,null,1000,10600,null,"шт.","Расходники"]
[null,null,"2018-09-03","Шприц (1 мл.)","Операции со складом","Склад",null,null,null,null,65,4000,null,1000,3000,null,"шт.","Расходники"]
[null,null,"2018-09-03","Салфетка (спанлейс, 30х40 см., 100 шт.)","Операции со складом","Склад",null,null,null,null,66,69,null,1,68,null,"уп.","Расходники"]
[null,null,"2018-09-03","Салфетка спиртовая (стер., 60х100 мм., 70%)","Операции со складом","Склад",null,null,null,null,66,1900,null,50,1850,null,"шт.","Расходники"]
[null,null,"2018-09-03","Шпатель (стер.)","Операции со складом","Склад",null,null,null,null,66,10600,null,1000,9600,null,"шт.","Расходники"]
[null,null,"2018-09-03","МДГР (5 л.)","Операции со складом","Склад",null,null,null,null,67,65,null,2,63,null,"л.","Дезсредства"]
[null,null,"2018-09-03","Перчатки (нестер, латекс.)","Операции со складом","Склад",null,null,null,null,67,500,null,500,0,null,"пар.","Расходники"]
[null,null,"2018-09-03","Полотенце бумажное","Операции со складом","Склад",null,null,null,null,67,102,null,3,99,null,"уп.","Расходники"]
[null,null,"2018-09-03","Салфетка (спанлейс, 30х40 см., 100 шт.)","Операции со складом","Склад",null,null,null,null,67,68,null,1,67,null,"уп.","Расходники"]
[null,null,"2018-09-03","Спирт этиловый (70%)","Операции со складом","Склад",null,null,null,null,67,4600,null,200,4400,null,"мл.","Спирт"]
[null,null,"2018-09-03","Спирт этиловый (95%)","Операции со складом","Склад",null,null,null,null,67,3800,null,200,3600,null,"мл.","Спирт"]
[null,null,"2018-09-03","Вата (нест. 100 гр.)","Операции со складом","Склад",null,null,null,null,68,1500,null,200,1300,null,"гр.","Расходники"]
[null,null,"2018-09-03","Проклин антисептик (1 л. УМР)","Операции со складом","Склад",null,null,null,null,68,109,null,1,108,null,"л.","Дезсредства"]
[null,null,"2018-09-03","Салфетка (спанлейс, 30х40 см., 100 шт.)","Операции со складом","Склад",null,null,null,null,68,67,null,1,66,null,"уп.","Расходники"]
[null,null,"2018-09-03","Салфетка спиртовая (стер., 60х100 мм., 70%)","Операции со складом","Склад",null,null,null,null,68,1850,null,100,1750,null,"шт.","Расходники"]
[null,null,"2018-09-04","Биолек-туберкулин","Операции со складом","Склад",null,null,null,null,69,290,null,20,270,null,"мл.","Вакцина"]
[null,null,"2018-09-04","Диаскинтест","Операции со складом","Склад",null,null,null,null,69,9900,null,600,9300,null,"доз.","Вакцина"]
[null,null,"2018-09-05","Ватные шарики (стер., №20)","Получено от поставщика","Склад",null,null,null,"2018-09-05",null,0,240,null,240,null,"уп.","Расходники"]
[null,null,"2018-09-05","Салфетка спиртовая (стер., 60х100 мм., 70%)","Получено от поставщика","Склад",null,null,null,"2018-09-05",null,1750,8000,null,9750,null,"шт.","Расходники"]
[null,null,"2018-09-05","Шприц (10 мл.)","Получено от поставщика","Склад",null,null,null,"2018-09-05",null,700,1000,null,1700,null,"шт.","Расходники"]
[null,null,"2018-09-05","Шприц (5 мл.)","Получено от поставщика","Склад",null,null,null,"2018-09-05",null,1900,1200,null,3100,null,"шт.","Расходники"]
[null,null,"2018-09-05","Проклин антисептик (1 л. УМР)","Операции со складом","Склад",null,null,null,null,70,108,null,1,107,null,"л.","Дезсредства"]
[null,null,"2018-09-05","Проклин антисептик (1 л. с триггером, экспресс)","Операции со складом","Склад",null,null,null,null,71,75,null,1,74,null,"л.","Дезсредства"]
[null,null,"2018-09-05","Проклин антисептик (1 л. УМР)","Операции со складом","Склад",null,null,null,null,71,107,null,1,106,null,"л.","Дезсредства"]
[null,null,"2018-09-05","Салфетка (спанлейс, 30х40 см., 100 шт.)","Операции со складом","Склад",null,null,null,null,71,66,null,1,65,null,"уп.","Расходники"]
[null,null,"2018-09-05","Салфетка спиртовая (стер., 60х100 мм., 70%)","Операции со складом","Склад",null,null,null,null,71,9750,null,100,9650,null,"шт.","Расходники"]
[null,null,"2018-09-05","Совигрипп","Операции со складом","Склад",null,null,null,null,88,90,null,90,0,null,"доз.","Вакцина"]
[null,null,"2018-09-07","Вода очищенна (200 мл.)","Получено от поставщика","Склад",null,null,null,"2018-09-07",null,0,54,null,54,null,"фл.","Растворы"]
[null,null,"2018-09-07","Калия йодит (2%-200 мл.)","Получено от поставщика","Склад",null,null,null,"2018-09-07",null,0,1,null,1,null,"фл.","Растворы"]
[null,null,"2018-09-07","Кальция хлорид (2%-200мл.)","Получено от поставщика","Склад",null,null,null,"2018-09-07",null,0,1,null,1,null,"фл.","Растворы"]
[null,null,"2018-09-07","Кислота уксусная (р-р, 100 мл.)","Получено от поставщика","Склад",null,null,null,"2018-09-07",null,0,1,null,1,null,"фл.","Растворы"]
[null,null,"2018-09-07","Колларгол (р-р, 10 мл.)","Получено от поставщика","Склад",null,null,null,"2018-09-07",null,0,1,null,1,null,"фл.","Растворы"]
[null,null,"2018-09-07","Люгоря (р-р, 100 мл.)","Получено от поставщика","Склад",null,null,null,"2018-09-07",null,0,2,null,2,null,"фл.","Растворы"]
[null,null,"2018-09-07","Маска медицинская трёхслойная, одноразовая","Получено от поставщика","Склад",null,null,null,"2018-09-07",null,400,1000,null,1400,null,"шт.","Расходники"]
[null,null,"2018-09-07","Натрия бромид (2%-200мл.)","Получено от поставщика","Склад",null,null,null,"2018-09-07",null,0,1,null,1,null,"фл.","Растворы"]
[null,null,"2018-09-07","Натрия цитрат (р-р, 100 мл.)","Получено от поставщика","Склад",null,null,null,"2018-09-07",null,0,6,null,6,null,"фл.","Растворы"]
[null,null,"2018-09-07","Перекись водорода (3%, 350 мл.)","Получено от поставщика","Склад",null,null,null,"2018-09-07",null,0,10,null,10,null,"фл.","Растворы"]
[null,null,"2018-09-07","Перекись водорода (6%, 400 мл.)","Получено от поставщика","Склад",null,null,null,"2018-09-07",null,0,10,null,10,null,"фл.","Растворы"]
[null,null,"2018-09-07","Фурацилин (р-р)","Получено от поставщика","Склад",null,null,null,"2018-09-07",null,0,2,null,2,null,"фл.","Растворы"]
[null,null,"2018-09-07","Шпатель (стер.)","Получено от поставщика","Склад",null,null,null,"2018-09-07",null,9600,10000,null,19600,null,"шт.","Расходники"]
[null,null,"2018-09-07","Биолек-туберкулин","Операции со складом","Склад",null,null,null,null,72,270,null,20,250,null,"мл.","Вакцина"]
[null,null,"2018-09-07","Перекись водорода (3%, 350 мл.)","Операции со складом","Склад",null,null,null,null,73,10,null,10,0,null,"фл.","Растворы"]
[null,null,"2018-09-07","Салфетка (стер., 5х5 см., №10)","Операции со складом","Склад",null,null,null,null,73,90,null,5,85,null,"уп.","Расходники"]
[null,null,"2018-09-07","Фурацилин (р-р)","Операции со складом","Склад",null,null,null,null,73,2,null,2,0,null,"фл.","Растворы"]
[null,null,"2018-09-07","Шпатель (стер.)","Операции со складом","Склад",null,null,null,null,73,19600,null,300,19300,null,"шт.","Расходники"]
[null,null,"2018-09-07","Кавинтон (амп., 10 мг., 2 мл., №10)","Операции со складом","ДС",null,null,null,null,74,10,null,10,0,null,"амп.","Медикаменты (ДС)"]
[null,null,"2018-09-07","Маска медицинская трёхслойная, одноразовая","Операции со складом","Склад",null,null,null,null,75,1400,null,50,1350,null,"шт.","Расходники"]
[null,null,"2018-09-07","Полотенце бумажное","Операции со складом","Склад",null,null,null,null,75,99,null,1,98,null,"уп.","Расходники"]
[null,null,"2018-09-07","Салфетка спиртовая (стер., 60х100 мм., 70%)","Операции со складом","Склад",null,null,null,null,75,9650,null,500,9150,null,"шт.","Расходники"]
[null,null,"2018-09-07","Би Вак полио","Операции со складом","Склад",null,null,null,null,76,900,null,100,800,null,"доз.","Вакцина"]
[null,null,"2018-09-07","Бубо-кок","Операции со складом","Склад",null,null,null,null,76,100,null,40,60,null,"доз.","Вакцина"]
[null,null,"2018-09-07","Гепатит В","Операции со складом","Склад",null,null,null,null,76,200,null,40,160,null,"доз.","Вакцина"]
[null,null,"2018-09-07","Краснушная","Операции со складом","Склад",null,null,null,null,76,220,null,40,180,null,"доз.","Вакцина"]
[null,null,"2018-09-07","Полотенце бумажное","Операции со складом","Склад",null,null,null,null,76,98,null,1,97,null,"уп.","Расходники"]
[null,null,"2018-09-07","Превенар-13","Операции со складом","Склад",null,null,null,null,76,120,null,30,90,null,"доз.","Вакцина"]
[null,null,"2018-09-07","Спирт этиловый (70%)","Операции со складом","Склад",null,null,null,null,76,4400,null,300,4100,null,"мл.","Спирт"]
[null,null,"2018-09-07","Шприц (1 мл.)","Операции со складом","Склад",null,null,null,null,76,3000,null,400,2600,null,"шт.","Расходники"]
[null,null,"2018-09-07","Калия йодит (2%-200 мл.)","Операции со складом","Склад",null,null,null,null,77,1,null,1,0,null,"фл.","Растворы"]
[null,null,"2018-09-07","Кальция хлорид (2%-200мл.)","Операции со складом","Склад",null,null,null,null,77,1,null,1,0,null,"фл.","Растворы"]
[null,null,"2018-09-07","Натрия бромид (2%-200мл.)","Операции со складом","Склад",null,null,null,null,77,1,null,1,0,null,"фл.","Растворы"]
[null,null,"2018-09-07","Перекись водорода (6%, 400 мл.)","Операции со складом","Склад",null,null,null,null,78,10,null,10,0,null,"фл.","Растворы"]
[null,null,"2018-09-07","Кислота уксусная (р-р, 100 мл.)","Операции со складом","Склад",null,null,null,null,79,1,null,1,0,null,"фл.","Растворы"]
[null,null,"2018-09-07","Люгоря (р-р, 100 мл.)","Операции со складом","Склад",null,null,null,null,79,2,null,1,1,null,"фл.","Растворы"]
[null,null,"2018-09-07","Люгоря (р-р, 100 мл.)","Операции со складом","Склад",null,null,null,null,80,1,null,1,0,null,"фл.","Растворы"]
[null,null,"2018-09-07","Натрия цитрат (р-р, 100 мл.)","Операции со складом","Склад",null,null,null,null,80,6,null,6,0,null,"фл.","Растворы"]
[null,null,"2018-09-07","Вода очищенна (200 мл.)","Операции со складом","Склад",null,null,null,null,81,54,null,54,0,null,"фл.","Растворы"]
[null,null,"2018-09-07","Колларгол (р-р, 10 мл.)","Операции со складом","Склад",null,null,null,null,82,1,null,1,0,null,"фл.","Растворы"]
[null,null,"2018-09-10","Бонадерм - крем для рук восстанавливающий (100 мл.)","Операции со складом","Склад",null,null,null,null,83,39,null,2,37,null,"шт.","Расходники"]
[null,null,"2018-09-10","Бонадерм-гель (100 мл.)","Операции со складом","Склад",null,null,null,null,83,238,null,2,236,null,"шт.","Дезсредства"]
[null,null,"2018-09-10","Салфетка (спанлейс, 30х40 см., 100 шт.)","Операции со складом","Склад",null,null,null,null,83,65,null,2,63,null,"уп.","Расходники"]
[null,null,"2018-09-10","Салфетка спиртовая (стер., 60х100 мм., 70%)","Операции со складом","Склад",null,null,null,null,84,9150,null,200,8950,null,"шт.","Расходники"]
[null,null,"2018-09-10","Шприц (1 мл.)","Операции со складом","Склад",null,null,null,null,84,2600,null,100,2500,null,"шт.","Расходники"]
[null,null,"2018-09-10","Салфетка (спанлейс, 30х40 см., 100 шт.)","Операции со складом","Склад",null,null,null,null,85,63,null,2,61,null,"уп.","Расходники"]
[null,null,"2018-09-10","Салфетка спиртовая (стер., 60х100 мм., 70%)","Операции со складом","Склад",null,null,null,null,85,8950,null,100,8850,null,"шт.","Расходники"]
[null,null,"2018-09-10","Шпатель (стер.)","Операции со складом","Склад",null,null,null,null,85,19300,null,3000,16300,null,"шт.","Расходники"]
[null,null,"2018-09-11","Совигрипп","Получено от поставщика","Склад",null,null,null,null,null,0,2790,null,2790,null,"доз.","Вакцина"]
[null,null,"2018-09-11","Биолек-туберкулин","Операции со складом","Склад",null,null,null,null,86,250,null,50,200,null,"мл.","Вакцина"]
[null,null,"2018-09-11","Диаскинтест","Операции со складом","Склад",null,null,null,null,86,9300,null,300,9000,null,"доз.","Вакцина"]
[null,null,"2018-09-11","Мексидол (амп., 50 мг.- 2 мл., №10)","Операции со складом","ДС",null,null,null,null,87,200,null,20,180,null,"амп.","Медикаменты (ДС)"]
[null,null,"2018-09-11","Фенибут (таб., 250 мг., №20)","Операции со складом","ДС",null,null,null,null,87,100,null,20,80,null,"таб.","Медикаменты (ДС)"]
[null,null,"2018-09-11","Совигрипп","Операции со складом","Склад",null,null,null,null,89,2790,null,2160,630,null,"доз.","Вакцина"]
[null,null,"2018-09-12","Краснушная","Операции со складом","Склад",null,null,null,null,90,180,null,40,140,null,"доз.","Вакцина"]
[null,null,"2018-09-12","Полимилекс","Операции со складом","Склад",null,null,null,null,90,300,null,25,275,null,"доз.","Вакцина"]
[null,null,"2018-09-12","Превенар-13","Операции со складом","Склад",null,null,null,null,90,90,null,30,60,null,"доз.","Вакцина"]
[null,null,"2018-09-12","Совигрипп","Операции со складом","Склад",null,null,null,null,90,630,null,90,540,null,"доз.","Вакцина"]
[null,null,"2018-09-12","АКДС","Операции со складом","Склад",null,null,null,null,91,400,null,20,380,null,"доз.","Вакцина"]
[null,null,"2018-09-12","Биолек-туберкулин","Операции со складом","Склад",null,null,null,null,91,200,null,50,150,null,"мл.","Вакцина"]
[null,null,"2018-09-12","БЦЖ","Операции со складом","Склад",null,null,null,null,91,30,null,5,25,null,"комп.","Вакцина"]
[null,null,"2018-09-12","Диаскинтест","Операции со складом","Склад",null,null,null,null,91,9000,null,300,8700,null,"доз.","Вакцина"]
[null,null,"2018-09-12","Диаскинтест","Операции со складом","Склад",null,null,null,null,91,8700,null,300,8400,null,"доз.","Вакцина"]
[null,null,"2018-09-12","Краснушная","Операции со складом","Склад",null,null,null,null,91,140,null,50,90,null,"доз.","Вакцина"]
[null,null,"2018-09-12","Паротитно-корьевая","Операции со складом","Склад",null,null,null,null,91,170,null,80,90,null,"доз.","Вакцина"]
[null,null,"2018-09-14","Полотенце бумажное","Операции со складом","Склад",null,null,null,null,92,97,null,1,96,null,"уп.","Расходники"]
[null,null,"2018-09-14","Салфетка (спанлейс, 30х40 см., 100 шт.)","Операции со складом","Склад",null,null,null,null,92,61,null,1,60,null,"уп.","Расходники"]
[null,null,"2018-09-14","Шпатель (стер.)","Операции со складом","Склад",null,null,null,null,92,16300,null,500,15800,null,"шт.","Расходники"]
[null,null,"2018-09-14","Бинт (нест.)","Операции со складом","Склад",null,null,null,null,93,11,null,1,10,null,"шт.","Расходники"]
[null,null,"2018-09-14","Маска медицинская трёхслойная, одноразовая","Операции со складом","Склад",null,null,null,null,93,1350,null,50,1300,null,"шт.","Расходники"]
[null,null,"2018-09-14","Спирт этиловый (70%)","Операции со складом","Склад",null,null,null,null,93,4100,null,200,3900,null,"мл.","Спирт"]
[null,null,"2018-09-14","Шприц (1 мл.)","Операции со складом","Склад",null,null,null,null,93,2500,null,100,2400,null,"шт.","Расходники"]
[null,null,"2018-09-14","Шприц (10 мл.)","Операции со складом","Склад",null,null,null,null,93,1700,null,100,1600,null,"шт.","Расходники"]
[null,null,"2018-09-14","Шприц (5 мл.)","Операции со складом","Склад",null,null,null,null,93,3100,null,100,3000,null,"шт.","Расходники"]
[null,null,"2018-09-14","АДС-М","Операции со складом","Склад",null,null,null,null,94,340,null,40,300,null,"доз.","Вакцина"]
[null,null,"2018-09-14","АКДС","Операции со складом","Склад",null,null,null,null,94,380,null,100,280,null,"доз.","Вакцина"]
[null,null,"2018-09-14","Биолек-туберкулин","Операции со складом","Склад",null,null,null,null,94,150,null,20,130,null,"мл.","Вакцина"]
[null,null,"2018-09-14","Гепатит В","Операции со складом","Склад",null,null,null,null,94,160,null,30,130,null,"доз.","Вакцина"]
[null,null,"2018-09-14","Маска медицинская трёхслойная, одноразовая","Операции со складом","Склад",null,null,null,null,94,1300,null,50,1250,null,"шт.","Расходники"]
[null,null,"2018-09-14","Паротитно-корьевая","Операции со складом","Склад",null,null,null,null,94,90,null,40,50,null,"доз.","Вакцина"]
[null,null,"2018-09-14","Превенар-13","Операции со складом","Склад",null,null,null,null,94,60,null,30,30,null,"доз.","Вакцина"]
[null,null,"2018-09-14","Салфетка спиртовая (стер., 60х100 мм., 70%)","Операции со складом","Склад",null,null,null,null,94,8850,null,850,8000,null,"шт.","Расходники"]
[null,null,"2018-09-14","Глицин (таб., 100 мг., №50)","Операции со складом","ДС",null,null,null,null,95,1200,null,300,900,null,"таб.","Медикаменты (ДС)"]
[null,null,"2018-09-14","Пантогам (таб., 250 мг., №50)","Операции со складом","ДС",null,null,null,null,95,1150,null,300,850,null,"таб.","Медикаменты (ДС)"]
[null,null,"2018-09-14","Пирацетам (амп., 20%, 5 мл., №10)","Операции со складом","ДС",null,null,null,null,95,460,null,100,360,null,"амп.","Медикаменты (ДС)"]
[null,null,"2018-09-14","Пиридоксина гидрохлорид (амп., 5%, 1 мл., №10)","Операции со складом","ДС",null,null,null,null,95,900,null,100,800,null,"амп.","Медикаменты (ДС)"]
[null,null,"2018-09-14","Цианокобаламин (амп., 0,5 мг./1 мл., 1 мл., №10)","Операции со складом","ДС",null,null,null,null,95,900,null,100,800,null,"амп.","Медикаменты (ДС)"]
[null,null,"2018-09-17","Проклин антисептик (1 л. УМР)","Операции со складом","Склад",null,null,null,null,96,106,null,1,105,null,"шт.","Дезсредства"]
[null,null,"2018-09-17","Салфетка (спанлейс, 30х40 см., 100 шт.)","Операции со складом","Склад",null,null,null,null,97,60,null,1,59,null,"уп.","Расходники"]
[null,null,"2018-09-17","Салфетка спиртовая (стер., 60х100 мм., 70%)","Операции со складом","Склад",null,null,null,null,97,8000,null,50,7950,null,"шт.","Расходники"]
[null,null,"2018-09-17","Шпатель (стер.)","Операции со складом","Склад",null,null,null,null,97,15800,null,1000,14800,null,"шт.","Расходники"]
[null,null,"2018-09-17","АДС","Операции со складом","Склад",null,null,null,null,98,40,null,20,20,null,"доз.","Вакцина"]
[null,null,"2018-09-18","Маска медицинская трёхслойная, одноразовая","Операции со складом","Склад",null,null,null,null,99,1250,null,50,1200,null,"шт.","Расходники"]
[null,null,"2018-09-18","Полотенце бумажное","Операции со складом","Склад",null,null,null,null,99,96,null,2,94,null,"уп.","Расходники"]
[null,null,"2018-09-18","Салфетка спиртовая (стер., 60х100 мм., 70%)","Операции со складом","Склад",null,null,null,null,99,7950,null,2000,5950,null,"шт.","Расходники"]
[null,null,"2018-09-18","Экобак (5 л.)","Операции со складом","Склад",null,null,null,null,99,10,null,5,5,null,"л.","Дезсредства"]
[null,null,"2018-09-19","Биолек-туберкулин","Операции со складом","Склад",null,null,null,null,100,130,null,60,70,null,"мл.","Вакцина"]
[null,null,"2018-09-19","Салфетка спиртовая (стер., 60х100 мм., 70%)","Операции со складом","Склад",null,null,null,null,100,5950,null,2000,3950,null,"шт.","Расходники"]
[null,null,"2018-09-19","Салфетка спиртовая (стер., 60х100 мм., 70%)","Операции со складом","Склад",null,null,null,null,101,3950,null,100,3850,null,"шт.","Расходники"]
[null,null,"2018-09-19","Бонадерм-Ультра (100 мл., с распыляющей насадкой)","Операции со складом","Склад",null,null,null,null,102,273,null,1,272,null,"шт.","Дезсредства"]
[null,null,"2018-09-19","Проклин антисептик (1 л. с триггером, экспресс)","Операции со складом","Склад",null,null,null,null,102,74,null,1,73,null,"л.","Дезсредства"]
[null,null,"2018-09-19","Салфетка (спанлейс, 30х40 см., 100 шт.)","Операции со складом","Склад",null,null,null,null,102,59,null,1,58,null,"уп.","Расходники"]
[null,null,"2018-09-19","Экобак (5 л.)","Операции со складом","Склад",null,null,null,null,102,5,null,1,4,null,"л.","Дезсредства"]
[null,null,"2018-09-19","Рецептурные бланки (серия 25-18)","Операции со складом","Склад",null,null,null,null,112,348,null,10,338,null,"шт.","Рецептурные бланки"]
[null,null,"2018-09-20","Вата (нест. 250 гр.)","Получено от поставщика","Склад",null,null,null,null,null,4500,2500,null,7000,null,"гр.","Расходники"]
[null,null,"2018-09-20","Калия йодит (2%-200 мл.)","Получено от поставщика","Склад",null,null,null,"2018-09-19",null,0,2,null,2,null,"фл.","Растворы"]
[null,null,"2018-09-20","Биолек-туберкулин","Операции со складом","Склад",null,null,null,null,103,70,null,30,40,null,"мл.","Вакцина"]
[null,null,"2018-09-20","Ватные шарики (стер., №20)","Операции со складом","Склад",null,null,null,null,103,240,null,240,0,null,"уп.","Расходники"]
[null,null,"2018-09-20","Диаскинтест","Операции со складом","Склад",null,null,null,null,103,8400,null,150,8250,null,"доз.","Вакцина"]
[null,null,"2018-09-20","Салфетка спиртовая (стер., 60х100 мм., 70%)","Операции со складом","Склад",null,null,null,null,103,3850,null,850,3000,null,"шт.","Расходники"]
[null,null,"2018-09-20","Совигрипп","Операции со складом","Склад",null,null,null,null,103,540,null,90,450,null,"доз.","Вакцина"]
[null,null,"2018-09-21","Кальция хлорид (2%-200мл.)","Получено от поставщика","Склад",null,null,null,"2018-09-21",null,0,1,null,1,null,"фл.","Растворы"]
[null,null,"2018-09-21","Натрия бромид (2%-200мл.)","Получено от поставщика","Склад",null,null,null,"2018-09-21",null,0,1,null,1,null,"фл.","Растворы"]
[null,null,"2018-09-24","Вата (нест. 100 гр.)","Получено от поставщика","Склад",null,null,null,"2018-09-24",null,1300,1000,null,2300,null,"гр.","Расходники"]
[null,null,"2018-09-24","Вата (стер. 100 гр.)","Получено от поставщика","Склад",null,null,null,"2018-09-24",null,2000,1000,null,3000,null,"гр.","Расходники"]
[null,null,"2018-09-24","Ватные шарики (стер., №20)","Получено от поставщика","Склад",null,null,null,"2018-09-24",null,0,240,null,240,null,"уп.","Расходники"]
[null,null,"2018-09-24","Салфетка (стер., 5х5 см., №10)","Получено от поставщика","Склад",null,null,null,"2018-09-24",null,85,11,null,96,null,"уп.","Расходники"]
[null,null,"2018-09-24","Салфетка спиртовая (стер., 60х100 мм., 70%)","Получено от поставщика","Склад",null,null,null,"2018-09-24",null,3000,6000,null,9000,null,"шт.","Расходники"]
[null,null,"2018-09-24","Шприц (1 мл.)","Получено от поставщика","Склад",null,null,null,"2018-09-24",null,2400,2200,null,4600,null,"шт.","Расходники"]
[null,null,"2018-09-24","Би Вак полио","Операции со складом","Склад",null,null,null,null,104,800,null,100,700,null,"доз.","Вакцина"]
[null,null,"2018-09-24","Биолек-туберкулин","Операции со складом","Склад",null,null,null,null,104,40,null,40,0,null,"мл.","Вакцина"]
[null,null,"2018-09-24","Полимилекс","Операции со складом","Склад",null,null,null,null,104,275,null,50,225,null,"доз.","Вакцина"]
[null,null,"2018-09-24","Превенар-13","Операции со складом","Склад",null,null,null,null,104,30,null,30,0,null,"доз.","Вакцина"]
[null,null,"2018-09-24","Совигрипп","Операции со складом","Склад",null,null,null,null,104,450,null,90,360,null,"доз.","Вакцина"]
[null,null,"2018-09-24","Шприц (1 мл.)","Операции со складом","Склад",null,null,null,null,104,4600,null,300,4300,null,"шт.","Расходники"]
[null,null,"2018-09-24","Салфетка (спанлейс, 30х40 см., 100 шт.)","Операции со складом","Склад",null,null,null,null,105,58,null,1,57,null,"уп.","Расходники"]
[null,null,"2018-09-24","Салфетка (стер., 5х5 см., №10)","Операции со складом","Склад",null,null,null,null,105,96,null,10,86,null,"уп.","Расходники"]
[null,null,"2018-09-24","Экобак (5 л.)","Операции со складом","Склад",null,null,null,null,105,4,null,1,3,null,"л.","Дезсредства"]
[null,null,"2018-09-24","Экобак (5 л.)","Операции со складом","Склад",null,null,null,null,106,3,null,3,0,null,"л.","Дезсредства"]
[null,null,"2018-09-24","Полотенце бумажное","Операции со складом","Склад",null,null,null,null,107,94,null,1,93,null,"уп.","Расходники"]
[null,null,"2018-09-24","Проклин антисептик (1 л. УМР)","Операции со складом","Склад",null,null,null,null,107,105,null,2,103,null,"л.","Дезсредства"]
[null,null,"2018-09-24","Бинт (нест.)","Операции со складом","Склад",null,null,null,null,108,10,null,10,0,null,"шт.","Расходники"]
[null,null,"2018-09-24","Перчатки (стер, латекс.)","Операции со складом","Склад",null,null,null,null,108,350,null,10,340,null,"пар.","Расходники"]
[null,null,"2018-09-24","Салфетка (стер., 14х16 см., №10)","Операции со складом","Склад",null,null,null,null,108,65,null,20,45,null,"уп.","Расходники"]
[null,null,"2018-09-24","Спирт этиловый (95%)","Операции со складом","Склад",null,null,null,null,108,3600,null,100,3500,null,"мл.","Спирт"]
[null,null,"2018-09-24","Проклин антисептик (1 л. с триггером, экспресс)","Операции со складом","Склад",null,null,null,null,109,73,null,1,72,null,"л.","Дезсредства"]
[null,null,"2018-09-24","Винпоцетин (таб., 5 мг., №50)","Операции со складом","ДС",null,null,null,null,110,2600,null,50,2550,null,"таб.","Медикаменты (ДС)"]
[null,null,"2018-09-24","Мексидол (таб., 125 мг., №50)","Операции со складом","ДС",null,null,null,null,110,1050,null,50,1000,null,"таб.","Медикаменты (ДС)"]
[null,null,"2018-09-24","Пирацетам (амп., 20%, 5 мл., №10)","Операции со складом","ДС",null,null,null,null,110,360,null,50,310,null,"амп.","Медикаменты (ДС)"]
[null,null,"2018-09-24","Пирацетам (таб/капс., 400 мг., №60)","Операции со складом","ДС",null,null,null,null,110,900,null,60,840,null,"капс.","Медикаменты (ДС)"]
[null,null,"2018-09-24","Пиридоксина гидрохлорид (амп., 5%, 1 мл., №10)","Операции со складом","ДС",null,null,null,null,110,800,null,50,750,null,"амп.","Медикаменты (ДС)"]
[null,null,"2018-09-24","Цианокобаламин (амп., 0,5 мг./1 мл., 1 мл., №10)","Операции со складом","ДС",null,null,null,null,110,800,null,50,750,null,"амп.","Медикаменты (ДС)"]
[null,null,"2018-09-24","Шпатель (стер.)","Операции со складом","Склад",null,null,null,null,111,14800,null,200,14600,null,"шт.","Расходники"]
[null,null,"2018-09-25","Пульмикорт (суспензия для ингаляций 0,5 мг/мл, 2 мл., №20)","Получено от поставщика","Склад",null,null,null,"2018-09-25",null,0,50,null,50,null,"уп.","Медикаменты"]
[null,null,"2018-09-25","Циннаризин (таб. 25 мг., №50)","Получено от поставщика","ДС",null,null,null,"2018-09-25",null,0,250,null,250,null,"таб.","Медикаменты (ДС)"]
[null,null,"2018-09-25","Рецептурные бланки (серия 25-18)","Операции со складом","Склад",null,null,null,null,113,338,null,1,337,null,"шт.","Рецептурные бланки"]
[null,null,"2018-09-26","Пробирка для исследования сыворотки (1 мл., 13х75)","Получено от поставщика","Склад",null,null,null,null,null,0,500,null,500,null,"шт.","Расходники"]
[null,null,"2018-09-26","Пробирка ЭДТА-КЗ (1 мл., 13х75)","Получено от поставщика","Склад",null,null,null,null,null,0,500,null,500,null,"шт.","Расходники"]
[null,null,"2018-09-26","Калия йодит (2%-200 мл.)","Операции со складом","Склад",null,null,null,null,114,2,null,2,0,null,"фл.","Растворы"]
[null,null,"2018-09-26","Кальция хлорид (2%-200мл.)","Операции со складом","Склад",null,null,null,null,114,1,null,1,0,null,"фл.","Растворы"]
[null,null,"2018-09-26","Натрия бромид (2%-200мл.)","Операции со складом","Склад",null,null,null,null,114,1,null,1,0,null,"фл.","Растворы"]
[null,null,"2018-09-26","Пульмикорт (суспензия для ингаляций 0,5 мг/мл, 2 мл., №20)","Операции со складом","Склад",null,null,null,null,114,50,null,10,40,null,"уп.","Медикаменты"]
[null,null,"2018-09-26","Гепатит В","Операции со складом","Склад",null,null,null,null,115,130,null,40,90,null,"доз.","Вакцина"]
[null,null,"2018-09-26","Би Вак полио","Операции со складом","Склад",null,null,null,null,116,700,null,100,600,null,"доз.","Вакцина"]
[null,null,"2018-09-27","Калия йодит (2%-200 мл.)","Получено от поставщика","Склад",null,null,null,null,null,0,2,null,2,null,"фл.","Растворы"]
[null,null,"2018-09-27","Кальция хлорид (2%-200мл.)","Получено от поставщика","Склад",null,null,null,null,null,0,1,null,1,null,"фл.","Растворы"]
[null,null,"2018-09-27","Натрия бромид (2%-200мл.)","Получено от поставщика","Склад",null,null,null,null,null,0,1,null,1,null,"фл.","Растворы"]
[null,null,"2018-09-27","Перчатки (нестер, латекс.)","Получено от поставщика","Склад",null,null,null,"2018-09-28",null,0,5000,null,5000,null,"пар.","Расходники"]
[null,null,"2018-09-27","Калия йодит (2%-200 мл.)","Операции со складом","Склад",null,null,null,null,117,2,null,2,0,null,"фл.","Растворы"]
[null,null,"2018-09-27","Кальция хлорид (2%-200мл.)","Операции со складом","Склад",null,null,null,null,117,1,null,1,0,null,"фл.","Растворы"]
[null,null,"2018-09-27","Натрия бромид (2%-200мл.)","Операции со складом","Склад",null,null,null,null,117,1,null,1,0,null,"фл.","Растворы"]
[null,null,"2018-09-27","Ватные шарики (стер., №20)","Операции со складом","Склад",null,null,null,null,118,240,null,120,120,null,"уп.","Расходники"]
[null,null,"2018-09-27","Пробирка для исследования сыворотки (1 мл., 13х75)","Операции со складом","Склад",null,null,null,null,118,500,null,500,0,null,"шт.","Расходники"]
[null,null,"2018-09-27","Пробирка ЭДТА-КЗ (1 мл., 13х75)","Операции со складом","Склад",null,null,null,null,118,500,null,500,0,null,"шт.","Расходники"]
[null,null,"2018-09-27","Маска медицинская трёхслойная, одноразовая","Операции со складом","Склад",null,null,null,null,119,1200,null,50,1150,null,"шт.","Расходники"]
[null,null,"2018-09-27","Салфетка (спанлейс, 30х40 см., 100 шт.)","Операции со складом","Склад",null,null,null,null,120,57,null,1,56,null,"уп.","Расходники"]
[null,null,"2018-09-27","Винпоцетин (таб., 5 мг., №50)","Операции со складом","ДС",null,null,null,null,121,2550,null,200,2350,null,"таб.","Медикаменты (ДС)"]
[null,null,"2018-09-27","Глицин (таб., 100 мг., №50)","Операции со складом","ДС",null,null,null,null,121,900,null,400,500,null,"таб.","Медикаменты (ДС)"]
[null,null,"2018-09-27","Мексидол (амп., 50 мг.- 2 мл., №10)","Операции со складом","ДС",null,null,null,null,121,180,null,20,160,null,"амп.","Медикаменты (ДС)"]
[null,null,"2018-09-27","Мексидол (таб., 125 мг., №50)","Операции со складом","ДС",null,null,null,null,121,1000,null,50,950,null,"таб.","Медикаменты (ДС)"]
[null,null,"2018-09-27","Пирацетам (таб/капс., 400 мг., №60)","Операции со складом","ДС",null,null,null,null,121,840,null,60,780,null,"капс.","Медикаменты (ДС)"]
[null,null,"2018-09-28","АДС-М","Получено от поставщика","Склад",null,null,null,null,null,300,20,null,320,null,"доз.","Вакцина"]
[null,null,"2018-09-28","Биолек-туберкулин","Получено от поставщика","Склад",null,null,null,null,null,0,1430,null,1430,null,"мл.","Вакцина"]
[null,null,"2018-09-28","Гепатит В","Получено от поставщика","Склад",null,null,null,null,null,90,100,null,190,null,"доз.","Вакцина"]
[null,null,"2018-09-28","Превенар-13","Получено от поставщика","Склад",null,null,null,null,null,0,200,null,200,null,"доз.","Вакцина"]
[null,null,"2018-09-28","АКДС","Операции со складом","Склад",null,null,null,null,122,280,null,100,180,null,"доз.","Вакцина"]
[null,null,"2018-09-28","АКДС-Гепатит В","Операции со складом","Склад",null,null,null,null,122,240,null,40,200,null,"доз.","Вакцина"]
[null,null,"2018-09-28","Би Вак полио","Операции со складом","Склад",null,null,null,null,122,600,null,100,500,null,"доз.","Вакцина"]
[null,null,"2018-09-28","Гепатит В","Операции со складом","Склад",null,null,null,null,122,190,null,10,180,null,"доз.","Вакцина"]
[null,null,"2018-09-28","Краснушная","Операции со складом","Склад",null,null,null,null,122,90,null,40,50,null,"доз.","Вакцина"]
[null,null,"2018-09-28","Паротитно-корьевая","Операции со складом","Склад",null,null,null,null,122,50,null,50,0,null,"доз.","Вакцина"]
[null,null,"2018-09-28","Перчатки (нестер, латекс.)","Операции со складом","Склад",null,null,null,null,122,5000,null,1000,4000,null,"пар.","Расходники"]
[null,null,"2018-09-28","Полимилекс","Операции со складом","Склад",null,null,null,null,122,225,null,30,195,null,"доз.","Вакцина"]
[null,null,"2018-09-28","Полотенце бумажное","Операции со складом","Склад",null,null,null,null,122,93,null,1,92,null,"уп.","Расходники"]
[null,null,"2018-09-28","Превенар-13","Операции со складом","Склад",null,null,null,null,122,200,null,60,140,null,"доз.","Вакцина"]
[null,null,"2018-09-28","Салфетка спиртовая (стер., 60х100 мм., 70%)","Операции со складом","Склад",null,null,null,null,122,9000,null,500,8500,null,"шт.","Расходники"]
[null,null,"2018-09-28","Шприц (2 мл.)","Операции со складом","Склад",null,null,null,null,122,1400,null,300,1100,null,"шт.","Расходники"]
[null,null,"2018-09-28","Краснушная","Операции со складом","Склад",null,null,null,null,123,50,null,10,40,null,"доз.","Вакцина"]
[null,null,"2018-09-28","Совигрипп","Операции со складом","Склад",null,null,null,null,123,360,null,90,270,null,"доз.","Вакцина"]

{"sheet":"Медикаменты","index":1,"n_rows":287,"n_cols":22,"rows_kept":287,"cut":false,"hidden":false,"merged":[]}
[null,null,null,null,null,null,null,null,"Место","Группы накладных","Наименование","Движение","Номер","Единицы измерения",null,null,"Вакцина",{"$f":"--Q2","v":"2018-08-01"},null,null,null,"Вакцина"]
[null,null,null,null,null,null,null,null,"Склад","Медикаменты","Адреналин гидрохлорид (р-р, 0,1%, 1 мл.)",{"$f":"SUMIFS(Главная_tb[Расход],Главная_tb[Наименование],Медикаменты!$K2,Главная_tb[Место],Медикаменты!$I2,Главная_tb[Дата],\">=\"&$R$1,Главная_tb[Дата],\"<=\"&$R$2)","v":0},{"$f":"IF(Медикаменты!$L2=0,0,COUNTIFS($J$2:J2,Медикаменты!$J2,$L$2:L2,\">\"&0))","v":0},"уп.",null,null,"Август 2018",{"$f":"EOMONTH(R1,0)","v":"2018-08-31"},null,null,null,"Дезсредства"]
[null,null,null,null,null,null,null,null,"Склад","Вакцина","АДС",{"$f":"SUMIFS(Главная_tb[Расход],Главная_tb[Наименование],Медикаменты!$K3,Главная_tb[Место],Медикаменты!$I3,Главная_tb[Дата],\">=\"&$R$1,Главная_tb[Дата],\"<=\"&$R$2)","v":0},{"$f":"IF(Медикаменты!$L3=0,0,COUNTIFS($J$2:J3,Медикаменты!$J3,$L$2:L3,\">\"&0))","v":0},"доз.",null,null,null,null,null,"Август 2018",null,"Медикаменты"]
[null,null,null,null,null,null,null,null,"Склад","Вакцина","АДС-М",{"$f":"SUMIFS(Главная_tb[Расход],Главная_tb[Наименование],Медикаменты!$K4,Главная_tb[Место],Медикаменты!$I4,Главная_tb[Дата],\">=\"&$R$1,Главная_tb[Дата],\"<=\"&$R$2)","v":140},{"$f":"IF(Медикаменты!$L4=0,0,COUNTIFS($J$2:J4,Медикаменты!$J4,$L$2:L4,\">\"&0))","v":1},"доз.",null,null,null,null,null,"Сентябрь 2018",null,"Медикаменты (ДС)"]
[null,null,null,null,null,null,null,null,"ДС","Медикаменты (ДС)","Азитромицин (таб., 125 мг, №6)",{"$f":"SUMIFS(Главная_tb[Расход],Главная_tb[Наименование],Медикаменты!$K5,Главная_tb[Место],Медикаменты!$I5,Главная_tb[Дата],\">=\"&$R$1,Главная_tb[Дата],\"<=\"&$R$2)","v":0},{"$f":"IF(Медикаменты!$L5=0,0,COUNTIFS($J$2:J5,Медикаменты!$J5,$L$2:L5,\">\"&0))","v":0},"таб.",null,null,null,null,null,null,null,"Растворы"]
[null,null,null,null,null,null,null,null,"Склад","Расходники","Азопирам реактив",{"$f":"SUMIFS(Главная_tb[Расход],Главная_tb[Наименование],Медикаменты!$K6,Главная_tb[Место],Медикаменты!$I6,Главная_tb[Дата],\">=\"&$R$1,Главная_tb[Дата],\"<=\"&$R$2)","v":0},{"$f":"IF(Медикаменты!$L6=0,0,COUNTIFS($J$2:J6,Медикаменты!$J6,$L$2:L6,\">\"&0))","v":0},"уп.",null,null,null,null,null,null,null,"Расходники"]
[null,null,null,null,null,null,null,null,"Склад","Вакцина","АКДС",{"$f":"SUMIFS(Главная_tb[Расход],Главная_tb[Наименование],Медикаменты!$K7,Главная_tb[Место],Медикаменты!$I7,Главная_tb[Дата],\">=\"&$R$1,Главная_tb[Дата],\"<=\"&$R$2)","v":300},{"$f":"IF(Медикаменты!$L7=0,0,COUNTIFS($J$2:J7,Медикаменты!$J7,$L$2:L7,\">\"&0))","v":2},"доз.",null,null,null,null,null,null,null,"Спирт"]
[null,null,null,null,null,null,null,null,"Склад","Вакцина","АКДС-Гепатит В",{"$f":"SUMIFS(Главная_tb[Расход],Главная_tb[Наименование],Медикаменты!$K8,Главная_tb[Место],Медикаменты!$I8,Главная_tb[Дата],\">=\"&$R$1,Главная_tb[Дата],\"<=\"&$R$2)","v":0},{"$f":"IF(Медикаменты!$L8=0,0,COUNTIFS($J$2:J8,Медикаменты!$J8,$L$2:L8,\">\"&0))","v":0},"доз."]
[null,null,null,null,null,null,null,null,"ДС","Медикаменты (ДС)","Актовегин (р-р, 5 мл., №5)",{"$f":"SUMIFS(Главная_tb[Расход],Главная_tb[Наименование],Медикаменты!$K9,Главная_tb[Место],Медикаменты!$I9,Главная_tb[Дата],\">=\"&$R$1,Главная_tb[Дата],\"<=\"&$R$2)","v":0},{"$f":"IF(Медикаменты!$L9=0,0,COUNTIFS($J$2:J9,Медикаменты!$J9,$L$2:L9,\">\"&0))","v":0},"амп."]
[null,null,null,null,null,null,null,null,"Склад","Вакцина","АКТ-Хиб",{"$f":"SUMIFS(Главная_tb[Расход],Главная_tb[Наименование],Медикаменты!$K10,Главная_tb[Место],Медикаменты!$I10,Главная_tb[Дата],\">=\"&$R$1,Главная_tb[Дата],\"<=\"&$R$2)","v":0},{"$f":"IF(Медикаменты!$L10=0,0,COUNTIFS($J$2:J10,Медикаменты!$J10,$L$2:L10,\">\"&0))","v":0},"доз."]
[null,null,null,null,null,null,null,null,"Склад","Аллергены","Аллерген из библиотечной пыли для диагностики",{"$f":"SUMIFS(Главная_tb[Расход],Главная_tb[Наименование],Медикаменты!$K11,Главная_tb[Место],Медикаменты!$I11,Главная_tb[Дата],\">=\"&$R$1,Главная_tb[Дата],\"<=\"&$R$2)","v":0},{"$f":"IF(Медикаменты!$L11=0,0,COUNTIFS($J$2:J11,Медикаменты!$J11,$L$2:L11,\">\"&0))","v":0},"копл."]
[null,null,null,null,null,null,null,null,"Склад","Аллергены","Аллерген из дафнии для диагностики",{"$f":"SUMIFS(Главная_tb[Расход],Главная_tb[Наименование],Медикаменты!$K12,Главная_tb[Место],Медикаменты!$I12,Главная_tb[Дата],\">=\"&$R$1,Главная_tb[Дата],\"<=\"&$R$2)","v":0},{"$f":"IF(Медикаменты!$L12=0,0,COUNTIFS($J$2:J12,Медикаменты!$J12,$L$2:L12,\">\"&0))","v":0},"копл."]
[null,null,null,null,null,null,null,null,"Склад","Аллергены","Аллерген из домашней пыли для диагностики",{"$f":"SUMIFS(Главная_tb[Расход],Главная_tb[Наименование],Медикаменты!$K13,Главная_tb[Место],Медикаменты!$I13,Главная_tb[Дата],\">=\"&$R$1,Главная_tb[Дата],\"<=\"&$R$2)","v":0},{"$f":"IF(Медикаменты!$L13=0,0,COUNTIFS($J$2:J13,Медикаменты!$J13,$L$2:L13,\">\"&0))","v":0},"копл."]
[null,null,null,null,null,null,null,null,"Склад","Аллергены","Аллерген из клеща Dermatophagoides pteronissinus для диагностики и лечения",{"$f":"SUMIFS(Главная_tb[Расход],Главная_tb[Наименование],Медикаменты!$K14,Главная_tb[Место],Медикаменты!$I14,Главная_tb[Дата],\">=\"&$R$1,Главная_tb[Дата],\"<=\"&$R$2)","v":0},{"$f":"IF(Медикаменты!$L14=0,0,COUNTIFS($J$2:J14,Медикаменты!$J14,$L$2:L14,\">\"&0))","v":0},"копл."]
[null,null,null,null,null,null,null,null,"Склад","Аллергены","Аллерген из пера подушек для диагностики и лечения",{"$f":"SUMIFS(Главная_tb[Расход],Главная_tb[Наименование],Медикаменты!$K15,Главная_tb[Место],Медикаменты!$I15,Главная_tb[Дата],\">=\"&$R$1,Главная_tb[Дата],\"<=\"&$R$2)","v":0},{"$f":"IF(Медикаменты!$L15=0,0,COUNTIFS($J$2:J15,Медикаменты!$J15,$L$2:L15,\">\"&0))","v":0},"копл."]
[null,null,null,null,null,null,null,null,"Склад","Аллергены","Аллерген из перхоти лошади для диагностики",{"$f":"SUMIFS(Главная_tb[Расход],Главная_tb[Наименование],Медикаменты!$K16,Главная_tb[Место],Медикаменты!$I16,Главная_tb[Дата],\">=\"&$R$1,Главная_tb[Дата],\"<=\"&$R$2)","v":0},{"$f":"IF(Медикаменты!$L16=0,0,COUNTIFS($J$2:J16,Медикаменты!$J16,$L$2:L16,\">\"&0))","v":0},"копл."]
[null,null,null,null,null,null,null,null,"Склад","Аллергены","Аллерген из пыльцы березы висячей для диагностики и лечения",{"$f":"SUMIFS(Главная_tb[Расход],Главная_tb[Наименование],Медикаменты!$K17,Главная_tb[Место],Медикаменты!$I17,Главная_tb[Дата],\">=\"&$R$1,Главная_tb[Дата],\"<=\"&$R$2)","v":0},{"$f":"IF(Медикаменты!$L17=0,0,COUNTIFS($J$2:J17,Медикаменты!$J17,$L$2:L17,\">\"&0))","v":0},"копл."]
[null,null,null,null,null,null,null,null,"Склад","Аллергены","Аллерген из пыльцы клена ясенелистного для диагностики и лечения",{"$f":"SUMIFS(Главная_tb[Расход],Главная_tb[Наименование],Медикаменты!$K18,Главная_tb[Место],Медикаменты!$I18,Главная_tb[Дата],\">=\"&$R$1,Главная_tb[Дата],\"<=\"&$R$2)","v":0},{"$f":"IF(Медикаменты!$L18=0,0,COUNTIFS($J$2:J18,Медикаменты!$J18,$L$2:L18,\">\"&0))","v":0},"копл."]
[null,null,null,null,null,null,null,null,"Склад","Аллергены","Аллерген из пыльцы лебеды татарской для диагностики и лечения",{"$f":"SUMIFS(Главная_tb[Расход],Главная_tb[Наименование],Медикаменты!$K19,Главная_tb[Место],Медикаменты!$I19,Главная_tb[Дата],\">=\"&$R$1,Главная_tb[Дата],\"<=\"&$R$2)","v":0},{"$f":"IF(Медикаменты!$L19=0,0,COUNTIFS($J$2:J19,Медикаменты!$J19,$L$2:L19,\">\"&0))","v":0},"копл."]
[null,null,null,null,null,null,null,null,"Склад","Аллергены","Аллерген из пыльцы луговых трав для диагностики и лечения",{"$f":"SUMIFS(Главная_tb[Расход],Главная_tb[Наименование],Медикаменты!$K20,Главная_tb[Место],Медикаменты!$I20,Главная_tb[Дата],\">=\"&$R$1,Главная_tb[Дата],\"<=\"&$R$2)","v":0},{"$f":"IF(Медикаменты!$L20=0,0,COUNTIFS($J$2:J20,Медикаменты!$J20,$L$2:L20,\">\"&0))","v":0},"копл."]
[null,null,null,null,null,null,null,null,"Склад","Аллергены","Аллерген из пыльцы одуванчика лекарственного для диагностики и лечения",{"$f":"SUMIFS(Главная_tb[Расход],Главная_tb[Наименование],Медикаменты!$K21,Главная_tb[Место],Медикаменты!$I21,Главная_tb[Дата],\">=\"&$R$1,Главная_tb[Дата],\"<=\"&$R$2)","v":0},{"$f":"IF(Медикаменты!$L21=0,0,COUNTIFS($J$2:J21,Медикаменты!$J21,$L$2:L21,\">\"&0))","v":0},"копл."]
[null,null,null,null,null,null,null,null,"Склад","Аллергены","Аллерген из пыльцы полыни горькой для диагностики и лечения",{"$f":"SUMIFS(Главная_tb[Расход],Главная_tb[Наименование],Медикаменты!$K22,Главная_tb[Место],Медикаменты!$I22,Главная_tb[Дата],\">=\"&$R$1,Главная_tb[Дата],\"<=\"&$R$2)","v":0},{"$f":"IF(Медикаменты!$L22=0,0,COUNTIFS($J$2:J22,Медикаменты!$J22,$L$2:L22,\">\"&0))","v":0},"копл."]
[null,null,null,null,null,null,null,null,"Склад","Аллергены","Аллерген эпидермальный из шерсти кошки для диагностики",{"$f":"SUMIFS(Главная_tb[Расход],Главная_tb[Наименование],Медикаменты!$K23,Главная_tb[Место],Медикаменты!$I23,Главная_tb[Дата],\">=\"&$R$1,Главная_tb[Дата],\"<=\"&$R$2)","v":0},{"$f":"IF(Медикаменты!$L23=0,0,COUNTIFS($J$2:J23,Медикаменты!$J23,$L$2:L23,\">\"&0))","v":0},"копл."]
[null,null,null,null,null,null,null,null,"Склад","Аллергены","Аллерген эпидермальный из шерсти собаки для диагностики",{"$f":"SUMIFS(Главная_tb[Расход],Главная_tb[Наименование],Медикаменты!$K24,Главная_tb[Место],Медикаменты!$I24,Главная_tb[Дата],\">=\"&$R$1,Главная_tb[Дата],\"<=\"&$R$2)","v":0},{"$f":"IF(Медикаменты!$L24=0,0,COUNTIFS($J$2:J24,Медикаменты!$J24,$L$2:L24,\">\"&0))","v":0},"копл."]
[null,null,null,null,null,null,null,null,"Склад","Вакцина","Альгавак М",{"$f":"SUMIFS(Главная_tb[Расход],Главная_tb[Наименование],Медикаменты!$K25,Главная_tb[Место],Медикаменты!$I25,Главная_tb[Дата],\">=\"&$R$1,Главная_tb[Дата],\"<=\"&$R$2)","v":0},{"$f":"IF(Медикаменты!$L25=0,0,COUNTIFS($J$2:J25,Медикаменты!$J25,$L$2:L25,\">\"&0))","v":0},"доз."]
[null,null,null,null,null,null,null,null,"Склад","Медикаменты","Амброксол (р-р, 7,5 мг./1 мл., 100 мл.)",{"$f":"SUMIFS(Главная_tb[Расход],Главная_tb[Наименование],Медикаменты!$K26,Главная_tb[Место],Медикаменты!$I26,Главная_tb[Дата],\">=\"&$R$1,Главная_tb[Дата],\"<=\"&$R$2)","v":5},{"$f":"IF(Медикаменты!$L26=0,0,COUNTIFS($J$2:J26,Медикаменты!$J26,$L$2:L26,\">\"&0))","v":1},"фл."]
[null,null,null,null,null,null,null,null,"Склад","Медикаменты","Аммиака раствор (10%, 40 мл.)",{"$f":"SUMIFS(Главная_tb[Расход],Главная_tb[Наименование],Медикаменты!$K27,Главная_tb[Место],Медикаменты!$I27,Главная_tb[Дата],\">=\"&$R$1,Главная_tb[Дата],\"<=\"&$R$2)","v":0},{"$f":"IF(Медикаменты!$L27=0,0,COUNTIFS($J$2:J27,Медикаменты!$J27,$L$2:L27,\">\"&0))","v":0},"фл."]
[null,null,null,null,null,null,null,null,"Склад","Медикаменты","Анальгин (р-р 500мг/мл, 2мл.№10)",{"$f":"SUMIFS(Главная_tb[Расход],Главная_tb[Наименование],Медикаменты!$K28,Главная_tb[Место],Медикаменты!$I28,Главная_tb[Дата],\">=\"&$R$1,Главная_tb[Дата],\"<=\"&$R$2)","v":0},{"$f":"IF(Медикаменты!$L28=0,0,COUNTIFS($J$2:J28,Медикаменты!$J28,$L$2:L28,\">\"&0))","v":0},"уп."]
[null,null,null,null,null,null,null,null,"Склад","Многоразовые расходники","Баллон Политцера с оливами",{"$f":"SUMIFS(Главная_tb[Расход],Главная_tb[Наименование],Медикаменты!$K29,Главная_tb[Место],Медикаменты!$I29,Главная_tb[Дата],\">=\"&$R$1,Главная_tb[Дата],\"<=\"&$R$2)","v":0},{"$f":"IF(Медикаменты!$L29=0,0,COUNTIFS($J$2:J29,Медикаменты!$J29,$L$2:L29,\">\"&0))","v":0},"набор"]
[null,null,null,null,null,null,null,null,"Склад","Расходники","Берет медицинский (однораз.)",{"$f":"SUMIFS(Главная_tb[Расход],Главная_tb[Наименование],Медикаменты!$K30,Главная_tb[Место],Медикаменты!$I30,Главная_tb[Дата],\">=\"&$R$1,Главная_tb[Дата],\"<=\"&$R$2)","v":0},{"$f":"IF(Медикаменты!$L30=0,0,COUNTIFS($J$2:J30,Медикаменты!$J30,$L$2:L30,\">\"&0))","v":0},"шт."]
[null,null,null,null,null,null,null,null,"Склад","Медикаменты","Беродуал (р-р флакон/кап. по 20 мл.)",{"$f":"SUMIFS(Главная_tb[Расход],Главная_tb[Наименование],Медикаменты!$K31,Главная_tb[Место],Медикаменты!$I31,Главная_tb[Дата],\">=\"&$R$1,Главная_tb[Дата],\"<=\"&$R$2)","v":5},{"$f":"IF(Медикаменты!$L31=0,0,COUNTIFS($J$2:J31,Медикаменты!$J31,$L$2:L31,\">\"&0))","v":2},"фл."]
[null,null,null,null,null,null,null,null,"Склад","Вакцина","Би Вак полио",{"$f":"SUMIFS(Главная_tb[Расход],Главная_tb[Наименование],Медикаменты!$K32,Главная_tb[Место],Медикаменты!$I32,Главная_tb[Дата],\">=\"&$R$1,Главная_tb[Дата],\"<=\"&$R$2)","v":200},{"$f":"IF(Медикаменты!$L32=0,0,COUNTIFS($J$2:J32,Медикаменты!$J32,$L$2:L32,\">\"&0))","v":3},"доз."]
[null,null,null,null,null,null,null,null,"Склад","Расходники","Бинт (нест.)",{"$f":"SUMIFS(Главная_tb[Расход],Главная_tb[Наименование],Медикаменты!$K33,Главная_tb[Место],Медикаменты!$I33,Главная_tb[Дата],\">=\"&$R$1,Главная_tb[Дата],\"<=\"&$R$2)","v":54},{"$f":"IF(Медикаменты!$L33=0,0,COUNTIFS($J$2:J33,Медикаменты!$J33,$L$2:L33,\">\"&0))","v":1},"шт."]
[null,null,null,null,null,null,null,null,"Склад","Расходники","Бинт (стер.)",{"$f":"SUMIFS(Главная_tb[Расход],Главная_tb[Наименование],Медикаменты!$K34,Главная_tb[Место],Медикаменты!$I34,Главная_tb[Дата],\">=\"&$R$1,Главная_tb[Дата],\"<=\"&$R$2)","v":7},{"$f":"IF(Медикаменты!$L34=0,0,COUNTIFS($J$2:J34,Медикаменты!$J34,$L$2:L34,\">\"&0))","v":2},"шт."]
[null,null,null,null,null,null,null,null,"Склад","Расходники","Бинт (фикс., 4 см х 4 м.)",{"$f":"SUMIFS(Главная_tb[Расход],Главная_tb[Наименование],Медикаменты!$K35,Главная_tb[Место],Медикаменты!$I35,Главная_tb[Дата],\">=\"&$R$1,Главная_tb[Дата],\"<=\"&$R$2)","v":0},{"$f":"IF(Медикаменты!$L35=0,0,COUNTIFS($J$2:J35,Медикаменты!$J35,$L$2:L35,\">\"&0))","v":0},"шт."]
[null,null,null,null,null,null,null,null,"Склад","Расходники","Бинт (фикс., 6 см х 4 м.)",{"$f":"SUMIFS(Главная_tb[Расход],Главная_tb[Наименование],Медикаменты!$K36,Главная_tb[Место],Медикаменты!$I36,Главная_tb[Дата],\">=\"&$R$1,Главная_tb[Дата],\"<=\"&$R$2)","v":0},{"$f":"IF(Медикаменты!$L36=0,0,COUNTIFS($J$2:J36,Медикаменты!$J36,$L$2:L36,\">\"&0))","v":0},"шт."]
[null,null,null,null,null,null,null,null,"Склад","Вакцина","Биолек-туберкулин",{"$f":"SUMIFS(Главная_tb[Расход],Главная_tb[Наименование],Медикаменты!$K37,Главная_tb[Место],Медикаменты!$I37,Главная_tb[Дата],\">=\"&$R$1,Главная_tb[Дата],\"<=\"&$R$2)","v":60},{"$f":"IF(Медикаменты!$L37=0,0,COUNTIFS($J$2:J37,Медикаменты!$J37,$L$2:L37,\">\"&0))","v":4},"мл."]
[null,null,null,null,null,null,null,null,"Склад","Расходники","Бонадерм - крем для рук восстанавливающий (100 мл.)",{"$f":"SUMIFS(Главная_tb[Расход],Главная_tb[Наименование],Медикаменты!$K38,Главная_tb[Место],Медикаменты!$I38,Главная_tb[Дата],\">=\"&$R$1,Главная_tb[Дата],\"<=\"&$R$2)","v":3},{"$f":"IF(Медикаменты!$L38=0,0,COUNTIFS($J$2:J38,Медикаменты!$J38,$L$2:L38,\">\"&0))","v":3},"шт."]
[null,null,null,null,null,null,null,null,"Склад","Дезсредства","Бонадерм-гель (100 мл.)",{"$f":"SUMIFS(Главная_tb[Расход],Главная_tb[Наименование],Медикаменты!$K39,Главная_tb[Место],Медикаменты!$I39,Главная_tb[Дата],\">=\"&$R$1,Главная_tb[Дата],\"<=\"&$R$2)","v":11},{"$f":"IF(Медикаменты!$L39=0,0,COUNTIFS($J$2:J39,Медикаменты!$J39,$L$2:L39,\">\"&0))","v":1},"шт."]
[null,null,null,null,null,null,null,null,"Склад","Дезсредства","Бонадерм-ИП салфетки (100 шт.)",{"$f":"SUMIFS(Главная_tb[Расход],Главная_tb[Наименование],Медикаменты!$K40,Главная_tb[Место],Медикаменты!$I40,Главная_tb[Дата],\">=\"&$R$1,Главная_tb[Дата],\"<=\"&$R$2)","v":10},{"$f":"IF(Медикаменты!$L40=0,0,COUNTIFS($J$2:J40,Медикаменты!$J40,$L$2:L40,\">\"&0))","v":2},"уп."]
[null,null,null,null,null,null,null,null,"Склад","Дезсредства","Бонадерм-Ультра (100 мл., с распыляющей насадкой)",{"$f":"SUMIFS(Главная_tb[Расход],Главная_tb[Наименование],Медикаменты!$K41,Главная_tb[Место],Медикаменты!$I41,Главная_tb[Дата],\">=\"&$R$1,Главная_tb[Дата],\"<=\"&$R$2)","v":2},{"$f":"IF(Медикаменты!$L41=0,0,COUNTIFS($J$2:J41,Медикаменты!$J41,$L$2:L41,\">\"&0))","v":3},"шт."]
[null,null,null,null,null,null,null,null,"Склад","Дезсредства","Бонадерм-Ультра (50 мл., с распыляющей насадкой)",{"$f":"SUMIFS(Главная_tb[Расход],Главная_tb[Наименование],Медикаменты!$K42,Главная_tb[Место],Медикаменты!$I42,Главная_tb[Дата],\">=\"&$R$1,Главная_tb[Дата],\"<=\"&$R$2)","v":1},{"$f":"IF(Медикаменты!$L42=0,0,COUNTIFS($J$2:J42,Медикаменты!$J42,$L$2:L42,\">\"&0))","v":4},"шт."]
[null,null,null,null,null,null,null,null,"Склад","Дезсредства","Бонацид (с распылителем, 0,5 л.)",{"$f":"SUMIFS(Главная_tb[Расход],Главная_tb[Наименование],Медикаменты!$K43,Главная_tb[Место],Медикаменты!$I43,Главная_tb[Дата],\">=\"&$R$1,Главная_tb[Дата],\"<=\"&$R$2)","v":0},{"$f":"IF(Медикаменты!$L43=0,0,COUNTIFS($J$2:J43,Медикаменты!$J43,$L$2:L43,\">\"&0))","v":0},"л."]
[null,null,null,null,null,null,null,null,"Склад","Медикаменты","Бриллиантовый зелёный (р-р 1%, 25мл.№1)",{"$f":"SUMIFS(Главная_tb[Расход],Главная_tb[Наименование],Медикаменты!$K44,Главная_tb[Место],Медикаменты!$I44,Главная_tb[Дата],\">=\"&$R$1,Главная_tb[Дата],\"<=\"&$R$2)","v":0},{"$f":"IF(Медикаменты!$L44=0,0,COUNTIFS($J$2:J44,Медикаменты!$J44,$L$2:L44,\">\"&0))","v":0},"фл."]
[null,null,null,null,null,null,null,null,"Склад","Медикаменты","Бриллиантовый зеленый (флак., 1%, 10 мл.)",{"$f":"SUMIFS(Главная_tb[Расход],Главная_tb[Наименование],Медикаменты!$K45,Главная_tb[Место],Медикаменты!$I45,Главная_tb[Дата],\">=\"&$R$1,Главная_tb[Дата],\"<=\"&$R$2)","v":0},{"$f":"IF(Медикаменты!$L45=0,0,COUNTIFS($J$2:J45,Медикаменты!$J45,$L$2:L45,\">\"&0))","v":0},"фл."]
[null,null,null,null,null,null,null,null,"ДС","Медикаменты (ДС)","Бромгексин (таб., 4 мг., № 50)",{"$f":"SUMIFS(Главная_tb[Расход],Главная_tb[Наименование],Медикаменты!$K46,Главная_tb[Место],Медикаменты!$I46,Главная_tb[Дата],\">=\"&$R$1,Главная_tb[Дата],\"<=\"&$R$2)","v":50},{"$f":"IF(Медикаменты!$L46=0,0,COUNTIFS($J$2:J46,Медикаменты!$J46,$L$2:L46,\">\"&0))","v":1},"таб."]
[null,null,null,null,null,null,null,null,"ДС","Медикаменты (ДС)","Бромгексин (таб., 8 мг., № 20)",{"$f":"SUMIFS(Главная_tb[Расход],Главная_tb[Наименование],Медикаменты!$K47,Главная_tb[Место],Медикаменты!$I47,Главная_tb[Дата],\">=\"&$R$1,Главная_tb[Дата],\"<=\"&$R$2)","v":0},{"$f":"IF(Медикаменты!$L47=0,0,COUNTIFS($J$2:J47,Медикаменты!$J47,$L$2:L47,\">\"&0))","v":0},"таб."]
[null,null,null,null,null,null,null,null,"Склад","Вакцина","Бубо-кок",{"$f":"SUMIFS(Главная_tb[Расход],Главная_tb[Наименование],Медикаменты!$K48,Главная_tb[Место],Медикаменты!$I48,Главная_tb[Дата],\">=\"&$R$1,Главная_tb[Дата],\"<=\"&$R$2)","v":30},{"$f":"IF(Медикаменты!$L48=0,0,COUNTIFS($J$2:J48,Медикаменты!$J48,$L$2:L48,\">\"&0))","v":5},"доз."]
[null,null,null,null,null,null,null,null,"Склад","Расходники","Бумага для спирографа Микролаб viasys (110*12*12)",{"$f":"SUMIFS(Главная_tb[Расход],Главная_tb[Наименование],Медикаменты!$K49,Главная_tb[Место],Медикаменты!$I49,Главная_tb[Дата],\">=\"&$R$1,Главная_tb[Дата],\"<=\"&$R$2)","v":3},{"$f":"IF(Медикаменты!$L49=0,0,COUNTIFS($J$2:J49,Медикаменты!$J49,$L$2:L49,\">\"&0))","v":4},"уп."]
[null,null,null,null,null,null,null,null,"Склад","Расходники","Бумага УЗИ сканер (20 м.)",{"$f":"SUMIFS(Главная_tb[Расход],Главная_tb[Наименование],Медикаменты!$K50,Главная_tb[Место],Медикаменты!$I50,Главная_tb[Дата],\">=\"&$R$1,Главная_tb[Дата],\"<=\"&$R$2)","v":0},{"$f":"IF(Медикаменты!$L50=0,0,COUNTIFS($J$2:J50,Медикаменты!$J50,$L$2:L50,\">\"&0))","v":0},"рул."]
[null,null,null,null,null,null,null,null,"Склад","Расходники","Бумага ЭКГ (110 мм. х 30 мм.)",{"$f":"SUMIFS(Главная_tb[Расход],Главная_tb[Наименование],Медикаменты!$K51,Главная_tb[Место],Медикаменты!$I51,Главная_tb[Дата],\">=\"&$R$1,Главная_tb[Дата],\"<=\"&$R$2)","v":0},{"$f":"IF(Медикаменты!$L51=0,0,COUNTIFS($J$2:J51,Медикаменты!$J51,$L$2:L51,\">\"&0))","v":0},"рул."]
[null,null,null,null,null,null,null,null,"Склад","Расходники","Бумага ЭКГ (80 мм. х 70 мм., 300 л.)",{"$f":"SUMIFS(Главная_tb[Расход],Главная_tb[Наименование],Медикаменты!$K52,Главная_tb[Место],Медикаменты!$I52,Главная_tb[Дата],\">=\"&$R$1,Главная_tb[Дата],\"<=\"&$R$2)","v":0},{"$f":"IF(Медикаменты!$L52=0,0,COUNTIFS($J$2:J52,Медикаменты!$J52,$L$2:L52,\">\"&0))","v":0},"уп."]
[null,null,null,null,null,null,null,null,"Склад","Вакцина","БЦЖ",{"$f":"SUMIFS(Главная_tb[Расход],Главная_tb[Наименование],Медикаменты!$K53,Главная_tb[Место],Медикаменты!$I53,Главная_tb[Дата],\">=\"&$R$1,Главная_tb[Дата],\"<=\"&$R$2)","v":5},{"$f":"IF(Медикаменты!$L53=0,0,COUNTIFS($J$2:J53,Медикаменты!$J53,$L$2:L53,\">\"&0))","v":6},"копл."]
[null,null,null,null,null,null,null,null,"Склад","Вакцина","БЦЖ-М",{"$f":"SUMIFS(Главная_tb[Расход],Главная_tb[Наименование],Медикаменты!$K54,Главная_tb[Место],Медикаменты!$I54,Главная_tb[Дата],\">=\"&$R$1,Главная_tb[Дата],\"<=\"&$R$2)","v":10},{"$f":"IF(Медикаменты!$L54=0,0,COUNTIFS($J$2:J54,Медикаменты!$J54,$L$2:L54,\">\"&0))","v":7},"копл."]
[null,null,null,null,null,null,null,null,"Склад","Медикаменты","Вазелин мазь (25 г.№1)",{"$f":"SUMIFS(Главная_tb[Расход],Главная_tb[Наименование],Медикаменты!$K55,Главная_tb[Место],Медикаменты!$I55,Главная_tb[Дата],\">=\"&$R$1,Главная_tb[Дата],\"<=\"&$R$2)","v":0},{"$f":"IF(Медикаменты!$L55=0,0,COUNTIFS($J$2:J55,Медикаменты!$J55,$L$2:L55,\">\"&0))","v":0},"шт."]
[null,null,null,null,null,null,null,null,"Склад","Медикаменты","Вазелиновое масло (100 мл.)",{"$f":"SUMIFS(Главная_tb[Расход],Главная_tb[Наименование],Медикаменты!$K56,Главная_tb[Место],Медикаменты!$I56,Главная_tb[Дата],\">=\"&$R$1,Главная_tb[Дата],\"<=\"&$R$2)","v":0},{"$f":"IF(Медикаменты!$L56=0,0,COUNTIFS($J$2:J56,Медикаменты!$J56,$L$2:L56,\">\"&0))","v":0},"шт."]
[null,null,null,null,null,null,null,null,"ДС","Медикаменты (ДС)","Валериана (20 мг., №50)",{"$f":"SUMIFS(Главная_tb[Расход],Главная_tb[Наименование],Медикаменты!$K57,Главная_tb[Место],Медикаменты!$I57,Главная_tb[Дата],\">=\"&$R$1,Главная_tb[Дата],\"<=\"&$R$2)","v":0},{"$f":"IF(Медикаменты!$L57=0,0,COUNTIFS($J$2:J57,Медикаменты!$J57,$L$2:L57,\">\"&0))","v":0},"таб."]
[null,null,null,null,null,null,null,null,"Склад","Медикаменты","Валерианы настойка (25 мл.№1)",{"$f":"SUMIFS(Главная_tb[Расход],Главная_tb[Наименование],Медикаменты!$K58,Главная_tb[Место],Медикаменты!$I58,Главная_tb[Дата],\">=\"&$R$1,Главная_tb[Дата],\"<=\"&$R$2)","v":0},{"$f":"IF(Медикаменты!$L58=0,0,COUNTIFS($J$2:J58,Медикаменты!$J58,$L$2:L58,\">\"&0))","v":0},"фл."]
[null,null,null,null,null,null,null,null,"Склад","Расходники","Вата (нест. 100 гр.)",{"$f":"SUMIFS(Главная_tb[Расход],Главная_tb[Наименование],Медикаменты!$K59,Главная_tb[Место],Медикаменты!$I59,Главная_tb[Дата],\">=\"&$R$1,Главная_tb[Дата],\"<=\"&$R$2)","v":0},{"$f":"IF(Медикаменты!$L59=0,0,COUNTIFS($J$2:J59,Медикаменты!$J59,$L$2:L59,\">\"&0))","v":0},"гр."]
[null,null,null,null,null,null,null,null,"Склад","Расходники","Вата (нест. 250 гр.)",{"$f":"SUMIFS(Главная_tb[Расход],Главная_tb[Наименование],Медикаменты!$K60,Главная_tb[Место],Медикаменты!$I60,Главная_tb[Дата],\">=\"&$R$1,Главная_tb[Дата],\"<=\"&$R$2)","v":250},{"$f":"IF(Медикаменты!$L60=0,0,COUNTIFS($J$2:J60,Медикаменты!$J60,$L$2:L60,\">\"&0))","v":5},"гр."]
[null,null,null,null,null,null,null,null,"Склад","Расходники","Вата (стер. 100 гр.)",{"$f":"SUMIFS(Главная_tb[Расход],Главная_tb[Наименование],Медикаменты!$K61,Главная_tb[Место],Медикаменты!$I61,Главная_tb[Дата],\">=\"&$R$1,Главная_tb[Дата],\"<=\"&$R$2)","v":0},{"$f":"IF(Медикаменты!$L61=0,0,COUNTIFS($J$2:J61,Медикаменты!$J61,$L$2:L61,\">\"&0))","v":0},"гр."]
[null,null,null,null,null,null,null,null,"Склад","Расходники","Ватные палочки, ушные (100 шт.)",{"$f":"SUMIFS(Главная_tb[Расход],Главная_tb[Наименование],Медикаменты!$K62,Главная_tb[Место],Медикаменты!$I62,Главная_tb[Дата],\">=\"&$R$1,Главная_tb[Дата],\"<=\"&$R$2)","v":0},{"$f":"IF(Медикаменты!$L62=0,0,COUNTIFS($J$2:J62,Медикаменты!$J62,$L$2:L62,\">\"&0))","v":0},"уп."]
[null,null,null,null,null,null,null,null,"Склад","Расходники","Ватные шарики (стер., №20)",{"$f":"SUMIFS(Главная_tb[Расход],Главная_tb[Наименование],Медикаменты!$K63,Главная_tb[Место],Медикаменты!$I63,Главная_tb[Дата],\">=\"&$R$1,Главная_tb[Дата],\"<=\"&$R$2)","v":0},{"$f":"IF(Медикаменты!$L63=0,0,COUNTIFS($J$2:J63,Медикаменты!$J63,$L$2:L63,\">\"&0))","v":0},"уп."]
[null,null,null,null,null,null,null,null,"Склад","Медикаменты","Вентолин Небулы (амп., для ингаляций 1 мг/мл., 2,5 мл. № 20)",{"$f":"SUMIFS(Главная_tb[Расход],Главная_tb[Наименование],Медикаменты!$K64,Главная_tb[Место],Медикаменты!$I64,Главная_tb[Дата],\">=\"&$R$1,Главная_tb[Дата],\"<=\"&$R$2)","v":3},{"$f":"IF(Медикаменты!$L64=0,0,COUNTIFS($J$2:J64,Медикаменты!$J64,$L$2:L64,\">\"&0))","v":3},"уп."]
[null,null,null,null,null,null,null,null,"ДС","Медикаменты (ДС)","Винпоцетин (таб., 5 мг., №50)",{"$f":"SUMIFS(Главная_tb[Расход],Главная_tb[Наименование],Медикаменты!$K65,Главная_tb[Место],Медикаменты!$I65,Главная_tb[Дата],\">=\"&$R$1,Главная_tb[Дата],\"<=\"&$R$2)","v":0},{"$f":"IF(Медикаменты!$L65=0,0,COUNTIFS($J$2:J65,Медикаменты!$J65,$L$2:L65,\">\"&0))","v":0},"таб."]
[null,null,null,null,null,null,null,null,"ДС","Медикаменты (ДС)","Винпоцетин-АКОС (амп., 2 мл., №10)",{"$f":"SUMIFS(Главная_tb[Расход],Главная_tb[Наименование],Медикаменты!$K66,Главная_tb[Место],Медикаменты!$I66,Главная_tb[Дата],\">=\"&$R$1,Главная_tb[Дата],\"<=\"&$R$2)","v":0},{"$f":"IF(Медикаменты!$L66=0,0,COUNTIFS($J$2:J66,Медикаменты!$J66,$L$2:L66,\">\"&0))","v":0},"амп."]
[null,null,null,null,null,null,null,null,"Склад","Медикаменты","Вода д/ин. (5 мл.№10)",{"$f":"SUMIFS(Главная_tb[Расход],Главная_tb[Наименование],Медикаменты!$K67,Главная_tb[Место],Медикаменты!$I67,Главная_tb[Дата],\">=\"&$R$1,Главная_tb[Дата],\"<=\"&$R$2)","v":0},{"$f":"IF(Медикаменты!$L67=0,0,COUNTIFS($J$2:J67,Медикаменты!$J67,$L$2:L67,\">\"&0))","v":0},"уп."]
[null,null,null,null,null,null,null,null,"Склад","Растворы","Вода очищенна (200 мл.)",{"$f":"SUMIFS(Главная_tb[Расход],Главная_tb[Наименование],Медикаменты!$K68,Главная_tb[Место],Медикаменты!$I68,Главная_tb[Дата],\">=\"&$R$1,Главная_tb[Дата],\"<=\"&$R$2)","v":54},{"$f":"IF(Медикаменты!$L68=0,0,COUNTIFS($J$2:J68,Медикаменты!$J68,$L$2:L68,\">\"&0))","v":1},"фл."]
[null,null,null,null,null,null,null,null,"Склад","Многоразовые расходники","Воронка ушная (1-4 мм.)",{"$f":"SUMIFS(Главная_tb[Расход],Главная_tb[Наименование],Медикаменты!$K69,Главная_tb[Место],Медикаменты!$I69,Главная_tb[Дата],\">=\"&$R$1,Главная_tb[Дата],\"<=\"&$R$2)","v":0},{"$f":"IF(Медикаменты!$L69=0,0,COUNTIFS($J$2:J69,Медикаменты!$J69,$L$2:L69,\">\"&0))","v":0},"шт."]
[null,null,null,null,null,null,null,null,"Склад","Многоразовые расходники","Воронка ушная (2-5 мм.)",{"$f":"SUMIFS(Главная_tb[Расход],Главная_tb[Наименование],Медикаменты!$K70,Главная_tb[Место],Медикаменты!$I70,Главная_tb[Дата],\">=\"&$R$1,Главная_tb[Дата],\"<=\"&$R$2)","v":0},{"$f":"IF(Медикаменты!$L70=0,0,COUNTIFS($J$2:J70,Медикаменты!$J70,$L$2:L70,\">\"&0))","v":0},"шт."]
[null,null,null,null,null,null,null,null,"Склад","Расходники","Гель для УЗИ (1 л.)",{"$f":"SUMIFS(Главная_tb[Расход],Главная_tb[Наименование],Медикаменты!$K71,Главная_tb[Место],Медикаменты!$I71,Главная_tb[Дата],\">=\"&$R$1,Главная_tb[Дата],\"<=\"&$R$2)","v":0},{"$f":"IF(Медикаменты!$L71=0,0,COUNTIFS($J$2:J71,Медикаменты!$J71,$L$2:L71,\">\"&0))","v":0},"л."]
[null,null,null,null,null,null,null,null,"Склад","Расходники","Гель для УЗИ (5 л.)",{"$f":"SUMIFS(Главная_tb[Расход],Главная_tb[Наименование],Медикаменты!$K72,Главная_tb[Место],Медикаменты!$I72,Главная_tb[Дата],\">=\"&$R$1,Главная_tb[Дата],\"<=\"&$R$2)","v":0},{"$f":"IF(Медикаменты!$L72=0,0,COUNTIFS($J$2:J72,Медикаменты!$J72,$L$2:L72,\">\"&0))","v":0},"л."]
[null,null,null,null,null,null,null,null,"Склад","Вакцина","Гепатит В",{"$f":"SUMIFS(Главная_tb[Расход],Главная_tb[Наименование],Медикаменты!$K73,Главная_tb[Место],Медикаменты!$I73,Главная_tb[Дата],\">=\"&$R$1,Главная_tb[Дата],\"<=\"&$R$2)","v":160},{"$f":"IF(Медикаменты!$L73=0,0,COUNTIFS($J$2:J73,Медикаменты!$J73,$L$2:L73,\">\"&0))","v":8},"доз."]
[null,null,null,null,null,null,null,null,"ДС","Медикаменты (ДС)","Гипотиазид (таб., 25 мг., №20)",{"$f":"SUMIFS(Главная_tb[Расход],Главная_tb[Наименование],Медикаменты!$K74,Главная_tb[Место],Медикаменты!$I74,Главная_tb[Дата],\">=\"&$R$1,Главная_tb[Дата],\"<=\"&$R$2)","v":0},{"$f":"IF(Медикаменты!$L74=0,0,COUNTIFS($J$2:J74,Медикаменты!$J74,$L$2:L74,\">\"&0))","v":0},"таб."]
[null,null,null,null,null,null,null,null,"Склад","Аллергены","Гистамин дигидрохлорид 0,1% раствор (аллерген)",{"$f":"SUMIFS(Главная_tb[Расход],Главная_tb[Наименование],Медикаменты!$K75,Главная_tb[Место],Медикаменты!$I75,Главная_tb[Дата],\">=\"&$R$1,Главная_tb[Дата],\"<=\"&$R$2)","v":0},{"$f":"IF(Медикаменты!$L75=0,0,COUNTIFS($J$2:J75,Медикаменты!$J75,$L$2:L75,\">\"&0))","v":0},"копл."]
[null,null,null,null,null,null,null,null,"ДС","Медикаменты (ДС)","Глицин (таб., 100 мг., №50)",{"$f":"SUMIFS(Главная_tb[Расход],Главная_tb[Наименование],Медикаменты!$K76,Главная_tb[Место],Медикаменты!$I76,Главная_tb[Дата],\">=\"&$R$1,Главная_tb[Дата],\"<=\"&$R$2)","v":300},{"$f":"IF(Медикаменты!$L76=0,0,COUNTIFS($J$2:J76,Медикаменты!$J76,$L$2:L76,\">\"&0))","v":2},"таб."]
[null,null,null,null,null,null,null,null,"Склад","Вакцина","Гриппол",{"$f":"SUMIFS(Главная_tb[Расход],Главная_tb[Наименование],Медикаменты!$K77,Главная_tb[Место],Медикаменты!$I77,Главная_tb[Дата],\">=\"&$R$1,Главная_tb[Дата],\"<=\"&$R$2)","v":0},{"$f":"IF(Медикаменты!$L77=0,0,COUNTIFS($J$2:J77,Медикаменты!$J77,$L$2:L77,\">\"&0))","v":0},"доз."]
[null,null,null,null,null,null,null,null,"Склад","Медикаменты","Грудной сбор №4",{"$f":"SUMIFS(Главная_tb[Расход],Главная_tb[Наименование],Медикаменты!$K78,Главная_tb[Место],Медикаменты!$I78,Главная_tb[Дата],\">=\"&$R$1,Главная_tb[Дата],\"<=\"&$R$2)","v":2},{"$f":"IF(Медикаменты!$L78=0,0,COUNTIFS($J$2:J78,Медикаменты!$J78,$L$2:L78,\">\"&0))","v":4},"уп."]
[null,null,null,null,null,null,null,null,"Склад","Расходники","Губка гемостатическая коллагеновая (90х90 мм., №1)",{"$f":"SUMIFS(Главная_tb[Расход],Главная_tb[Наименование],Медикаменты!$K79,Главная_tb[Место],Медикаменты!$I79,Главная_tb[Дата],\">=\"&$R$1,Главная_tb[Дата],\"<=\"&$R$2)","v":0},{"$f":"IF(Медикаменты!$L79=0,0,COUNTIFS($J$2:J79,Медикаменты!$J79,$L$2:L79,\">\"&0))","v":0},"уп."]
[null,null,null,null,null,null,null,null,"Склад","Медикаменты","Дексаметазон (р-р д/ин., 4мг/мл., 1 мл.№25)",{"$f":"SUMIFS(Главная_tb[Расход],Главная_tb[Наименование],Медикаменты!$K80,Главная_tb[Место],Медикаменты!$I80,Главная_tb[Дата],\">=\"&$R$1,Главная_tb[Дата],\"<=\"&$R$2)","v":0},{"$f":"IF(Медикаменты!$L80=0,0,COUNTIFS($J$2:J80,Медикаменты!$J80,$L$2:L80,\">\"&0))","v":0},"уп."]
[null,null,null,null,null,null,null,null,"Склад","Медикаменты","Дексаметазон (сусп., 5 мл., №1)",{"$f":"SUMIFS(Главная_tb[Расход],Главная_tb[Наименование],Медикаменты!$K81,Главная_tb[Место],Медикаменты!$I81,Главная_tb[Дата],\">=\"&$R$1,Главная_tb[Дата],\"<=\"&$R$2)","v":0},{"$f":"IF(Медикаменты!$L81=0,0,COUNTIFS($J$2:J81,Медикаменты!$J81,$L$2:L81,\">\"&0))","v":0},"уп."]
[null,null,null,null,null,null,null,null,"Склад","Вакцина","Диаскинтест",{"$f":"SUMIFS(Главная_tb[Расход],Главная_tb[Наименование],Медикаменты!$K82,Главная_tb[Место],Медикаменты!$I82,Главная_tb[Дата],\">=\"&$R$1,Главная_tb[Дата],\"<=\"&$R$2)","v":300},{"$f":"IF(Медикаменты!$L82=0,0,COUNTIFS($J$2:J82,Медикаменты!$J82,$L$2:L82,\">\"&0))","v":9},"доз."]
[null,null,null,null,null,null,null,null,"ДС","Медикаменты (ДС)","Диклофенак (75 мг., №10)",{"$f":"SUMIFS(Главная_tb[Расход],Главная_tb[Наименование],Медикаменты!$K83,Главная_tb[Место],Медикаменты!$I83,Главная_tb[Дата],\">=\"&$R$1,Главная_tb[Дата],\"<=\"&$R$2)","v":0},{"$f":"IF(Медикаменты!$L83=0,0,COUNTIFS($J$2:J83,Медикаменты!$J83,$L$2:L83,\">\"&0))","v":0},"таб."]
[null,null,null,null,null,null,null,null,"Склад","Медикаменты","Димексид (100 мл.)",{"$f":"SUMIFS(Главная_tb[Расход],Главная_tb[Наименование],Медикаменты!$K84,Главная_tb[Место],Медикаменты!$I84,Главная_tb[Дата],\">=\"&$R$1,Главная_tb[Дата],\"<=\"&$R$2)","v":0},{"$f":"IF(Медикаменты!$L84=0,0,COUNTIFS($J$2:J84,Медикаменты!$J84,$L$2:L84,\">\"&0))","v":0},"фл."]
[null,null,null,null,null,null,null,null,"Склад","Растворы","Дисоль (р-р д/инф., 400 мл.)",{"$f":"SUMIFS(Главная_tb[Расход],Главная_tb[Наименование],Медикаменты!$K85,Главная_tb[Место],Медикаменты!$I85,Главная_tb[Дата],\">=\"&$R$1,Главная_tb[Дата],\"<=\"&$R$2)","v":0},{"$f":"IF(Медикаменты!$L85=0,0,COUNTIFS($J$2:J85,Медикаменты!$J85,$L$2:L85,\">\"&0))","v":0},"фл."]
[null,null,null,null,null,null,null,null,"Склад","Медикаменты","Доксициклин (таб., 100 мг.)",{"$f":"SUMIFS(Главная_tb[Расход],Главная_tb[Наименование],Медикаменты!$K86,Главная_tb[Место],Медикаменты!$I86,Главная_tb[Дата],\">=\"&$R$1,Главная_tb[Дата],\"<=\"&$R$2)","v":0},{"$f":"IF(Медикаменты!$L86=0,0,COUNTIFS($J$2:J86,Медикаменты!$J86,$L$2:L86,\">\"&0))","v":0},"таб."]
[null,null,null,null,null,null,null,null,"ДС","Медикаменты (ДС)","Дюфастон (таб., 10 мг., №20)",{"$f":"SUMIFS(Главная_tb[Расход],Главная_tb[Наименование],Медикаменты!$K87,Главная_tb[Место],Медикаменты!$I87,Главная_tb[Дата],\">=\"&$R$1,Главная_tb[Дата],\"<=\"&$R$2)","v":0},{"$f":"IF(Медикаменты!$L87=0,0,COUNTIFS($J$2:J87,Медикаменты!$J87,$L$2:L87,\">\"&0))","v":0},"таб."]
[null,null,null,null,null,null,null,null,"Склад","Расходники","Зеркало гинекологическое \"Куско\"",{"$f":"SUMIFS(Главная_tb[Расход],Главная_tb[Наименование],Медикаменты!$K88,Главная_tb[Место],Медикаменты!$I88,Главная_tb[Дата],\">=\"&$R$1,Главная_tb[Дата],\"<=\"&$R$2)","v":100},{"$f":"IF(Медикаменты!$L88=0,0,COUNTIFS($J$2:J88,Медикаменты!$J88,$L$2:L88,\">\"&0))","v":6},"шт."]
[null,null,null,null,null,null,null,null,"Склад","Расходники","Зонд урогенитальный (стер., однораз.)",{"$f":"SUMIFS(Главная_tb[Расход],Главная_tb[Наименование],Медикаменты!$K89,Главная_tb[Место],Медикаменты!$I89,Главная_tb[Дата],\">=\"&$R$1,Главная_tb[Дата],\"<=\"&$R$2)","v":0},{"$f":"IF(Медикаменты!$L89=0,0,COUNTIFS($J$2:J89,Медикаменты!$J89,$L$2:L89,\">\"&0))","v":0},"шт."]
[null,null,null,null,null,null,null,null,"Склад","Расходники","Игла с визуальной камерой Vacuette (0,8х38 мм (21Gх1 ½), 100 шт.)",{"$f":"SUMIFS(Главная_tb[Расход],Главная_tb[Наименование],Медикаменты!$K90,Главная_tb[Место],Медикаменты!$I90,Главная_tb[Дата],\">=\"&$R$1,Главная_tb[Дата],\"<=\"&$R$2)","v":30},{"$f":"IF(Медикаменты!$L90=0,0,COUNTIFS($J$2:J90,Медикаменты!$J90,$L$2:L90,\">\"&0))","v":7},"уп."]
[null,null,null,null,null,null,null,null,"Склад","Медикаменты","Йода р-р спиртовой (5 %,10 мл.№1)",{"$f":"SUMIFS(Главная_tb[Расход],Главная_tb[Наименование],Медикаменты!$K91,Главная_tb[Место],Медикаменты!$I91,Главная_tb[Дата],\">=\"&$R$1,Главная_tb[Дата],\"<=\"&$R$2)","v":0},{"$f":"IF(Медикаменты!$L91=0,0,COUNTIFS($J$2:J91,Медикаменты!$J91,$L$2:L91,\">\"&0))","v":0},"фл."]
[null,null,null,null,null,null,null,null,"Склад","Вакцина","ИПВ-Имовакс полио",{"$f":"SUMIFS(Главная_tb[Расход],Главная_tb[Наименование],Медикаменты!$K92,Главная_tb[Место],Медикаменты!$I92,Главная_tb[Дата],\">=\"&$R$1,Главная_tb[Дата],\"<=\"&$R$2)","v":0},{"$f":"IF(Медикаменты!$L92=0,0,COUNTIFS($J$2:J92,Медикаменты!$J92,$L$2:L92,\">\"&0))","v":0},"доз."]
[null,null,null,null,null,null,null,null,"Склад","Вакцина","ИПВ-полиорикс",{"$f":"SUMIFS(Главная_tb[Расход],Главная_tb[Наименование],Медикаменты!$K93,Главная_tb[Место],Медикаменты!$I93,Главная_tb[Дата],\">=\"&$R$1,Главная_tb[Дата],\"<=\"&$R$2)","v":0},{"$f":"IF(Медикаменты!$L93=0,0,COUNTIFS($J$2:J93,Медикаменты!$J93,$L$2:L93,\">\"&0))","v":0},"доз."]
[null,null,null,null,null,null,null,null,"ДС","Медикаменты (ДС)","Кавинтон (амп., 10 мг., 2 мл., №10)",{"$f":"SUMIFS(Главная_tb[Расход],Главная_tb[Наименование],Медикаменты!$K94,Главная_tb[Место],Медикаменты!$I94,Главная_tb[Дата],\">=\"&$R$1,Главная_tb[Дата],\"<=\"&$R$2)","v":10},{"$f":"IF(Медикаменты!$L94=0,0,COUNTIFS($J$2:J94,Медикаменты!$J94,$L$2:L94,\">\"&0))","v":3},"амп."]
[null,null,null,null,null,null,null,null,"ДС","Медикаменты (ДС)","Кавинтон (таб. 5 мг., №50)",{"$f":"SUMIFS(Главная_tb[Расход],Главная_tb[Наименование],Медикаменты!$K95,Главная_tb[Место],Медикаменты!$I95,Главная_tb[Дата],\">=\"&$R$1,Главная_tb[Дата],\"<=\"&$R$2)","v":0},{"$f":"IF(Медикаменты!$L95=0,0,COUNTIFS($J$2:J95,Медикаменты!$J95,$L$2:L95,\">\"&0))","v":0},"таб."]
[null,null,null,null,null,null,null,null,"Склад","Растворы","Калия йодит (2%-200 мл.)",{"$f":"SUMIFS(Главная_tb[Расход],Главная_tb[Наименование],Медикаменты!$K96,Главная_tb[Место],Медикаменты!$I96,Главная_tb[Дата],\">=\"&$R$1,Главная_tb[Дата],\"<=\"&$R$2)","v":3},{"$f":"IF(Медикаменты!$L96=0,0,COUNTIFS($J$2:J96,Медикаменты!$J96,$L$2:L96,\">\"&0))","v":2},"фл."]
[null,null,null,null,null,null,null,null,"Склад","Растворы","Калия перманганат (0,05)",{"$f":"SUMIFS(Главная_tb[Расход],Главная_tb[Наименование],Медикаменты!$K97,Главная_tb[Место],Медикаменты!$I97,Главная_tb[Дата],\">=\"&$R$1,Главная_tb[Дата],\"<=\"&$R$2)","v":10},{"$f":"IF(Медикаменты!$L97=0,0,COUNTIFS($J$2:J97,Медикаменты!$J97,$L$2:L97,\">\"&0))","v":3},"фл."]
[null,null,null,null,null,null,null,null,"ДС","Медикаменты (ДС)","Кальция хлорид (10%, 5,0 №10)",{"$f":"SUMIFS(Главная_tb[Расход],Главная_tb[Наименование],Медикаменты!$K98,Главная_tb[Место],Медикаменты!$I98,Главная_tb[Дата],\">=\"&$R$1,Главная_tb[Дата],\"<=\"&$R$2)","v":30},{"$f":"IF(Медикаменты!$L98=0,0,COUNTIFS($J$2:J98,Медикаменты!$J98,$L$2:L98,\">\"&0))","v":4},"амп."]
[null,null,null,null,null,null,null,null,"Склад","Растворы","Кальция хлорид (2%-200мл.)",{"$f":"SUMIFS(Главная_tb[Расход],Главная_tb[Наименование],Медикаменты!$K99,Главная_tb[Место],Медикаменты!$I99,Главная_tb[Дата],\">=\"&$R$1,Главная_tb[Дата],\"<=\"&$R$2)","v":3},{"$f":"IF(Медикаменты!$L99=0,0,COUNTIFS($J$2:J99,Медикаменты!$J99,$L$2:L99,\">\"&0))","v":4},"фл."]
[null,null,null,null,null,null,null,null,"Склад","Расходники","Катетер урологический (женский, стер.)",{"$f":"SUMIFS(Главная_tb[Расход],Главная_tb[Наименование],Медикаменты!$K100,Главная_tb[Место],Медикаменты!$I100,Главная_tb[Дата],\">=\"&$R$1,Главная_tb[Дата],\"<=\"&$R$2)","v":0},{"$f":"IF(Медикаменты!$L100=0,0,COUNTIFS($J$2:J100,Медикаменты!$J100,$L$2:L100,\">\"&0))","v":0},"шт."]
[null,null,null,null,null,null,null,null,"Склад","Растворы","Кислота уксусная (р-р, 100 мл.)",{"$f":"SUMIFS(Главная_tb[Расход],Главная_tb[Наименование],Медикаменты!$K101,Главная_tb[Место],Медикаменты!$I101,Главная_tb[Дата],\">=\"&$R$1,Главная_tb[Дата],\"<=\"&$R$2)","v":1},{"$f":"IF(Медикаменты!$L101=0,0,COUNTIFS($J$2:J101,Медикаменты!$J101,$L$2:L101,\">\"&0))","v":5},"фл."]
[null,null,null,null,null,null,null,null,"Склад","Вакцина","Клещ Э вак",{"$f":"SUMIFS(Главная_tb[Расход],Главная_tb[Наименование],Медикаменты!$K102,Главная_tb[Место],Медикаменты!$I102,Главная_tb[Дата],\">=\"&$R$1,Главная_tb[Дата],\"<=\"&$R$2)","v":0},{"$f":"IF(Медикаменты!$L102=0,0,COUNTIFS($J$2:J102,Медикаменты!$J102,$L$2:L102,\">\"&0))","v":0},"доз."]
[null,null,null,null,null,null,null,null,"Склад","Растворы","Колларгол (р-р, 10 мл.)",{"$f":"SUMIFS(Главная_tb[Расход],Главная_tb[Наименование],Медикаменты!$K103,Главная_tb[Место],Медикаменты!$I103,Главная_tb[Дата],\">=\"&$R$1,Главная_tb[Дата],\"<=\"&$R$2)","v":1},{"$f":"IF(Медикаменты!$L103=0,0,COUNTIFS($J$2:J103,Медикаменты!$J103,$L$2:L103,\">\"&0))","v":6},"фл."]
[null,null,null,null,null,null,null,null,"Склад","Расходники","Контейнер для сбора кала (стер., 40 мл.)",{"$f":"SUMIFS(Главная_tb[Расход],Главная_tb[Наименование],Медикаменты!$K104,Главная_tb[Место],Медикаменты!$I104,Главная_tb[Дата],\">=\"&$R$1,Главная_tb[Дата],\"<=\"&$R$2)","v":0},{"$f":"IF(Медикаменты!$L104=0,0,COUNTIFS($J$2:J104,Медикаменты!$J104,$L$2:L104,\">\"&0))","v":0},"шт."]
[null,null,null,null,null,null,null,null,"Склад","Расходники","Контейнер для сбора мочи (стер., 100 мл.)",{"$f":"SUMIFS(Главная_tb[Расход],Главная_tb[Наименование],Медикаменты!$K105,Главная_tb[Место],Медикаменты!$I105,Главная_tb[Дата],\">=\"&$R$1,Главная_tb[Дата],\"<=\"&$R$2)","v":0},{"$f":"IF(Медикаменты!$L105=0,0,COUNTIFS($J$2:J105,Медикаменты!$J105,$L$2:L105,\">\"&0))","v":0},"шт."]
[null,null,null,null,null,null,null,null,"Склад","Расходники","Контейнер для утилизации отходов МК-01 (однораз., желтый, 0,25 л.)",{"$f":"SUMIFS(Главная_tb[Расход],Главная_tb[Наименование],Медикаменты!$K106,Главная_tb[Место],Медикаменты!$I106,Главная_tb[Дата],\">=\"&$R$1,Главная_tb[Дата],\"<=\"&$R$2)","v":0},{"$f":"IF(Медикаменты!$L106=0,0,COUNTIFS($J$2:J106,Медикаменты!$J106,$L$2:L106,\">\"&0))","v":0},"шт."]
[null,null,null,null,null,null,null,null,"Склад","Расходники","Контейнер для утилизации отходов МК-01 (однораз., желтый, 0,5 л.)",{"$f":"SUMIFS(Главная_tb[Расход],Главная_tb[Наименование],Медикаменты!$K107,Главная_tb[Место],Медикаменты!$I107,Главная_tb[Дата],\">=\"&$R$1,Главная_tb[Дата],\"<=\"&$R$2)","v":0},{"$f":"IF(Медикаменты!$L107=0,0,COUNTIFS($J$2:J107,Медикаменты!$J107,$L$2:L107,\">\"&0))","v":0},"шт."]
[null,null,null,null,null,null,null,null,"Склад","Расходники","Контейнер для утилизации отходов МК-01 (однораз., желтый, 3 л.)",{"$f":"SUMIFS(Главная_tb[Расход],Главная_tb[Наименование],Медикаменты!$K108,Главная_tb[Место],Медикаменты!$I108,Главная_tb[Дата],\">=\"&$R$1,Главная_tb[Дата],\"<=\"&$R$2)","v":0},{"$f":"IF(Медикаменты!$L108=0,0,COUNTIFS($J$2:J108,Медикаменты!$J108,$L$2:L108,\">\"&0))","v":0},"шт."]
[null,null,null,null,null,null,null,null,"Склад","Медикаменты","Корвалол (флак., 25 мл.)",{"$f":"SUMIFS(Главная_tb[Расход],Главная_tb[Наименование],Медикаменты!$K109,Главная_tb[Место],Медикаменты!$I109,Главная_tb[Дата],\">=\"&$R$1,Главная_tb[Дата],\"<=\"&$R$2)","v":0},{"$f":"IF(Медикаменты!$L109=0,0,COUNTIFS($J$2:J109,Медикаменты!$J109,$L$2:L109,\">\"&0))","v":0},"фл."]
[null,null,null,null,null,null,null,null,"ДС","Медикаменты (ДС)","Корвалол (флак., 25 мл.)",{"$f":"SUMIFS(Главная_tb[Расход],Главная_tb[Наименование],Медикаменты!$K110,Главная_tb[Место],Медикаменты!$I110,Главная_tb[Дата],\">=\"&$R$1,Главная_tb[Дата],\"<=\"&$R$2)","v":0},{"$f":"IF(Медикаменты!$L110=0,0,COUNTIFS($J$2:J110,Медикаменты!$J110,$L$2:L110,\">\"&0))","v":0},"фл."]
[null,null,null,null,null,null,null,null,"Склад","Вакцина","Корьевая",{"$f":"SUMIFS(Главная_tb[Расход],Главная_tb[Наименование],Медикаменты!$K111,Главная_tb[Место],Медикаменты!$I111,Главная_tb[Дата],\">=\"&$R$1,Главная_tb[Дата],\"<=\"&$R$2)","v":0},{"$f":"IF(Медикаменты!$L111=0,0,COUNTIFS($J$2:J111,Медикаменты!$J111,$L$2:L111,\">\"&0))","v":0},"доз."]
[null,null,null,null,null,null,null,null,"Склад","Вакцина","Краснушная",{"$f":"SUMIFS(Главная_tb[Расход],Главная_tb[Наименование],Медикаменты!$K112,Главная_tb[Место],Медикаменты!$I112,Главная_tb[Дата],\">=\"&$R$1,Главная_tb[Дата],\"<=\"&$R$2)","v":160},{"$f":"IF(Медикаменты!$L112=0,0,COUNTIFS($J$2:J112,Медикаменты!$J112,$L$2:L112,\">\"&0))","v":10},"доз."]
[null,null,null,null,null,null,null,null,"Склад","Расходники","Крафт-пакеты (пакеты упаковочные для стерилизации СтериТ)",{"$f":"SUMIFS(Главная_tb[Расход],Главная_tb[Наименование],Медикаменты!$K113,Главная_tb[Место],Медикаменты!$I113,Главная_tb[Дата],\">=\"&$R$1,Главная_tb[Дата],\"<=\"&$R$2)","v":0},{"$f":"IF(Медикаменты!$L113=0,0,COUNTIFS($J$2:J113,Медикаменты!$J113,$L$2:L113,\">\"&0))","v":0},"шт."]
[null,null,null,null,null,null,null,null,"Склад","Медикаменты","Лазикс (р-р 10мг/мл., 2мл.№10)",{"$f":"SUMIFS(Главная_tb[Расход],Главная_tb[Наименование],Медикаменты!$K114,Главная_tb[Место],Медикаменты!$I114,Главная_tb[Дата],\">=\"&$R$1,Главная_tb[Дата],\"<=\"&$R$2)","v":0},{"$f":"IF(Медикаменты!$L114=0,0,COUNTIFS($J$2:J114,Медикаменты!$J114,$L$2:L114,\">\"&0))","v":0},"уп."]
[null,null,null,null,null,null,null,null,"Склад","Расходники","Лейкопластырь (бактер. 2,5х7,2 см.)",{"$f":"SUMIFS(Главная_tb[Расход],Главная_tb[Наименование],Медикаменты!$K115,Главная_tb[Место],Медикаменты!$I115,Главная_tb[Дата],\">=\"&$R$1,Главная_tb[Дата],\"<=\"&$R$2)","v":0},{"$f":"IF(Медикаменты!$L115=0,0,COUNTIFS($J$2:J115,Медикаменты!$J115,$L$2:L115,\">\"&0))","v":0},"шт."]
[null,null,null,null,null,null,null,null,"Склад","Расходники","Лейкопластырь (катушка, 2х500 см.)",{"$f":"SUMIFS(Главная_tb[Расход],Главная_tb[Наименование],Медикаменты!$K116,Главная_tb[Место],Медикаменты!$I116,Главная_tb[Дата],\">=\"&$R$1,Главная_tb[Дата],\"<=\"&$R$2)","v":0},{"$f":"IF(Медикаменты!$L116=0,0,COUNTIFS($J$2:J116,Медикаменты!$J116,$L$2:L116,\">\"&0))","v":0},"шт."]
[null,null,null,null,null,null,null,null,"Склад","Расходники","Лента диаграммная из термобумаги",{"$f":"SUMIFS(Главная_tb[Расход],Главная_tb[Наименование],Медикаменты!$K117,Главная_tb[Место],Медикаменты!$I117,Главная_tb[Дата],\">=\"&$R$1,Главная_tb[Дата],\"<=\"&$R$2)","v":0},{"$f":"IF(Медикаменты!$L117=0,0,COUNTIFS($J$2:J117,Медикаменты!$J117,$L$2:L117,\">\"&0))","v":0},"шт."]
[null,null,null,null,null,null,null,null,"Склад","Медикаменты","Лидокаин (амп., 2%, №10)",{"$f":"SUMIFS(Главная_tb[Расход],Главная_tb[Наименование],Медикаменты!$K118,Главная_tb[Место],Медикаменты!$I118,Главная_tb[Дата],\">=\"&$R$1,Главная_tb[Дата],\"<=\"&$R$2)","v":0},{"$f":"IF(Медикаменты!$L118=0,0,COUNTIFS($J$2:J118,Медикаменты!$J118,$L$2:L118,\">\"&0))","v":0},"уп."]
[null,null,null,null,null,null,null,null,"Склад","Медикаменты","Лидокаин (спрей, 10%, 38 гр. 650 доз)",{"$f":"SUMIFS(Главная_tb[Расход],Главная_tb[Наименование],Медикаменты!$K119,Главная_tb[Место],Медикаменты!$I119,Главная_tb[Дата],\">=\"&$R$1,Главная_tb[Дата],\"<=\"&$R$2)","v":0},{"$f":"IF(Медикаменты!$L119=0,0,COUNTIFS($J$2:J119,Медикаменты!$J119,$L$2:L119,\">\"&0))","v":0},"уп."]
[null,null,null,null,null,null,null,null,"Склад","Медикаменты","Линкомицин (амп., 1 мл., №10)",{"$f":"SUMIFS(Главная_tb[Расход],Главная_tb[Наименование],Медикаменты!$K120,Главная_tb[Место],Медикаменты!$I120,Главная_tb[Дата],\">=\"&$R$1,Главная_tb[Дата],\"<=\"&$R$2)","v":0},{"$f":"IF(Медикаменты!$L120=0,0,COUNTIFS($J$2:J120,Медикаменты!$J120,$L$2:L120,\">\"&0))","v":0},"уп."]
[null,null,null,null,null,null,null,null,"Склад","Дезсредства","Литосептин",{"$f":"SUMIFS(Главная_tb[Расход],Главная_tb[Наименование],Медикаменты!$K121,Главная_tb[Место],Медикаменты!$I121,Главная_tb[Дата],\">=\"&$R$1,Главная_tb[Дата],\"<=\"&$R$2)","v":0},{"$f":"IF(Медикаменты!$L121=0,0,COUNTIFS($J$2:J121,Медикаменты!$J121,$L$2:L121,\">\"&0))","v":0},"л."]
[null,null,null,null,null,null,null,null,"Склад","Расходники","Ложка Фолькмана",{"$f":"SUMIFS(Главная_tb[Расход],Главная_tb[Наименование],Медикаменты!$K122,Главная_tb[Место],Медикаменты!$I122,Главная_tb[Дата],\">=\"&$R$1,Главная_tb[Дата],\"<=\"&$R$2)","v":100},{"$f":"IF(Медикаменты!$L122=0,0,COUNTIFS($J$2:J122,Медикаменты!$J122,$L$2:L122,\">\"&0))","v":8},"шт."]
[null,null,null,null,null,null,null,null,"Склад","Растворы","Люгоря (р-р, 100 мл.)",{"$f":"SUMIFS(Главная_tb[Расход],Главная_tb[Наименование],Медикаменты!$K123,Главная_tb[Место],Медикаменты!$I123,Главная_tb[Дата],\">=\"&$R$1,Главная_tb[Дата],\"<=\"&$R$2)","v":2},{"$f":"IF(Медикаменты!$L123=0,0,COUNTIFS($J$2:J123,Медикаменты!$J123,$L$2:L123,\">\"&0))","v":7},"фл."]
[null,null,null,null,null,null,null,null,"Склад ","Медикаменты","Магния сульфат (р-р, 250 мг/мл., 10 мл.№10)",{"$f":"SUMIFS(Главная_tb[Расход],Главная_tb[Наименование],Медикаменты!$K124,Главная_tb[Место],Медикаменты!$I124,Главная_tb[Дата],\">=\"&$R$1,Главная_tb[Дата],\"<=\"&$R$2)","v":0},{"$f":"IF(Медикаменты!$L124=0,0,COUNTIFS($J$2:J124,Медикаменты!$J124,$L$2:L124,\">\"&0))","v":0},"уп."]
[null,null,null,null,null,null,null,null,"Склад","Медикаменты","Мазь гидрокортизоновая (0,5%, 5 мл.)",{"$f":"SUMIFS(Главная_tb[Расход],Главная_tb[Наименование],Медикаменты!$K125,Главная_tb[Место],Медикаменты!$I125,Главная_tb[Дата],\">=\"&$R$1,Главная_tb[Дата],\"<=\"&$R$2)","v":0},{"$f":"IF(Медикаменты!$L125=0,0,COUNTIFS($J$2:J125,Медикаменты!$J125,$L$2:L125,\">\"&0))","v":0},"уп."]
[null,null,null,null,null,null,null,null,"Склад","Медикаменты","Мазь левомеколь (40 гр.)",{"$f":"SUMIFS(Главная_tb[Расход],Главная_tb[Наименование],Медикаменты!$K126,Главная_tb[Место],Медикаменты!$I126,Главная_tb[Дата],\">=\"&$R$1,Главная_tb[Дата],\"<=\"&$R$2)","v":0},{"$f":"IF(Медикаменты!$L126=0,0,COUNTIFS($J$2:J126,Медикаменты!$J126,$L$2:L126,\">\"&0))","v":0},"уп."]
[null,null,null,null,null,null,null,null,"Склад","Медикаменты","Мазь тетрациклиновая (10%, 25 гр.)",{"$f":"SUMIFS(Главная_tb[Расход],Главная_tb[Наименование],Медикаменты!$K127,Главная_tb[Место],Медикаменты!$I127,Главная_tb[Дата],\">=\"&$R$1,Главная_tb[Дата],\"<=\"&$R$2)","v":0},{"$f":"IF(Медикаменты!$L127=0,0,COUNTIFS($J$2:J127,Медикаменты!$J127,$L$2:L127,\">\"&0))","v":0},"уп."]
[null,null,null,null,null,null,null,null,"Склад","Расходники","Марля (нестр.)",{"$f":"SUMIFS(Главная_tb[Расход],Главная_tb[Наименование],Медикаменты!$K128,Главная_tb[Место],Медикаменты!$I128,Главная_tb[Дата],\">=\"&$R$1,Главная_tb[Дата],\"<=\"&$R$2)","v":0},{"$f":"IF(Медикаменты!$L128=0,0,COUNTIFS($J$2:J128,Медикаменты!$J128,$L$2:L128,\">\"&0))","v":0},"м."]
[null,null,null,null,null,null,null,null,"Склад","Расходники","Маска Лепесток 200",{"$f":"SUMIFS(Главная_tb[Расход],Главная_tb[Наименование],Медикаменты!$K129,Главная_tb[Место],Медикаменты!$I129,Главная_tb[Дата],\">=\"&$R$1,Главная_tb[Дата],\"<=\"&$R$2)","v":0},{"$f":"IF(Медикаменты!$L129=0,0,COUNTIFS($J$2:J129,Медикаменты!$J129,$L$2:L129,\">\"&0))","v":0},"шт."]
[null,null,null,null,null,null,null,null,"Склад","Расходники","Маска медицинская трёхслойная, одноразовая",{"$f":"SUMIFS(Главная_tb[Расход],Главная_tb[Наименование],Медикаменты!$K130,Главная_tb[Место],Медикаменты!$I130,Главная_tb[Дата],\">=\"&$R$1,Главная_tb[Дата],\"<=\"&$R$2)","v":500},{"$f":"IF(Медикаменты!$L130=0,0,COUNTIFS($J$2:J130,Медикаменты!$J130,$L$2:L130,\">\"&0))","v":9},"шт."]
[null,null,null,null,null,null,null,null,"Склад","Многоразовые расходники","Массажные валики с подушкой",{"$f":"SUMIFS(Главная_tb[Расход],Главная_tb[Наименование],Медикаменты!$K131,Главная_tb[Место],Медикаменты!$I131,Главная_tb[Дата],\">=\"&$R$1,Главная_tb[Дата],\"<=\"&$R$2)","v":0},{"$f":"IF(Медикаменты!$L131=0,0,COUNTIFS($J$2:J131,Медикаменты!$J131,$L$2:L131,\">\"&0))","v":0},"копл."]
[null,null,null,null,null,null,null,null,"Склад","Дезсредства","МДГР (1 л.)",{"$f":"SUMIFS(Главная_tb[Расход],Главная_tb[Наименование],Медикаменты!$K132,Главная_tb[Место],Медикаменты!$I132,Главная_tb[Дата],\">=\"&$R$1,Главная_tb[Дата],\"<=\"&$R$2)","v":3},{"$f":"IF(Медикаменты!$L132=0,0,COUNTIFS($J$2:J132,Медикаменты!$J132,$L$2:L132,\">\"&0))","v":5},"л."]
[null,null,null,null,null,null,null,null,"Склад","Дезсредства","МДГР (5 л.)",{"$f":"SUMIFS(Главная_tb[Расход],Главная_tb[Наименование],Медикаменты!$K133,Главная_tb[Место],Медикаменты!$I133,Главная_tb[Дата],\">=\"&$R$1,Главная_tb[Дата],\"<=\"&$R$2)","v":0},{"$f":"IF(Медикаменты!$L133=0,0,COUNTIFS($J$2:J133,Медикаменты!$J133,$L$2:L133,\">\"&0))","v":0},"л."]
[null,null,null,null,null,null,null,null,"ДС","Медикаменты (ДС)","Мексидол (амп., 50 мг.- 2 мл., №10)",{"$f":"SUMIFS(Главная_tb[Расход],Главная_tb[Наименование],Медикаменты!$K134,Главная_tb[Место],Медикаменты!$I134,Главная_tb[Дата],\">=\"&$R$1,Главная_tb[Дата],\"<=\"&$R$2)","v":0},{"$f":"IF(Медикаменты!$L134=0,0,COUNTIFS($J$2:J134,Медикаменты!$J134,$L$2:L134,\">\"&0))","v":0},"амп."]
[null,null,null,null,null,null,null,null,"ДС","Медикаменты (ДС)","Мексидол (таб., 125 мг., №50)",{"$f":"SUMIFS(Главная_tb[Расход],Главная_tb[Наименование],Медикаменты!$K135,Главная_tb[Место],Медикаменты!$I135,Главная_tb[Дата],\">=\"&$R$1,Главная_tb[Дата],\"<=\"&$R$2)","v":0},{"$f":"IF(Медикаменты!$L135=0,0,COUNTIFS($J$2:J135,Медикаменты!$J135,$L$2:L135,\">\"&0))","v":0},"таб."]
[null,null,null,null,null,null,null,null,"ДС","Медикаменты (ДС)","Метронидазол (таб., 0,2 мг., №10)",{"$f":"SUMIFS(Главная_tb[Расход],Главная_tb[Наименование],Медикаменты!$K136,Главная_tb[Место],Медикаменты!$I136,Главная_tb[Дата],\">=\"&$R$1,Главная_tb[Дата],\"<=\"&$R$2)","v":0},{"$f":"IF(Медикаменты!$L136=0,0,COUNTIFS($J$2:J136,Медикаменты!$J136,$L$2:L136,\">\"&0))","v":0},"таб."]
[null,null,null,null,null,null,null,null,"Склад","Расходники","Мультипакет для паровой стерилизации (1000 шт.)",{"$f":"SUMIFS(Главная_tb[Расход],Главная_tb[Наименование],Медикаменты!$K137,Главная_tb[Место],Медикаменты!$I137,Главная_tb[Дата],\">=\"&$R$1,Главная_tb[Дата],\"<=\"&$R$2)","v":0},{"$f":"IF(Медикаменты!$L137=0,0,COUNTIFS($J$2:J137,Медикаменты!$J137,$L$2:L137,\">\"&0))","v":0},"шт."]
[null,null,null,null,null,null,null,null,"Склад","Расходники","Мундштук картонный одноразовый",{"$f":"SUMIFS(Главная_tb[Расход],Главная_tb[Наименование],Медикаменты!$K138,Главная_tb[Место],Медикаменты!$I138,Главная_tb[Дата],\">=\"&$R$1,Главная_tb[Дата],\"<=\"&$R$2)","v":250},{"$f":"IF(Медикаменты!$L138=0,0,COUNTIFS($J$2:J138,Медикаменты!$J138,$L$2:L138,\">\"&0))","v":10},"шт."]
[null,null,null,null,null,null,null,null,"ДС","Медикаменты (ДС)","Назорел (спрей, 50 мкг/1 доза, 120 доз, №1)",{"$f":"SUMIFS(Главная_tb[Расход],Главная_tb[Наименование],Медикаменты!$K139,Главная_tb[Место],Медикаменты!$I139,Главная_tb[Дата],\">=\"&$R$1,Главная_tb[Дата],\"<=\"&$R$2)","v":0},{"$f":"IF(Медикаменты!$L139=0,0,COUNTIFS($J$2:J139,Медикаменты!$J139,$L$2:L139,\">\"&0))","v":0},"уп."]
[null,null,null,null,null,null,null,null,"Склад","Расходники","Наконечники для дозаторов 100-1000 мкл (480 шт.)",{"$f":"SUMIFS(Главная_tb[Расход],Главная_tb[Наименование],Медикаменты!$K140,Главная_tb[Место],Медикаменты!$I140,Главная_tb[Дата],\">=\"&$R$1,Главная_tb[Дата],\"<=\"&$R$2)","v":0},{"$f":"IF(Медикаменты!$L140=0,0,COUNTIFS($J$2:J140,Медикаменты!$J140,$L$2:L140,\">\"&0))","v":0},"уп."]
[null,null,null,null,null,null,null,null,"Склад","Расходники","Наконечники для дозаторов 20-200 мкл (1000 шт.)",{"$f":"SUMIFS(Главная_tb[Расход],Главная_tb[Наименование],Медикаменты!$K141,Главная_tb[Место],Медикаменты!$I141,Главная_tb[Дата],\">=\"&$R$1,Главная_tb[Дата],\"<=\"&$R$2)","v":0},{"$f":"IF(Медикаменты!$L141=0,0,COUNTIFS($J$2:J141,Медикаменты!$J141,$L$2:L141,\">\"&0))","v":0},"уп."]
[null,null,null,null,null,null,null,null,"Склад","Расходники","Напальчник (10 шт.)",{"$f":"SUMIFS(Главная_tb[Расход],Главная_tb[Наименование],Медикаменты!$K142,Главная_tb[Место],Медикаменты!$I142,Главная_tb[Дата],\">=\"&$R$1,Главная_tb[Дата],\"<=\"&$R$2)","v":0},{"$f":"IF(Медикаменты!$L142=0,0,COUNTIFS($J$2:J142,Медикаменты!$J142,$L$2:L142,\">\"&0))","v":0},"уп."]
[null,null,null,null,null,null,null,null,"Склад","Медикаменты","Настойка йода (фл., 5%, 10 мл.)",{"$f":"SUMIFS(Главная_tb[Расход],Главная_tb[Наименование],Медикаменты!$K143,Главная_tb[Место],Медикаменты!$I143,Главная_tb[Дата],\">=\"&$R$1,Главная_tb[Дата],\"<=\"&$R$2)","v":0},{"$f":"IF(Медикаменты!$L143=0,0,COUNTIFS($J$2:J143,Медикаменты!$J143,$L$2:L143,\">\"&0))","v":0},"фл."]
[null,null,null,null,null,null,null,null,"Склад","Растворы","Натрия бромид (2%-200мл.)",{"$f":"SUMIFS(Главная_tb[Расход],Главная_tb[Наименование],Медикаменты!$K144,Главная_tb[Место],Медикаменты!$I144,Главная_tb[Дата],\">=\"&$R$1,Главная_tb[Дата],\"<=\"&$R$2)","v":3},{"$f":"IF(Медикаменты!$L144=0,0,COUNTIFS($J$2:J144,Медикаменты!$J144,$L$2:L144,\">\"&0))","v":8},"фл."]
[null,null,null,null,null,null,null,null,"ДС","Медикаменты (ДС)","Натрия тиосульфат (30%, 10 мл., №10)",{"$f":"SUMIFS(Главная_tb[Расход],Главная_tb[Наименование],Медикаменты!$K145,Главная_tb[Место],Медикаменты!$I145,Главная_tb[Дата],\">=\"&$R$1,Главная_tb[Дата],\"<=\"&$R$2)","v":0},{"$f":"IF(Медикаменты!$L145=0,0,COUNTIFS($J$2:J145,Медикаменты!$J145,$L$2:L145,\">\"&0))","v":0},"амп."]
[null,null,null,null,null,null,null,null,"Склад","Медикаменты","Натрия хлорид (амп., 0,9%, 10 мл., №10)",{"$f":"SUMIFS(Главная_tb[Расход],Главная_tb[Наименование],Медикаменты!$K146,Главная_tb[Место],Медикаменты!$I146,Главная_tb[Дата],\">=\"&$R$1,Главная_tb[Дата],\"<=\"&$R$2)","v":20},{"$f":"IF(Медикаменты!$L146=0,0,COUNTIFS($J$2:J146,Медикаменты!$J146,$L$2:L146,\">\"&0))","v":5},"амп."]
[null,null,null,null,null,null,null,null,"ДС","Медикаменты (ДС)","Натрия хлорид (амп., 0,9%, 10 мл., №10)",{"$f":"SUMIFS(Главная_tb[Расход],Главная_tb[Наименование],Медикаменты!$K147,Главная_tb[Место],Медикаменты!$I147,Главная_tb[Дата],\">=\"&$R$1,Главная_tb[Дата],\"<=\"&$R$2)","v":0},{"$f":"IF(Медикаменты!$L147=0,0,COUNTIFS($J$2:J147,Медикаменты!$J147,$L$2:L147,\">\"&0))","v":0},"амп."]
[null,null,null,null,null,null,null,null,"Склад","Медикаменты","Натрия хлорид (амп., 0,9%, 5 мл., №10)",{"$f":"SUMIFS(Главная_tb[Расход],Главная_tb[Наименование],Медикаменты!$K148,Главная_tb[Место],Медикаменты!$I148,Главная_tb[Дата],\">=\"&$R$1,Главная_tb[Дата],\"<=\"&$R$2)","v":0},{"$f":"IF(Медикаменты!$L148=0,0,COUNTIFS($J$2:J148,Медикаменты!$J148,$L$2:L148,\">\"&0))","v":0},"амп."]
[null,null,null,null,null,null,null,null,"ДС","Медикаменты (ДС)","Натрия хлорид (амп., 0,9%, 5 мл., №10)",{"$f":"SUMIFS(Главная_tb[Расход],Главная_tb[Наименование],Медикаменты!$K149,Главная_tb[Место],Медикаменты!$I149,Главная_tb[Дата],\">=\"&$R$1,Главная_tb[Дата],\"<=\"&$R$2)","v":0},{"$f":"IF(Медикаменты!$L149=0,0,COUNTIFS($J$2:J149,Медикаменты!$J149,$L$2:L149,\">\"&0))","v":0},"амп."]
[null,null,null,null,null,null,null,null,"Склад","Медикаменты","Натрия хлорид (фл., 0,9%, 190 мл.)",{"$f":"SUMIFS(Главная_tb[Расход],Главная_tb[Наименование],Медикаменты!$K150,Главная_tb[Место],Медикаменты!$I150,Главная_tb[Дата],\">=\"&$R$1,Главная_tb[Дата],\"<=\"&$R$2)","v":0},{"$f":"IF(Медикаменты!$L150=0,0,COUNTIFS($J$2:J150,Медикаменты!$J150,$L$2:L150,\">\"&0))","v":0},"фл."]
[null,null,null,null,null,null,null,null,"Склад","Медикаменты","Натрия хлорид (фл., 0,9%, 250 мл.)",{"$f":"SUMIFS(Главная_tb[Расход],Главная_tb[Наименование],Медикаменты!$K151,Главная_tb[Место],Медикаменты!$I151,Главная_tb[Дата],\">=\"&$R$1,Главная_tb[Дата],\"<=\"&$R$2)","v":50},{"$f":"IF(Медикаменты!$L151=0,0,COUNTIFS($J$2:J151,Медикаменты!$J151,$L$2:L151,\">\"&0))","v":6},"фл."]
[null,null,null,null,null,null,null,null,"Склад","Растворы","Натрия цитрат (р-р, 100 мл.)",{"$f":"SUMIFS(Главная_tb[Расход],Главная_tb[Наименование],Медикаменты!$K152,Главная_tb[Место],Медикаменты!$I152,Главная_tb[Дата],\">=\"&$R$1,Главная_tb[Дата],\"<=\"&$R$2)","v":6},{"$f":"IF(Медикаменты!$L152=0,0,COUNTIFS($J$2:J152,Медикаменты!$J152,$L$2:L152,\">\"&0))","v":9},"фл."]
[null,null,null,null,null,null,null,null,"ДС","Медикаменты (ДС)","Никотиновая кислота (амп., 1%, 1 мл., №10)",{"$f":"SUMIFS(Главная_tb[Расход],Главная_tb[Наименование],Медикаменты!$K153,Главная_tb[Место],Медикаменты!$I153,Главная_tb[Дата],\">=\"&$R$1,Главная_tb[Дата],\"<=\"&$R$2)","v":0},{"$f":"IF(Медикаменты!$L153=0,0,COUNTIFS($J$2:J153,Медикаменты!$J153,$L$2:L153,\">\"&0))","v":0},"амп."]
[null,null,null,null,null,null,null,null,"Склад","Медикаменты","Новокаин (амп., 0,5%, 5 мл., №10)",{"$f":"SUMIFS(Главная_tb[Расход],Главная_tb[Наименование],Медикаменты!$K154,Главная_tb[Место],Медикаменты!$I154,Главная_tb[Дата],\">=\"&$R$1,Главная_tb[Дата],\"<=\"&$R$2)","v":0},{"$f":"IF(Медикаменты!$L154=0,0,COUNTIFS($J$2:J154,Медикаменты!$J154,$L$2:L154,\">\"&0))","v":0},"уп."]
[null,null,null,null,null,null,null,null,"Склад","Медикаменты","Новокаин (амп., 2%, 2 мл., №10)",{"$f":"SUMIFS(Главная_tb[Расход],Главная_tb[Наименование],Медикаменты!$K155,Главная_tb[Место],Медикаменты!$I155,Главная_tb[Дата],\">=\"&$R$1,Главная_tb[Дата],\"<=\"&$R$2)","v":0},{"$f":"IF(Медикаменты!$L155=0,0,COUNTIFS($J$2:J155,Медикаменты!$J155,$L$2:L155,\">\"&0))","v":0},"уп."]
[null,null,null,null,null,null,null,null,"Склад","Дезсредства","ОДС-14",{"$f":"SUMIFS(Главная_tb[Расход],Главная_tb[Наименование],Медикаменты!$K156,Главная_tb[Место],Медикаменты!$I156,Главная_tb[Дата],\">=\"&$R$1,Главная_tb[Дата],\"<=\"&$R$2)","v":0},{"$f":"IF(Медикаменты!$L156=0,0,COUNTIFS($J$2:J156,Медикаменты!$J156,$L$2:L156,\">\"&0))","v":0},"л."]
[null,null,null,null,null,null,null,null,"ДС","Медикаменты (ДС)","Омепразол (капс., 20 мг., №30)",{"$f":"SUMIFS(Главная_tb[Расход],Главная_tb[Наименование],Медикаменты!$K157,Главная_tb[Место],Медикаменты!$I157,Главная_tb[Дата],\">=\"&$R$1,Главная_tb[Дата],\"<=\"&$R$2)","v":0},{"$f":"IF(Медикаменты!$L157=0,0,COUNTIFS($J$2:J157,Медикаменты!$J157,$L$2:L157,\">\"&0))","v":0},"капс."]
[null,null,null,null,null,null,null,null,"ДС","Медикаменты (ДС)","Омепразол (капс., 20 мг., №50)",{"$f":"SUMIFS(Главная_tb[Расход],Главная_tb[Наименование],Медикаменты!$K158,Главная_tb[Место],Медикаменты!$I158,Главная_tb[Дата],\">=\"&$R$1,Главная_tb[Дата],\"<=\"&$R$2)","v":0},{"$f":"IF(Медикаменты!$L158=0,0,COUNTIFS($J$2:J158,Медикаменты!$J158,$L$2:L158,\">\"&0))","v":0},"капс."]
[null,null,null,null,null,null,null,null,"Склад","Расходники","Пакет для сбора медицинских отходов класса Б (30 л., 100 шт.)",{"$f":"SUMIFS(Главная_tb[Расход],Главная_tb[Наименование],Медикаменты!$K159,Главная_tb[Место],Медикаменты!$I159,Главная_tb[Дата],\">=\"&$R$1,Главная_tb[Дата],\"<=\"&$R$2)","v":0},{"$f":"IF(Медикаменты!$L159=0,0,COUNTIFS($J$2:J159,Медикаменты!$J159,$L$2:L159,\">\"&0))","v":0},"уп."]
[null,null,null,null,null,null,null,null,"ДС","Медикаменты (ДС)","Пантогам (таб., 250 мг., №50)",{"$f":"SUMIFS(Главная_tb[Расход],Главная_tb[Наименование],Медикаменты!$K160,Главная_tb[Место],Медикаменты!$I160,Главная_tb[Дата],\">=\"&$R$1,Главная_tb[Дата],\"<=\"&$R$2)","v":0},{"$f":"IF(Медикаменты!$L160=0,0,COUNTIFS($J$2:J160,Медикаменты!$J160,$L$2:L160,\">\"&0))","v":0},"таб."]
[null,null,null,null,null,null,null,null,"Склад","Медикаменты","Папаверин (амп., 2%, 2мл №10)",{"$f":"SUMIFS(Главная_tb[Расход],Главная_tb[Наименование],Медикаменты!$K161,Главная_tb[Место],Медикаменты!$I161,Главная_tb[Дата],\">=\"&$R$1,Главная_tb[Дата],\"<=\"&$R$2)","v":0},{"$f":"IF(Медикаменты!$L161=0,0,COUNTIFS($J$2:J161,Медикаменты!$J161,$L$2:L161,\">\"&0))","v":0},"амп."]
[null,null,null,null,null,null,null,null,"Склад","Медикаменты","Парацетамол (таб., 500 мг., №10)",{"$f":"SUMIFS(Главная_tb[Расход],Главная_tb[Наименование],Медикаменты!$K162,Главная_tb[Место],Медикаменты!$I162,Главная_tb[Дата],\">=\"&$R$1,Главная_tb[Дата],\"<=\"&$R$2)","v":0},{"$f":"IF(Медикаменты!$L162=0,0,COUNTIFS($J$2:J162,Медикаменты!$J162,$L$2:L162,\">\"&0))","v":0},"уп."]
[null,null,null,null,null,null,null,null,"Склад","Медикаменты","Парацетамол детский (сусп., 100 гр.)",{"$f":"SUMIFS(Главная_tb[Расход],Главная_tb[Наименование],Медикаменты!$K163,Главная_tb[Место],Медикаменты!$I163,Главная_tb[Дата],\">=\"&$R$1,Главная_tb[Дата],\"<=\"&$R$2)","v":0},{"$f":"IF(Медикаменты!$L163=0,0,COUNTIFS($J$2:J163,Медикаменты!$J163,$L$2:L163,\">\"&0))","v":0},"фл."]
[null,null,null,null,null,null,null,null,"Склад","Вакцина","Паротитная",{"$f":"SUMIFS(Главная_tb[Расход],Главная_tb[Наименование],Медикаменты!$K164,Главная_tb[Место],Медикаменты!$I164,Главная_tb[Дата],\">=\"&$R$1,Главная_tb[Дата],\"<=\"&$R$2)","v":0},{"$f":"IF(Медикаменты!$L164=0,0,COUNTIFS($J$2:J164,Медикаменты!$J164,$L$2:L164,\">\"&0))","v":0},"доз."]
[null,null,null,null,null,null,null,null,"Склад","Вакцина","Паротитно-корьевая",{"$f":"SUMIFS(Главная_tb[Расход],Главная_tb[Наименование],Медикаменты!$K165,Главная_tb[Место],Медикаменты!$I165,Главная_tb[Дата],\">=\"&$R$1,Главная_tb[Дата],\"<=\"&$R$2)","v":190},{"$f":"IF(Медикаменты!$L165=0,0,COUNTIFS($J$2:J165,Медикаменты!$J165,$L$2:L165,\">\"&0))","v":11},"доз."]
[null,null,null,null,null,null,null,null,"Склад","Вакцина","Пентаксим",{"$f":"SUMIFS(Главная_tb[Расход],Главная_tb[Наименование],Медикаменты!$K166,Главная_tb[Место],Медикаменты!$I166,Главная_tb[Дата],\">=\"&$R$1,Главная_tb[Дата],\"<=\"&$R$2)","v":20},{"$f":"IF(Медикаменты!$L166=0,0,COUNTIFS($J$2:J166,Медикаменты!$J166,$L$2:L166,\">\"&0))","v":12},"доз."]
[null,null,null,null,null,null,null,null,"Склад","Растворы","Перекись водорода (3%, 100 мл.)",{"$f":"SUMIFS(Главная_tb[Расход],Главная_tb[Наименование],Медикаменты!$K167,Главная_tb[Место],Медикаменты!$I167,Главная_tb[Дата],\">=\"&$R$1,Главная_tb[Дата],\"<=\"&$R$2)","v":0},{"$f":"IF(Медикаменты!$L167=0,0,COUNTIFS($J$2:J167,Медикаменты!$J167,$L$2:L167,\">\"&0))","v":0},"фл."]
[null,null,null,null,null,null,null,null,"Склад","Растворы","Перекись водорода (3%, 350 мл.)",{"$f":"SUMIFS(Главная_tb[Расход],Главная_tb[Наименование],Медикаменты!$K168,Главная_tb[Место],Медикаменты!$I168,Главная_tb[Дата],\">=\"&$R$1,Главная_tb[Дата],\"<=\"&$R$2)","v":4},{"$f":"IF(Медикаменты!$L168=0,0,COUNTIFS($J$2:J168,Медикаменты!$J168,$L$2:L168,\">\"&0))","v":10},"фл."]
[null,null,null,null,null,null,null,null,"Склад","Растворы","Перекись водорода (6%, 100 мл.)",{"$f":"SUMIFS(Главная_tb[Расход],Главная_tb[Наименование],Медикаменты!$K169,Главная_tb[Место],Медикаменты!$I169,Главная_tb[Дата],\">=\"&$R$1,Главная_tb[Дата],\"<=\"&$R$2)","v":0},{"$f":"IF(Медикаменты!$L169=0,0,COUNTIFS($J$2:J169,Медикаменты!$J169,$L$2:L169,\">\"&0))","v":0},"фл."]
[null,null,null,null,null,null,null,null,"Склад","Растворы","Перекись водорода (6%, 400 мл.)",{"$f":"SUMIFS(Главная_tb[Расход],Главная_tb[Наименование],Медикаменты!$K170,Главная_tb[Место],Медикаменты!$I170,Главная_tb[Дата],\">=\"&$R$1,Главная_tb[Дата],\"<=\"&$R$2)","v":8},{"$f":"IF(Медикаменты!$L170=0,0,COUNTIFS($J$2:J170,Медикаменты!$J170,$L$2:L170,\">\"&0))","v":11},"фл."]
[null,null,null,null,null,null,null,null,"Склад","Расходники","Перчатки (нестер, латекс.)",{"$f":"SUMIFS(Главная_tb[Расход],Главная_tb[Наименование],Медикаменты!$K171,Главная_tb[Место],Медикаменты!$I171,Главная_tb[Дата],\">=\"&$R$1,Главная_tb[Дата],\"<=\"&$R$2)","v":7050},{"$f":"IF(Медикаменты!$L171=0,0,COUNTIFS($J$2:J171,Медикаменты!$J171,$L$2:L171,\">\"&0))","v":11},"пар."]
[null,null,null,null,null,null,null,null,"Склад","Расходники","Перчатки (нестер, нитрил.)",{"$f":"SUMIFS(Главная_tb[Расход],Главная_tb[Наименование],Медикаменты!$K172,Главная_tb[Место],Медикаменты!$I172,Главная_tb[Дата],\">=\"&$R$1,Главная_tb[Дата],\"<=\"&$R$2)","v":0},{"$f":"IF(Медикаменты!$L172=0,0,COUNTIFS($J$2:J172,Медикаменты!$J172,$L$2:L172,\">\"&0))","v":0},"пар."]
[null,null,null,null,null,null,null,null,"Склад","Расходники","Перчатки (стер, латекс.)",{"$f":"SUMIFS(Главная_tb[Расход],Главная_tb[Наименование],Медикаменты!$K173,Главная_tb[Место],Медикаменты!$I173,Главная_tb[Дата],\">=\"&$R$1,Главная_tb[Дата],\"<=\"&$R$2)","v":0},{"$f":"IF(Медикаменты!$L173=0,0,COUNTIFS($J$2:J173,Медикаменты!$J173,$L$2:L173,\">\"&0))","v":0},"пар."]
[null,null,null,null,null,null,null,null,"Склад","Расходники","Петля микробиологическая разная стерильная",{"$f":"SUMIFS(Главная_tb[Расход],Главная_tb[Наименование],Медикаменты!$K174,Главная_tb[Место],Медикаменты!$I174,Главная_tb[Дата],\">=\"&$R$1,Главная_tb[Дата],\"<=\"&$R$2)","v":0},{"$f":"IF(Медикаменты!$L174=0,0,COUNTIFS($J$2:J174,Медикаменты!$J174,$L$2:L174,\">\"&0))","v":0},"шт."]
[null,null,null,null,null,null,null,null,"Склад","Расходники","Пинцет (однораз., стер.)",{"$f":"SUMIFS(Главная_tb[Расход],Главная_tb[Наименование],Медикаменты!$K175,Главная_tb[Место],Медикаменты!$I175,Главная_tb[Дата],\">=\"&$R$1,Главная_tb[Дата],\"<=\"&$R$2)","v":0},{"$f":"IF(Медикаменты!$L175=0,0,COUNTIFS($J$2:J175,Медикаменты!$J175,$L$2:L175,\">\"&0))","v":0},"шт."]
[null,null,null,null,null,null,null,null,"ДС","Медикаменты (ДС)","Пирацетам (амп., 20%, 5 мл., №10)",{"$f":"SUMIFS(Главная_tb[Расход],Главная_tb[Наименование],Медикаменты!$K176,Главная_tb[Место],Медикаменты!$I176,Главная_tb[Дата],\">=\"&$R$1,Главная_tb[Дата],\"<=\"&$R$2)","v":100},{"$f":"IF(Медикаменты!$L176=0,0,COUNTIFS($J$2:J176,Медикаменты!$J176,$L$2:L176,\">\"&0))","v":5},"амп."]
[null,null,null,null,null,null,null,null,"ДС","Медикаменты (ДС)","Пирацетам (таб/капс., 400 мг., №60)",{"$f":"SUMIFS(Главная_tb[Расход],Главная_tb[Наименование],Медикаменты!$K177,Главная_tb[Место],Медикаменты!$I177,Главная_tb[Дата],\">=\"&$R$1,Главная_tb[Дата],\"<=\"&$R$2)","v":0},{"$f":"IF(Медикаменты!$L177=0,0,COUNTIFS($J$2:J177,Медикаменты!$J177,$L$2:L177,\">\"&0))","v":0},"таб."]
[null,null,null,null,null,null,null,null,"ДС","Медикаменты (ДС)","Пиридоксина гидрохлорид (амп., 5%, 1 мл., №10)",{"$f":"SUMIFS(Главная_tb[Расход],Главная_tb[Наименование],Медикаменты!$K178,Главная_tb[Место],Медикаменты!$I178,Главная_tb[Дата],\">=\"&$R$1,Главная_tb[Дата],\"<=\"&$R$2)","v":100},{"$f":"IF(Медикаменты!$L178=0,0,COUNTIFS($J$2:J178,Медикаменты!$J178,$L$2:L178,\">\"&0))","v":6},"амп."]
[null,null,null,null,null,null,null,null,"Склад","Вакцина","Пневмо-23",{"$f":"SUMIFS(Главная_tb[Расход],Главная_tb[Наименование],Медикаменты!$K179,Главная_tb[Место],Медикаменты!$I179,Главная_tb[Дата],\">=\"&$R$1,Главная_tb[Дата],\"<=\"&$R$2)","v":0},{"$f":"IF(Медикаменты!$L179=0,0,COUNTIFS($J$2:J179,Медикаменты!$J179,$L$2:L179,\">\"&0))","v":0},"доз."]
[null,null,null,null,null,null,null,null,"Склад","Вакцина","Полимилекс",{"$f":"SUMIFS(Главная_tb[Расход],Главная_tb[Наименование],Медикаменты!$K180,Главная_tb[Место],Медикаменты!$I180,Главная_tb[Дата],\">=\"&$R$1,Главная_tb[Дата],\"<=\"&$R$2)","v":50},{"$f":"IF(Медикаменты!$L180=0,0,COUNTIFS($J$2:J180,Медикаменты!$J180,$L$2:L180,\">\"&0))","v":13},"доз."]
[null,null,null,null,null,null,null,null,"Склад","Расходники","Полотенце бумажное",{"$f":"SUMIFS(Главная_tb[Расход],Главная_tb[Наименование],Медикаменты!$K181,Главная_tb[Место],Медикаменты!$I181,Главная_tb[Дата],\">=\"&$R$1,Главная_tb[Дата],\"<=\"&$R$2)","v":8},{"$f":"IF(Медикаменты!$L181=0,0,COUNTIFS($J$2:J181,Медикаменты!$J181,$L$2:L181,\">\"&0))","v":12},"уп."]
[null,null,null,null,null,null,null,null,"Склад","Вакцина","Превенар-13",{"$f":"SUMIFS(Главная_tb[Расход],Главная_tb[Наименование],Медикаменты!$K182,Главная_tb[Место],Медикаменты!$I182,Главная_tb[Дата],\">=\"&$R$1,Главная_tb[Дата],\"<=\"&$R$2)","v":240},{"$f":"IF(Медикаменты!$L182=0,0,COUNTIFS($J$2:J182,Медикаменты!$J182,$L$2:L182,\">\"&0))","v":14},"доз."]
[null,null,null,null,null,null,null,null,"Склад","Медикаменты","Преднизолон (амп., 30мг/мл, 1 мл., №3)",{"$f":"SUMIFS(Главная_tb[Расход],Главная_tb[Наименование],Медикаменты!$K183,Главная_tb[Место],Медикаменты!$I183,Главная_tb[Дата],\">=\"&$R$1,Главная_tb[Дата],\"<=\"&$R$2)","v":0},{"$f":"IF(Медикаменты!$L183=0,0,COUNTIFS($J$2:J183,Медикаменты!$J183,$L$2:L183,\">\"&0))","v":0},"уп."]
[null,null,null,null,null,null,null,null,"Склад","Расходники","Пробирка (10 мл., 16*100 мм., с вин. кр. и юбк.уст.)",{"$f":"SUMIFS(Главная_tb[Расход],Главная_tb[Наименование],Медикаменты!$K184,Главная_tb[Место],Медикаменты!$I184,Главная_tb[Дата],\">=\"&$R$1,Главная_tb[Дата],\"<=\"&$R$2)","v":0},{"$f":"IF(Медикаменты!$L184=0,0,COUNTIFS($J$2:J184,Медикаменты!$J184,$L$2:L184,\">\"&0))","v":0},"шт."]
[null,null,null,null,null,null,null,null,"Склад","Расходники","Пробирка Vacuette (4 мл., 50 шт.)",{"$f":"SUMIFS(Главная_tb[Расход],Главная_tb[Наименование],Медикаменты!$K185,Главная_tb[Место],Медикаменты!$I185,Главная_tb[Дата],\">=\"&$R$1,Главная_tb[Дата],\"<=\"&$R$2)","v":0},{"$f":"IF(Медикаменты!$L185=0,0,COUNTIFS($J$2:J185,Медикаменты!$J185,$L$2:L185,\">\"&0))","v":0},"шт."]
[null,null,null,null,null,null,null,null,"Склад","Расходники","Пробирка Vacuette (8 мл., 50 шт.)",{"$f":"SUMIFS(Главная_tb[Расход],Главная_tb[Наименование],Медикаменты!$K186,Главная_tb[Место],Медикаменты!$I186,Главная_tb[Дата],\">=\"&$R$1,Главная_tb[Дата],\"<=\"&$R$2)","v":0},{"$f":"IF(Медикаменты!$L186=0,0,COUNTIFS($J$2:J186,Медикаменты!$J186,$L$2:L186,\">\"&0))","v":0},"шт."]
[null,null,null,null,null,null,null,null,"Склад","Расходники","Пробирка Vacuette (9 мл., 50 шт.)",{"$f":"SUMIFS(Главная_tb[Расход],Главная_tb[Наименование],Медикаменты!$K187,Главная_tb[Место],Медикаменты!$I187,Главная_tb[Дата],\">=\"&$R$1,Главная_tb[Дата],\"<=\"&$R$2)","v":0},{"$f":"IF(Медикаменты!$L187=0,0,COUNTIFS($J$2:J187,Медикаменты!$J187,$L$2:L187,\">\"&0))","v":0},"шт."]
[null,null,null,null,null,null,null,null,"Склад","Расходники","Пробирка вакуумная Cerebrum (4 мл., 50 шт.)",{"$f":"SUMIFS(Главная_tb[Расход],Главная_tb[Наименование],Медикаменты!$K188,Главная_tb[Место],Медикаменты!$I188,Главная_tb[Дата],\">=\"&$R$1,Главная_tb[Дата],\"<=\"&$R$2)","v":0},{"$f":"IF(Медикаменты!$L188=0,0,COUNTIFS($J$2:J188,Медикаменты!$J188,$L$2:L188,\">\"&0))","v":0},"шт."]
[null,null,null,null,null,null,null,null,"Склад","Расходники","Пробирка вакуумная Cerebrum (6 мл., 50 шт.)",{"$f":"SUMIFS(Главная_tb[Расход],Главная_tb[Наименование],Медикаменты!$K189,Главная_tb[Место],Медикаменты!$I189,Главная_tb[Дата],\">=\"&$R$1,Главная_tb[Дата],\"<=\"&$R$2)","v":0},{"$f":"IF(Медикаменты!$L189=0,0,COUNTIFS($J$2:J189,Медикаменты!$J189,$L$2:L189,\">\"&0))","v":0},"шт."]
[null,null,null,null,null,null,null,null,"Склад","Расходники","Пробирка вакуумная Cerebrum (8 мл., 50 шт.)",{"$f":"SUMIFS(Главная_tb[Расход],Главная_tb[Наименование],Медикаменты!$K190,Главная_tb[Место],Медикаменты!$I190,Главная_tb[Дата],\">=\"&$R$1,Главная_tb[Дата],\"<=\"&$R$2)","v":0},{"$f":"IF(Медикаменты!$L190=0,0,COUNTIFS($J$2:J190,Медикаменты!$J190,$L$2:L190,\">\"&0))","v":0},"шт."]
[null,null,null,null,null,null,null,null,"Склад","Расходники","Пробирка для исследования сыворотки (1 мл., 13х75)",{"$f":"SUMIFS(Главная_tb[Расход],Главная_tb[Наименование],Медикаменты!$K191,Главная_tb[Место],Медикаменты!$I191,Главная_tb[Дата],\">=\"&$R$1,Главная_tb[Дата],\"<=\"&$R$2)","v":0},{"$f":"IF(Медикаменты!$L191=0,0,COUNTIFS($J$2:J191,Медикаменты!$J191,$L$2:L191,\">\"&0))","v":0},"шт."]
[null,null,null,null,null,null,null,null,"Склад","Расходники","Пробирка микровета с ЭДТА (0,2 мл., 100 шт.)",{"$f":"SUMIFS(Главная_tb[Расход],Главная_tb[Наименование],Медикаменты!$K192,Главная_tb[Место],Медикаменты!$I192,Главная_tb[Дата],\">=\"&$R$1,Главная_tb[Дата],\"<=\"&$R$2)","v":0},{"$f":"IF(Медикаменты!$L192=0,0,COUNTIFS($J$2:J192,Медикаменты!$J192,$L$2:L192,\">\"&0))","v":0},"уп."]
[null,null,null,null,null,null,null,null,"Склад","Расходники","Пробирка с ватным тампоном",{"$f":"SUMIFS(Главная_tb[Расход],Главная_tb[Наименование],Медикаменты!$K193,Главная_tb[Место],Медикаменты!$I193,Главная_tb[Дата],\">=\"&$R$1,Главная_tb[Дата],\"<=\"&$R$2)","v":0},{"$f":"IF(Медикаменты!$L193=0,0,COUNTIFS($J$2:J193,Медикаменты!$J193,$L$2:L193,\">\"&0))","v":0},"шт."]
[null,null,null,null,null,null,null,null,"Склад","Расходники","Пробирка с ватным тампоном стерильная (без наполнителя)",{"$f":"SUMIFS(Главная_tb[Расход],Главная_tb[Наименование],Медикаменты!$K194,Главная_tb[Место],Медикаменты!$I194,Главная_tb[Дата],\">=\"&$R$1,Главная_tb[Дата],\"<=\"&$R$2)","v":0},{"$f":"IF(Медикаменты!$L194=0,0,COUNTIFS($J$2:J194,Медикаменты!$J194,$L$2:L194,\">\"&0))","v":0},"шт."]
[null,null,null,null,null,null,null,null,"Склад","Расходники","Пробирка стеклянная (10 мл.)",{"$f":"SUMIFS(Главная_tb[Расход],Главная_tb[Наименование],Медикаменты!$K195,Главная_tb[Место],Медикаменты!$I195,Главная_tb[Дата],\">=\"&$R$1,Главная_tb[Дата],\"<=\"&$R$2)","v":0},{"$f":"IF(Медикаменты!$L195=0,0,COUNTIFS($J$2:J195,Медикаменты!$J195,$L$2:L195,\">\"&0))","v":0},"шт."]
[null,null,null,null,null,null,null,null,"Склад","Расходники","Пробирка ЭДТА-КЗ (1 мл., 13х75)",{"$f":"SUMIFS(Главная_tb[Расход],Главная_tb[Наименование],Медикаменты!$K196,Главная_tb[Место],Медикаменты!$I196,Главная_tb[Дата],\">=\"&$R$1,Главная_tb[Дата],\"<=\"&$R$2)","v":0},{"$f":"IF(Медикаменты!$L196=0,0,COUNTIFS($J$2:J196,Медикаменты!$J196,$L$2:L196,\">\"&0))","v":0},"шт."]
[null,null,null,null,null,null,null,null,"Склад","Расходники","Пробирки микробиологические одноразовые с завинчивающейся крышкой (стер., 10 мл.)",{"$f":"SUMIFS(Главная_tb[Расход],Главная_tb[Наименование],Медикаменты!$K197,Главная_tb[Место],Медикаменты!$I197,Главная_tb[Дата],\">=\"&$R$1,Главная_tb[Дата],\"<=\"&$R$2)","v":0},{"$f":"IF(Медикаменты!$L197=0,0,COUNTIFS($J$2:J197,Медикаменты!$J197,$L$2:L197,\">\"&0))","v":0},"шт."]
[null,null,null,null,null,null,null,null,"Склад","Дезсредства","Проклин антисептик (1 л. с триггером, экспресс)",{"$f":"SUMIFS(Главная_tb[Расход],Главная_tb[Наименование],Медикаменты!$K198,Главная_tb[Место],Медикаменты!$I198,Главная_tb[Дата],\">=\"&$R$1,Главная_tb[Дата],\"<=\"&$R$2)","v":2},{"$f":"IF(Медикаменты!$L198=0,0,COUNTIFS($J$2:J198,Медикаменты!$J198,$L$2:L198,\">\"&0))","v":6},"л."]
[null,null,null,null,null,null,null,null,"Склад","Дезсредства","Проклин антисептик (1 л. УМР)",{"$f":"SUMIFS(Главная_tb[Расход],Главная_tb[Наименование],Медикаменты!$K199,Главная_tb[Место],Медикаменты!$I199,Главная_tb[Дата],\">=\"&$R$1,Главная_tb[Дата],\"<=\"&$R$2)","v":3},{"$f":"IF(Медикаменты!$L199=0,0,COUNTIFS($J$2:J199,Медикаменты!$J199,$L$2:L199,\">\"&0))","v":7},"л."]
[null,null,null,null,null,null,null,null,"Склад","Расходники","Простыня (нест, 70х80 см., 200 шт.)",{"$f":"SUMIFS(Главная_tb[Расход],Главная_tb[Наименование],Медикаменты!$K200,Главная_tb[Место],Медикаменты!$I200,Главная_tb[Дата],\">=\"&$R$1,Главная_tb[Дата],\"<=\"&$R$2)","v":0},{"$f":"IF(Медикаменты!$L200=0,0,COUNTIFS($J$2:J200,Медикаменты!$J200,$L$2:L200,\">\"&0))","v":0},"рул."]
[null,null,null,null,null,null,null,null,"Склад","Медикаменты","Пульмикорт (суспензия для ингаляций 0,5 мг/мл, 2 мл., №20)",{"$f":"SUMIFS(Главная_tb[Расход],Главная_tb[Наименование],Медикаменты!$K201,Главная_tb[Место],Медикаменты!$I201,Главная_tb[Дата],\">=\"&$R$1,Главная_tb[Дата],\"<=\"&$R$2)","v":0},{"$f":"IF(Медикаменты!$L201=0,0,COUNTIFS($J$2:J201,Медикаменты!$J201,$L$2:L201,\">\"&0))","v":0},"уп."]
[null,null,null,null,null,null,null,null,"Склад","Расходники","Рентгеновская пленка Carestream Health Dry View 5700 Laser Imager (20х25 см., 125 л.)",{"$f":"SUMIFS(Главная_tb[Расход],Главная_tb[Наименование],Медикаменты!$K202,Главная_tb[Место],Медикаменты!$I202,Главная_tb[Дата],\">=\"&$R$1,Главная_tb[Дата],\"<=\"&$R$2)","v":0},{"$f":"IF(Медикаменты!$L202=0,0,COUNTIFS($J$2:J202,Медикаменты!$J202,$L$2:L202,\">\"&0))","v":0},"уп."]
[null,null,null,null,null,null,null,null,"Склад","Расходники","Рентгеновская пленка Carestream Health Dry View 5700 Laser Imager (35х43 см., 125 л.)",{"$f":"SUMIFS(Главная_tb[Расход],Главная_tb[Наименование],Медикаменты!$K203,Главная_tb[Место],Медикаменты!$I203,Главная_tb[Дата],\">=\"&$R$1,Главная_tb[Дата],\"<=\"&$R$2)","v":0},{"$f":"IF(Медикаменты!$L203=0,0,COUNTIFS($J$2:J203,Медикаменты!$J203,$L$2:L203,\">\"&0))","v":0},"уп."]
[null,null,null,null,null,null,null,null,"Склад","Рецептурные бланки","Рецептурные бланки (серия 25-18)",{"$f":"SUMIFS(Главная_tb[Расход],Главная_tb[Наименование],Медикаменты!$K204,Главная_tb[Место],Медикаменты!$I204,Главная_tb[Дата],\">=\"&$R$1,Главная_tb[Дата],\"<=\"&$R$2)","v":0},{"$f":"IF(Медикаменты!$L204=0,0,COUNTIFS($J$2:J204,Медикаменты!$J204,$L$2:L204,\">\"&0))","v":0},"шт."]
[null,null,null,null,null,null,null,null,"ДС","Медикаменты (ДС)","Рибоксин (таб., 200 мг., №50)",{"$f":"SUMIFS(Главная_tb[Расход],Главная_tb[Наименование],Медикаменты!$K205,Главная_tb[Место],Медикаменты!$I205,Главная_tb[Дата],\">=\"&$R$1,Главная_tb[Дата],\"<=\"&$R$2)","v":0},{"$f":"IF(Медикаменты!$L205=0,0,COUNTIFS($J$2:J205,Медикаменты!$J205,$L$2:L205,\">\"&0))","v":0},"таб."]
[null,null,null,null,null,null,null,null,"Склад","Расходники","Салфетка (спанлейс, 30х40 см., 100 шт.)",{"$f":"SUMIFS(Главная_tb[Расход],Главная_tb[Наименование],Медикаменты!$K206,Главная_tb[Место],Медикаменты!$I206,Главная_tb[Дата],\">=\"&$R$1,Главная_tb[Дата],\"<=\"&$R$2)","v":16},{"$f":"IF(Медикаменты!$L206=0,0,COUNTIFS($J$2:J206,Медикаменты!$J206,$L$2:L206,\">\"&0))","v":13},"уп."]
[null,null,null,null,null,null,null,null,"Склад","Расходники","Салфетка (стер., 14х16 см., №10)",{"$f":"SUMIFS(Главная_tb[Расход],Главная_tb[Наименование],Медикаменты!$K207,Главная_tb[Место],Медикаменты!$I207,Главная_tb[Дата],\">=\"&$R$1,Главная_tb[Дата],\"<=\"&$R$2)","v":25},{"$f":"IF(Медикаменты!$L207=0,0,COUNTIFS($J$2:J207,Медикаменты!$J207,$L$2:L207,\">\"&0))","v":14},"уп."]
[null,null,null,null,null,null,null,null,"Склад","Расходники","Салфетка (стер., 5х5 см., №10)",{"$f":"SUMIFS(Главная_tb[Расход],Главная_tb[Наименование],Медикаменты!$K208,Главная_tb[Место],Медикаменты!$I208,Главная_tb[Дата],\">=\"&$R$1,Главная_tb[Дата],\"<=\"&$R$2)","v":0},{"$f":"IF(Медикаменты!$L208=0,0,COUNTIFS($J$2:J208,Медикаменты!$J208,$L$2:L208,\">\"&0))","v":0},"уп."]
[null,null,null,null,null,null,null,null,"Склад","Расходники","Салфетка спиртовая (стер., 60х100 мм., 70%)",{"$f":"SUMIFS(Главная_tb[Расход],Главная_tb[Наименование],Медикаменты!$K209,Главная_tb[Место],Медикаменты!$I209,Главная_tb[Дата],\">=\"&$R$1,Главная_tb[Дата],\"<=\"&$R$2)","v":5450},{"$f":"IF(Медикаменты!$L209=0,0,COUNTIFS($J$2:J209,Медикаменты!$J209,$L$2:L209,\">\"&0))","v":15},"шт."]
[null,null,null,null,null,null,null,null,"Склад","Медикаменты","Сальбутамол (100 мкг/доза, 90 доз, 12 мл. аэрозоль)",{"$f":"SUMIFS(Главная_tb[Расход],Главная_tb[Наименование],Медикаменты!$K210,Главная_tb[Место],Медикаменты!$I210,Главная_tb[Дата],\">=\"&$R$1,Главная_tb[Дата],\"<=\"&$R$2)","v":0},{"$f":"IF(Медикаменты!$L210=0,0,COUNTIFS($J$2:J210,Медикаменты!$J210,$L$2:L210,\">\"&0))","v":0},"уп."]
[null,null,null,null,null,null,null,null,"ДС","Медикаменты (ДС)","Сбор успокоительный (50,0 г.)",{"$f":"SUMIFS(Главная_tb[Расход],Главная_tb[Наименование],Медикаменты!$K211,Главная_tb[Место],Медикаменты!$I211,Главная_tb[Дата],\">=\"&$R$1,Главная_tb[Дата],\"<=\"&$R$2)","v":0},{"$f":"IF(Медикаменты!$L211=0,0,COUNTIFS($J$2:J211,Медикаменты!$J211,$L$2:L211,\">\"&0))","v":0},"уп."]
[null,null,null,null,null,null,null,null,"Склад","Дезсредства","Септолит-Форте (1 л.)",{"$f":"SUMIFS(Главная_tb[Расход],Главная_tb[Наименование],Медикаменты!$K212,Главная_tb[Место],Медикаменты!$I212,Главная_tb[Дата],\">=\"&$R$1,Главная_tb[Дата],\"<=\"&$R$2)","v":0},{"$f":"IF(Медикаменты!$L212=0,0,COUNTIFS($J$2:J212,Медикаменты!$J212,$L$2:L212,\">\"&0))","v":0},"л."]
[null,null,null,null,null,null,null,null,"Склад","Расходники","Скальпель (однораз., хир., стер.)",{"$f":"SUMIFS(Главная_tb[Расход],Главная_tb[Наименование],Медикаменты!$K213,Главная_tb[Место],Медикаменты!$I213,Главная_tb[Дата],\">=\"&$R$1,Главная_tb[Дата],\"<=\"&$R$2)","v":0},{"$f":"IF(Медикаменты!$L213=0,0,COUNTIFS($J$2:J213,Медикаменты!$J213,$L$2:L213,\">\"&0))","v":0},"шт."]
[null,null,null,null,null,null,null,null,"Склад","Вакцина","Совигрипп",{"$f":"SUMIFS(Главная_tb[Расход],Главная_tb[Наименование],Медикаменты!$K214,Главная_tb[Место],Медикаменты!$I214,Главная_tb[Дата],\">=\"&$R$1,Главная_tb[Дата],\"<=\"&$R$2)","v":2610},{"$f":"IF(Медикаменты!$L214=0,0,COUNTIFS($J$2:J214,Медикаменты!$J214,$L$2:L214,\">\"&0))","v":15},"доз."]
[null,null,null,null,null,null,null,null,"ДС","Медикаменты (ДС)","Сорбифер-Дурулес (таб., 320 мг., №30)",{"$f":"SUMIFS(Главная_tb[Расход],Главная_tb[Наименование],Медикаменты!$K215,Главная_tb[Место],Медикаменты!$I215,Главная_tb[Дата],\">=\"&$R$1,Главная_tb[Дата],\"<=\"&$R$2)","v":0},{"$f":"IF(Медикаменты!$L215=0,0,COUNTIFS($J$2:J215,Медикаменты!$J215,$L$2:L215,\">\"&0))","v":0},"таб."]
[null,null,null,null,null,null,null,null,"Склад","Медикаменты","Софрадекс (капли, 5 мл.)",{"$f":"SUMIFS(Главная_tb[Расход],Главная_tb[Наименование],Медикаменты!$K216,Главная_tb[Место],Медикаменты!$I216,Главная_tb[Дата],\">=\"&$R$1,Главная_tb[Дата],\"<=\"&$R$2)","v":0},{"$f":"IF(Медикаменты!$L216=0,0,COUNTIFS($J$2:J216,Медикаменты!$J216,$L$2:L216,\">\"&0))","v":0},"фл."]
[null,null,null,null,null,null,null,null,"Склад","Спирт","Спирт этиловый (70%)",{"$f":"SUMIFS(Главная_tb[Расход],Главная_tb[Наименование],Медикаменты!$K217,Главная_tb[Место],Медикаменты!$I217,Главная_tb[Дата],\">=\"&$R$1,Главная_tb[Дата],\"<=\"&$R$2)","v":1000},{"$f":"IF(Медикаменты!$L217=0,0,COUNTIFS($J$2:J217,Медикаменты!$J217,$L$2:L217,\">\"&0))","v":1},"мл."]
[null,null,null,null,null,null,null,null,"Склад","Спирт","Спирт этиловый (95%)",{"$f":"SUMIFS(Главная_tb[Расход],Главная_tb[Наименование],Медикаменты!$K218,Главная_tb[Место],Медикаменты!$I218,Главная_tb[Дата],\">=\"&$R$1,Главная_tb[Дата],\"<=\"&$R$2)","v":100},{"$f":"IF(Медикаменты!$L218=0,0,COUNTIFS($J$2:J218,Медикаменты!$J218,$L$2:L218,\">\"&0))","v":2},"мл."]
[null,null,null,null,null,null,null,null,"Склад","Дезсредства","Средство Эвойлан-Универсал с антимикробным эффектом (5 л.)",{"$f":"SUMIFS(Главная_tb[Расход],Главная_tb[Наименование],Медикаменты!$K219,Главная_tb[Место],Медикаменты!$I219,Главная_tb[Дата],\">=\"&$R$1,Главная_tb[Дата],\"<=\"&$R$2)","v":0},{"$f":"IF(Медикаменты!$L219=0,0,COUNTIFS($J$2:J219,Медикаменты!$J219,$L$2:L219,\">\"&0))","v":0},"шт."]
[null,null,null,null,null,null,null,null,"Склад","Медикаменты","Сульфацил натрия (20%, 1,5 мл., №2)",{"$f":"SUMIFS(Главная_tb[Расход],Главная_tb[Наименование],Медикаменты!$K220,Главная_tb[Место],Медикаменты!$I220,Главная_tb[Дата],\">=\"&$R$1,Главная_tb[Дата],\"<=\"&$R$2)","v":0},{"$f":"IF(Медикаменты!$L220=0,0,COUNTIFS($J$2:J220,Медикаменты!$J220,$L$2:L220,\">\"&0))","v":0},"уп."]
[null,null,null,null,null,null,null,null,"Склад","Медикаменты","Сульфацил натрия (20%,10мл.№1)",{"$f":"SUMIFS(Главная_tb[Расход],Главная_tb[Наименование],Медикаменты!$K221,Главная_tb[Место],Медикаменты!$I221,Главная_tb[Дата],\">=\"&$R$1,Главная_tb[Дата],\"<=\"&$R$2)","v":0},{"$f":"IF(Медикаменты!$L221=0,0,COUNTIFS($J$2:J221,Медикаменты!$J221,$L$2:L221,\">\"&0))","v":0},"фл."]
[null,null,null,null,null,null,null,null,"Склад","Медикаменты","Супрастин (амп., 2%, 1,0 мл.)",{"$f":"SUMIFS(Главная_tb[Расход],Главная_tb[Наименование],Медикаменты!$K222,Главная_tb[Место],Медикаменты!$I222,Главная_tb[Дата],\">=\"&$R$1,Главная_tb[Дата],\"<=\"&$R$2)","v":0},{"$f":"IF(Медикаменты!$L222=0,0,COUNTIFS($J$2:J222,Медикаменты!$J222,$L$2:L222,\">\"&0))","v":0},"уп.,амп."]
[null,null,null,null,null,null,null,null,"ДС","Медикаменты (ДС)","Супрастин (амп., 2%, 1,0 мл.)",{"$f":"SUMIFS(Главная_tb[Расход],Главная_tb[Наименование],Медикаменты!$K223,Главная_tb[Место],Медикаменты!$I223,Главная_tb[Дата],\">=\"&$R$1,Главная_tb[Дата],\"<=\"&$R$2)","v":0},{"$f":"IF(Медикаменты!$L223=0,0,COUNTIFS($J$2:J223,Медикаменты!$J223,$L$2:L223,\">\"&0))","v":0},"уп.,амп."]
[null,null,null,null,null,null,null,null,"Склад","Медикаменты","Супрастин (таб., 25 мг., №20)",{"$f":"SUMIFS(Главная_tb[Расход],Главная_tb[Наименование],Медикаменты!$K224,Главная_tb[Место],Медикаменты!$I224,Главная_tb[Дата],\">=\"&$R$1,Главная_tb[Дата],\"<=\"&$R$2)","v":0},{"$f":"IF(Медикаменты!$L224=0,0,COUNTIFS($J$2:J224,Медикаменты!$J224,$L$2:L224,\">\"&0))","v":0},"уп."]
[null,null,null,null,null,null,null,null,"ДС","Медикаменты (ДС)","Супрастин (таб., 25 мг., №20)",{"$f":"SUMIFS(Главная_tb[Расход],Главная_tb[Наименование],Медикаменты!$K225,Главная_tb[Место],Медикаменты!$I225,Главная_tb[Дата],\">=\"&$R$1,Главная_tb[Дата],\"<=\"&$R$2)","v":0},{"$f":"IF(Медикаменты!$L225=0,0,COUNTIFS($J$2:J225,Медикаменты!$J225,$L$2:L225,\">\"&0))","v":0},"уп."]
[null,null,null,null,null,null,null,null,"Склад","Расходники","Тампон-зонд (100 шт.)",{"$f":"SUMIFS(Главная_tb[Расход],Главная_tb[Наименование],Медикаменты!$K226,Главная_tb[Место],Медикаменты!$I226,Главная_tb[Дата],\">=\"&$R$1,Главная_tb[Дата],\"<=\"&$R$2)","v":0},{"$f":"IF(Медикаменты!$L226=0,0,COUNTIFS($J$2:J226,Медикаменты!$J226,$L$2:L226,\">\"&0))","v":0},"уп."]
[null,null,null,null,null,null,null,null,"ДС","Медикаменты (ДС)","Тиамин-хлорид (амп., 5%, 1,0 мл., №10)",{"$f":"SUMIFS(Главная_tb[Расход],Главная_tb[Наименование],Медикаменты!$K227,Главная_tb[Место],Медикаменты!$I227,Главная_tb[Дата],\">=\"&$R$1,Главная_tb[Дата],\"<=\"&$R$2)","v":0},{"$f":"IF(Медикаменты!$L227=0,0,COUNTIFS($J$2:J227,Медикаменты!$J227,$L$2:L227,\">\"&0))","v":0},"амп."]
[null,null,null,null,null,null,null,null,"ДС","Медикаменты (ДС)","Токоферола ацетат (50% 100 мг., №10)",{"$f":"SUMIFS(Главная_tb[Расход],Главная_tb[Наименование],Медикаменты!$K228,Главная_tb[Место],Медикаменты!$I228,Главная_tb[Дата],\">=\"&$R$1,Главная_tb[Дата],\"<=\"&$R$2)","v":0},{"$f":"IF(Медикаменты!$L228=0,0,COUNTIFS($J$2:J228,Медикаменты!$J228,$L$2:L228,\">\"&0))","v":0},"амп."]
[null,null,null,null,null,null,null,null,"Склад","Медикаменты","Тропикамид (капли 0,5%, 10 мл.)",{"$f":"SUMIFS(Главная_tb[Расход],Главная_tb[Наименование],Медикаменты!$K229,Главная_tb[Место],Медикаменты!$I229,Главная_tb[Дата],\">=\"&$R$1,Главная_tb[Дата],\"<=\"&$R$2)","v":0},{"$f":"IF(Медикаменты!$L229=0,0,COUNTIFS($J$2:J229,Медикаменты!$J229,$L$2:L229,\">\"&0))","v":0},"уп."]
[null,null,null,null,null,null,null,null,"Склад","Медикаменты","Тропикамид (капли 1%, 10 мл.)",{"$f":"SUMIFS(Главная_tb[Расход],Главная_tb[Наименование],Медикаменты!$K230,Главная_tb[Место],Медикаменты!$I230,Главная_tb[Дата],\">=\"&$R$1,Главная_tb[Дата],\"<=\"&$R$2)","v":0},{"$f":"IF(Медикаменты!$L230=0,0,COUNTIFS($J$2:J230,Медикаменты!$J230,$L$2:L230,\">\"&0))","v":0},"уп."]
[null,null,null,null,null,null,null,null,"Склад","Медикаменты","Уголь активированный таб.250 мг.№10",{"$f":"SUMIFS(Главная_tb[Расход],Главная_tb[Наименование],Медикаменты!$K231,Главная_tb[Место],Медикаменты!$I231,Главная_tb[Дата],\">=\"&$R$1,Главная_tb[Дата],\"<=\"&$R$2)","v":0},{"$f":"IF(Медикаменты!$L231=0,0,COUNTIFS($J$2:J231,Медикаменты!$J231,$L$2:L231,\">\"&0))","v":0},"уп"]
[null,null,null,null,null,null,null,null,"ДС","Медикаменты (ДС)","Фамотидин (таб., 20 мг., №20)",{"$f":"SUMIFS(Главная_tb[Расход],Главная_tb[Наименование],Медикаменты!$K232,Главная_tb[Место],Медикаменты!$I232,Главная_tb[Дата],\">=\"&$R$1,Главная_tb[Дата],\"<=\"&$R$2)","v":0},{"$f":"IF(Медикаменты!$L232=0,0,COUNTIFS($J$2:J232,Медикаменты!$J232,$L$2:L232,\">\"&0))","v":0},"таб."]
[null,null,null,null,null,null,null,null,"Склад","Расходники","Фартук медицинский одноразовый",{"$f":"SUMIFS(Главная_tb[Расход],Главная_tb[Наименование],Медикаменты!$K233,Главная_tb[Место],Медикаменты!$I233,Главная_tb[Дата],\">=\"&$R$1,Главная_tb[Дата],\"<=\"&$R$2)","v":0},{"$f":"IF(Медикаменты!$L233=0,0,COUNTIFS($J$2:J233,Медикаменты!$J233,$L$2:L233,\">\"&0))","v":0},"шт."]
[null,null,null,null,null,null,null,null,"ДС","Медикаменты (ДС)","Фенибут (таб., 250 мг., №20)",{"$f":"SUMIFS(Главная_tb[Расход],Главная_tb[Наименование],Медикаменты!$K234,Главная_tb[Место],Медикаменты!$I234,Главная_tb[Дата],\">=\"&$R$1,Главная_tb[Дата],\"<=\"&$R$2)","v":0},{"$f":"IF(Медикаменты!$L234=0,0,COUNTIFS($J$2:J234,Медикаменты!$J234,$L$2:L234,\">\"&0))","v":0},"таб."]
[null,null,null,null,null,null,null,null,"Склад","Растворы","Фурацилин (р-р)",{"$f":"SUMIFS(Главная_tb[Расход],Главная_tb[Наименование],Медикаменты!$K235,Главная_tb[Место],Медикаменты!$I235,Главная_tb[Дата],\">=\"&$R$1,Главная_tb[Дата],\"<=\"&$R$2)","v":1},{"$f":"IF(Медикаменты!$L235=0,0,COUNTIFS($J$2:J235,Медикаменты!$J235,$L$2:L235,\">\"&0))","v":12},"фл."]
[null,null,null,null,null,null,null,null,"Склад","Расходники","Халат (хир., стер.)",{"$f":"SUMIFS(Главная_tb[Расход],Главная_tb[Наименование],Медикаменты!$K236,Главная_tb[Место],Медикаменты!$I236,Главная_tb[Дата],\">=\"&$R$1,Главная_tb[Дата],\"<=\"&$R$2)","v":0},{"$f":"IF(Медикаменты!$L236=0,0,COUNTIFS($J$2:J236,Медикаменты!$J236,$L$2:L236,\">\"&0))","v":0},"шт."]
[null,null,null,null,null,null,null,null,"Склад","Расходники","Халат детский с капюшоном для спелеолечения",{"$f":"SUMIFS(Главная_tb[Расход],Главная_tb[Наименование],Медикаменты!$K237,Главная_tb[Место],Медикаменты!$I237,Главная_tb[Дата],\">=\"&$R$1,Главная_tb[Дата],\"<=\"&$R$2)","v":0},{"$f":"IF(Медикаменты!$L237=0,0,COUNTIFS($J$2:J237,Медикаменты!$J237,$L$2:L237,\">\"&0))","v":0},"шт."]
[null,null,null,null,null,null,null,null,"Склад","Вакцина","Хиберикс",{"$f":"SUMIFS(Главная_tb[Расход],Главная_tb[Наименование],Медикаменты!$K238,Главная_tb[Место],Медикаменты!$I238,Главная_tb[Дата],\">=\"&$R$1,Главная_tb[Дата],\"<=\"&$R$2)","v":0},{"$f":"IF(Медикаменты!$L238=0,0,COUNTIFS($J$2:J238,Медикаменты!$J238,$L$2:L238,\">\"&0))","v":0},"доз."]
[null,null,null,null,null,null,null,null,"Склад","Медикаменты","Хлоргексидин (0,05%, 100 мл.)",{"$f":"SUMIFS(Главная_tb[Расход],Главная_tb[Наименование],Медикаменты!$K239,Главная_tb[Место],Медикаменты!$I239,Главная_tb[Дата],\">=\"&$R$1,Главная_tb[Дата],\"<=\"&$R$2)","v":0},{"$f":"IF(Медикаменты!$L239=0,0,COUNTIFS($J$2:J239,Медикаменты!$J239,$L$2:L239,\">\"&0))","v":0},"уп."]
[null,null,null,null,null,null,null,null,"ДС","Медикаменты (ДС)","Хлоргексидин (0,05%, 100 мл.)",{"$f":"SUMIFS(Главная_tb[Расход],Главная_tb[Наименование],Медикаменты!$K240,Главная_tb[Место],Медикаменты!$I240,Главная_tb[Дата],\">=\"&$R$1,Главная_tb[Дата],\"<=\"&$R$2)","v":0},{"$f":"IF(Медикаменты!$L240=0,0,COUNTIFS($J$2:J240,Медикаменты!$J240,$L$2:L240,\">\"&0))","v":0},"уп."]
[null,null,null,null,null,null,null,null,"Склад","Медикаменты","Хлоропирамин (амп., 20 мг., 1 мл., №5)",{"$f":"SUMIFS(Главная_tb[Расход],Главная_tb[Наименование],Медикаменты!$K241,Главная_tb[Место],Медикаменты!$I241,Главная_tb[Дата],\">=\"&$R$1,Главная_tb[Дата],\"<=\"&$R$2)","v":0},{"$f":"IF(Медикаменты!$L241=0,0,COUNTIFS($J$2:J241,Медикаменты!$J241,$L$2:L241,\">\"&0))","v":0},"уп."]
[null,null,null,null,null,null,null,null,"Склад","Медикаменты","Хлоропирамин (таб., 0,025 гр., №20)",{"$f":"SUMIFS(Главная_tb[Расход],Главная_tb[Наименование],Медикаменты!$K242,Главная_tb[Место],Медикаменты!$I242,Главная_tb[Дата],\">=\"&$R$1,Главная_tb[Дата],\"<=\"&$R$2)","v":0},{"$f":"IF(Медикаменты!$L242=0,0,COUNTIFS($J$2:J242,Медикаменты!$J242,$L$2:L242,\">\"&0))","v":0},"уп."]
[null,null,null,null,null,null,null,null,"ДС","Медикаменты (ДС)","Церебролизин (амп., 5 мл., №5)",{"$f":"SUMIFS(Главная_tb[Расход],Главная_tb[Наименование],Медикаменты!$K243,Главная_tb[Место],Медикаменты!$I243,Главная_tb[Дата],\">=\"&$R$1,Главная_tb[Дата],\"<=\"&$R$2)","v":0},{"$f":"IF(Медикаменты!$L243=0,0,COUNTIFS($J$2:J243,Медикаменты!$J243,$L$2:L243,\">\"&0))","v":0},"амп."]
[null,null,null,null,null,null,null,null,"Склад","Медикаменты","Цетиризин (таб., 10 мг., № 10)",{"$f":"SUMIFS(Главная_tb[Расход],Главная_tb[Наименование],Медикаменты!$K244,Главная_tb[Место],Медикаменты!$I244,Главная_tb[Дата],\">=\"&$R$1,Главная_tb[Дата],\"<=\"&$R$2)","v":0},{"$f":"IF(Медикаменты!$L244=0,0,COUNTIFS($J$2:J244,Медикаменты!$J244,$L$2:L244,\">\"&0))","v":0},"таб., уп."]
[null,null,null,null,null,null,null,null,"ДС","Медикаменты (ДС)","Цетиризин (таб., 10 мг., № 10)",{"$f":"SUMIFS(Главная_tb[Расход],Главная_tb[Наименование],Медикаменты!$K245,Главная_tb[Место],Медикаменты!$I245,Главная_tb[Дата],\">=\"&$R$1,Главная_tb[Дата],\"<=\"&$R$2)","v":20},{"$f":"IF(Медикаменты!$L245=0,0,COUNTIFS($J$2:J245,Медикаменты!$J245,$L$2:L245,\">\"&0))","v":7},"таб., уп."]
[null,null,null,null,null,null,null,null,"Склад","Медикаменты","Цетиризин (таб., 10 мг., № 30)",{"$f":"SUMIFS(Главная_tb[Расход],Главная_tb[Наименование],Медикаменты!$K246,Главная_tb[Место],Медикаменты!$I246,Главная_tb[Дата],\">=\"&$R$1,Главная_tb[Дата],\"<=\"&$R$2)","v":0},{"$f":"IF(Медикаменты!$L246=0,0,COUNTIFS($J$2:J246,Медикаменты!$J246,$L$2:L246,\">\"&0))","v":0},"таб., уп."]
[null,null,null,null,null,null,null,null,"ДС","Медикаменты (ДС)","Цетиризин (таб., 10 мг., № 30)",{"$f":"SUMIFS(Главная_tb[Расход],Главная_tb[Наименование],Медикаменты!$K247,Главная_tb[Место],Медикаменты!$I247,Главная_tb[Дата],\">=\"&$R$1,Главная_tb[Дата],\"<=\"&$R$2)","v":0},{"$f":"IF(Медикаменты!$L247=0,0,COUNTIFS($J$2:J247,Медикаменты!$J247,$L$2:L247,\">\"&0))","v":0},"таб., уп."]
[null,null,null,null,null,null,null,null,"ДС","Медикаменты (ДС)","Цианокобаламин (амп., 0,5 мг./1 мл., 1 мл., №10)",{"$f":"SUMIFS(Главная_tb[Расход],Главная_tb[Наименование],Медикаменты!$K248,Главная_tb[Место],Медикаменты!$I248,Главная_tb[Дата],\">=\"&$R$1,Главная_tb[Дата],\"<=\"&$R$2)","v":100},{"$f":"IF(Медикаменты!$L248=0,0,COUNTIFS($J$2:J248,Медикаменты!$J248,$L$2:L248,\">\"&0))","v":8},"амп."]
[null,null,null,null,null,null,null,null,"Склад","Медикаменты","Цикломед (1%, 5 мл.)",{"$f":"SUMIFS(Главная_tb[Расход],Главная_tb[Наименование],Медикаменты!$K249,Главная_tb[Место],Медикаменты!$I249,Главная_tb[Дата],\">=\"&$R$1,Главная_tb[Дата],\"<=\"&$R$2)","v":0},{"$f":"IF(Медикаменты!$L249=0,0,COUNTIFS($J$2:J249,Медикаменты!$J249,$L$2:L249,\">\"&0))","v":0},"уп."]
[null,null,null,null,null,null,null,null,"ДС","Медикаменты (ДС)","Циннаризин (таб. 25 мг., №50)",{"$f":"SUMIFS(Главная_tb[Расход],Главная_tb[Наименование],Медикаменты!$K250,Главная_tb[Место],Медикаменты!$I250,Главная_tb[Дата],\">=\"&$R$1,Главная_tb[Дата],\"<=\"&$R$2)","v":0},{"$f":"IF(Медикаменты!$L250=0,0,COUNTIFS($J$2:J250,Медикаменты!$J250,$L$2:L250,\">\"&0))","v":0},"таб."]
[null,null,null,null,null,null,null,null,"Склад","Расходники","Чашка Петри (60 мм. х 15 мм.)",{"$f":"SUMIFS(Главная_tb[Расход],Главная_tb[Наименование],Медикаменты!$K251,Главная_tb[Место],Медикаменты!$I251,Главная_tb[Дата],\">=\"&$R$1,Главная_tb[Дата],\"<=\"&$R$2)","v":0},{"$f":"IF(Медикаменты!$L251=0,0,COUNTIFS($J$2:J251,Медикаменты!$J251,$L$2:L251,\">\"&0))","v":0},"шт."]
[null,null,null,null,null,null,null,null,"Склад","Расходники","Шапочка медицинская (нест.)",{"$f":"SUMIFS(Главная_tb[Расход],Главная_tb[Наименование],Медикаменты!$K252,Главная_tb[Место],Медикаменты!$I252,Главная_tb[Дата],\">=\"&$R$1,Главная_tb[Дата],\"<=\"&$R$2)","v":0},{"$f":"IF(Медикаменты!$L252=0,0,COUNTIFS($J$2:J252,Медикаменты!$J252,$L$2:L252,\">\"&0))","v":0},"шт."]
[null,null,null,null,null,null,null,null,"Склад","Расходники","Шпатель (стер.)",{"$f":"SUMIFS(Главная_tb[Расход],Главная_tb[Наименование],Медикаменты!$K253,Главная_tb[Место],Медикаменты!$I253,Главная_tb[Дата],\">=\"&$R$1,Главная_tb[Дата],\"<=\"&$R$2)","v":4600},{"$f":"IF(Медикаменты!$L253=0,0,COUNTIFS($J$2:J253,Медикаменты!$J253,$L$2:L253,\">\"&0))","v":16},"шт."]
[null,null,null,null,null,null,null,null,"Склад","Расходники","Шприц (1 мл.)",{"$f":"SUMIFS(Главная_tb[Расход],Главная_tb[Наименование],Медикаменты!$K254,Главная_tb[Место],Медикаменты!$I254,Главная_tb[Дата],\">=\"&$R$1,Главная_tb[Дата],\"<=\"&$R$2)","v":2100},{"$f":"IF(Медикаменты!$L254=0,0,COUNTIFS($J$2:J254,Медикаменты!$J254,$L$2:L254,\">\"&0))","v":17},"шт."]
[null,null,null,null,null,null,null,null,"Склад","Расходники","Шприц (10 мл.)",{"$f":"SUMIFS(Главная_tb[Расход],Главная_tb[Наименование],Медикаменты!$K255,Главная_tb[Место],Медикаменты!$I255,Главная_tb[Дата],\">=\"&$R$1,Главная_tb[Дата],\"<=\"&$R$2)","v":200},{"$f":"IF(Медикаменты!$L255=0,0,COUNTIFS($J$2:J255,Медикаменты!$J255,$L$2:L255,\">\"&0))","v":18},"шт."]
[null,null,null,null,null,null,null,null,"Склад","Расходники","Шприц (2 мл.)",{"$f":"SUMIFS(Главная_tb[Расход],Главная_tb[Наименование],Медикаменты!$K256,Главная_tb[Место],Медикаменты!$I256,Главная_tb[Дата],\">=\"&$R$1,Главная_tb[Дата],\"<=\"&$R$2)","v":500},{"$f":"IF(Медикаменты!$L256=0,0,COUNTIFS($J$2:J256,Медикаменты!$J256,$L$2:L256,\">\"&0))","v":19},"шт."]
[null,null,null,null,null,null,null,null,"Склад","Расходники","Шприц (20 мл.)",{"$f":"SUMIFS(Главная_tb[Расход],Главная_tb[Наименование],Медикаменты!$K257,Главная_tb[Место],Медикаменты!$I257,Главная_tb[Дата],\">=\"&$R$1,Главная_tb[Дата],\"<=\"&$R$2)","v":0},{"$f":"IF(Медикаменты!$L257=0,0,COUNTIFS($J$2:J257,Медикаменты!$J257,$L$2:L257,\">\"&0))","v":0},"шт."]
[null,null,null,null,null,null,null,null,"Склад","Расходники","Шприц (5 мл.)",{"$f":"SUMIFS(Главная_tb[Расход],Главная_tb[Наименование],Медикаменты!$K258,Главная_tb[Место],Медикаменты!$I258,Главная_tb[Дата],\">=\"&$R$1,Главная_tb[Дата],\"<=\"&$R$2)","v":200},{"$f":"IF(Медикаменты!$L258=0,0,COUNTIFS($J$2:J258,Медикаменты!$J258,$L$2:L258,\">\"&0))","v":20},"шт."]
[null,null,null,null,null,null,null,null,"Склад","Дезсредства","Экобак (1 л.)",{"$f":"SUMIFS(Главная_tb[Расход],Главная_tb[Наименование],Медикаменты!$K259,Главная_tb[Место],Медикаменты!$I259,Главная_tb[Дата],\">=\"&$R$1,Главная_tb[Дата],\"<=\"&$R$2)","v":1},{"$f":"IF(Медикаменты!$L259=0,0,COUNTIFS($J$2:J259,Медикаменты!$J259,$L$2:L259,\">\"&0))","v":8},"л."]
[null,null,null,null,null,null,null,null,"Склад","Дезсредства","Экобак (5 л.)",{"$f":"SUMIFS(Главная_tb[Расход],Главная_tb[Наименование],Медикаменты!$K260,Главная_tb[Место],Медикаменты!$I260,Главная_tb[Дата],\">=\"&$R$1,Главная_tb[Дата],\"<=\"&$R$2)","v":10},{"$f":"IF(Медикаменты!$L260=0,0,COUNTIFS($J$2:J260,Медикаменты!$J260,$L$2:L260,\">\"&0))","v":9},"л."]
[null,null,null,null,null,null,null,null,"Склад","Расходники","Электрод воротниковый средний №2",{"$f":"SUMIFS(Главная_tb[Расход],Главная_tb[Наименование],Медикаменты!$K261,Главная_tb[Место],Медикаменты!$I261,Главная_tb[Дата],\">=\"&$R$1,Главная_tb[Дата],\"<=\"&$R$2)","v":150},{"$f":"IF(Медикаменты!$L261=0,0,COUNTIFS($J$2:J261,Медикаменты!$J261,$L$2:L261,\">\"&0))","v":21},"шт."]
[null,null,null,null,null,null,null,null,"Склад","Расходники","Электрод эндауральный-эндоназальный малый",{"$f":"SUMIFS(Главная_tb[Расход],Главная_tb[Наименование],Медикаменты!$K262,Главная_tb[Место],Медикаменты!$I262,Главная_tb[Дата],\">=\"&$R$1,Главная_tb[Дата],\"<=\"&$R$2)","v":0},{"$f":"IF(Медикаменты!$L262=0,0,COUNTIFS($J$2:J262,Медикаменты!$J262,$L$2:L262,\">\"&0))","v":0},"шт."]
[null,null,null,null,null,null,null,null,"ДС","Медикаменты (ДС)","Энап (таб., 10 мг., №20)",{"$f":"SUMIFS(Главная_tb[Расход],Главная_tb[Наименование],Медикаменты!$K263,Главная_tb[Место],Медикаменты!$I263,Главная_tb[Дата],\">=\"&$R$1,Главная_tb[Дата],\"<=\"&$R$2)","v":0},{"$f":"IF(Медикаменты!$L263=0,0,COUNTIFS($J$2:J263,Медикаменты!$J263,$L$2:L263,\">\"&0))","v":0},"таб."]
[null,null,null,null,null,null,null,null,"Склад","Вакцина","ЭнцеВир Нео детский",{"$f":"SUMIFS(Главная_tb[Расход],Главная_tb[Наименование],Медикаменты!$K264,Главная_tb[Место],Медикаменты!$I264,Главная_tb[Дата],\">=\"&$R$1,Главная_tb[Дата],\"<=\"&$R$2)","v":0},{"$f":"IF(Медикаменты!$L264=0,0,COUNTIFS($J$2:J264,Медикаменты!$J264,$L$2:L264,\">\"&0))","v":0},"доз."]
[null,null,null,null,null,null,null,null,"Склад","Медикаменты","Эуфиллин (амп., 2,4%, 10 мл., №10)",{"$f":"SUMIFS(Главная_tb[Расход],Главная_tb[Наименование],Медикаменты!$K265,Главная_tb[Место],Медикаменты!$I265,Главная_tb[Дата],\">=\"&$R$1,Главная_tb[Дата],\"<=\"&$R$2)","v":0},{"$f":"IF(Медикаменты!$L265=0,0,COUNTIFS($J$2:J265,Медикаменты!$J265,$L$2:L265,\">\"&0))","v":0},"уп."]
[null,null,null,null,null,null,null,null,"Склад","Расходники","Салфетка марлевая стерильная (45х29 см.)",{"$f":"SUMIFS(Главная_tb[Расход],Главная_tb[Наименование],Медикаменты!$K266,Главная_tb[Место],Медикаменты!$I266,Главная_tb[Дата],\">=\"&$R$1,Главная_tb[Дата],\"<=\"&$R$2)","v":0},{"$f":"IF(Медикаменты!$L266=0,0,COUNTIFS($J$2:J266,Медикаменты!$J266,$L$2:L266,\">\"&0))","v":0},"уп."]
[null,null,null,null,null,null,null,null,"Склад","Расходники","Халат хирургический стерильный, одноразовый",{"$f":"SUMIFS(Главная_tb[Расход],Главная_tb[Наименование],Медикаменты!$K267,Главная_tb[Место],Медикаменты!$I267,Главная_tb[Дата],\">=\"&$R$1,Главная_tb[Дата],\"<=\"&$R$2)","v":0},{"$f":"IF(Медикаменты!$L267=0,0,COUNTIFS($J$2:J267,Медикаменты!$J267,$L$2:L267,\">\"&0))","v":0},"уп"]
[null,null,null,null,null,null,null,null,"Склад","Расходники","Напальчник медицинский (5 шт.)",{"$f":"SUMIFS(Главная_tb[Расход],Главная_tb[Наименование],Медикаменты!$K268,Главная_tb[Место],Медикаменты!$I268,Главная_tb[Дата],\">=\"&$R$1,Главная_tb[Дата],\"<=\"&$R$2)","v":0},{"$f":"IF(Медикаменты!$L268=0,0,COUNTIFS($J$2:J268,Медикаменты!$J268,$L$2:L268,\">\"&0))","v":0},"уп."]
[null,null,null,null,null,null,null,null,"Склад","Расходники","Губка гемостатическая коллагеновая (50х50 мм.)",{"$f":"SUMIFS(Главная_tb[Расход],Главная_tb[Наименование],Медикаменты!$K269,Главная_tb[Место],Медикаменты!$I269,Главная_tb[Дата],\">=\"&$R$1,Главная_tb[Дата],\"<=\"&$R$2)","v":0},{"$f":"IF(Медикаменты!$L269=0,0,COUNTIFS($J$2:J269,Медикаменты!$J269,$L$2:L269,\">\"&0))","v":0},"шт."]
[null,null,null,null,null,null,null,null,"Склад","Расходники","Материал упаковочный для стерилизации: пакеты самоклеящиеся \"СтериТ\" (150ммХ250мм)",{"$f":"SUMIFS(Главная_tb[Расход],Главная_tb[Наименование],Медикаменты!$K270,Главная_tb[Место],Медикаменты!$I270,Главная_tb[Дата],\">=\"&$R$1,Главная_tb[Дата],\"<=\"&$R$2)","v":0},{"$f":"IF(Медикаменты!$L270=0,0,COUNTIFS($J$2:J270,Медикаменты!$J270,$L$2:L270,\">\"&0))","v":0},"шт."]
[null,null,null,null,null,null,null,null,"Склад","Многоразовые расходники","Комплект \"Кассетница с пеналами-таблетница\"",{"$f":"SUMIFS(Главная_tb[Расход],Главная_tb[Наименование],Медикаменты!$K271,Главная_tb[Место],Медикаменты!$I271,Главная_tb[Дата],\">=\"&$R$1,Главная_tb[Дата],\"<=\"&$R$2)","v":0},{"$f":"IF(Медикаменты!$L271=0,0,COUNTIFS($J$2:J271,Медикаменты!$J271,$L$2:L271,\">\"&0))","v":0},"шт."]
[null,null,null,null,null,null,null,null,"Склад","Многоразовые расходники","Ножницы хирургические, тупоконечные (14,5 см.)",{"$f":"SUMIFS(Главная_tb[Расход],Главная_tb[Наименование],Медикаменты!$K272,Главная_tb[Место],Медикаменты!$I272,Главная_tb[Дата],\">=\"&$R$1,Главная_tb[Дата],\"<=\"&$R$2)","v":0},{"$f":"IF(Медикаменты!$L272=0,0,COUNTIFS($J$2:J272,Медикаменты!$J272,$L$2:L272,\">\"&0))","v":0},"шт."]
[null,null,null,null,null,null,null,null,"Склад","Многоразовые расходники","Ножницы остроконечные, изогнутые (16,0 см.)",{"$f":"SUMIFS(Главная_tb[Расход],Главная_tb[Наименование],Медикаменты!$K273,Главная_tb[Место],Медикаменты!$I273,Главная_tb[Дата],\">=\"&$R$1,Главная_tb[Дата],\"<=\"&$R$2)","v":0},{"$f":"IF(Медикаменты!$L273=0,0,COUNTIFS($J$2:J273,Медикаменты!$J273,$L$2:L273,\">\"&0))","v":0},"шт."]
[null,null,null,null,null,null,null,null,"Склад","Многоразовые расходники","Электрод взрослый грудной для ЭКГ (D-20мм.)",{"$f":"SUMIFS(Главная_tb[Расход],Главная_tb[Наименование],Медикаменты!$K274,Главная_tb[Место],Медикаменты!$I274,Главная_tb[Дата],\">=\"&$R$1,Главная_tb[Дата],\"<=\"&$R$2)","v":0},{"$f":"IF(Медикаменты!$L274=0,0,COUNTIFS($J$2:J274,Медикаменты!$J274,$L$2:L274,\">\"&0))","v":0},"набор"]
[null,null,null,null,null,null,null,null,"Склад","Многоразовые расходники","Термометр для холодильника",{"$f":"SUMIFS(Главная_tb[Расход],Главная_tb[Наименование],Медикаменты!$K275,Главная_tb[Место],Медикаменты!$I275,Главная_tb[Дата],\">=\"&$R$1,Главная_tb[Дата],\"<=\"&$R$2)","v":0},{"$f":"IF(Медикаменты!$L275=0,0,COUNTIFS($J$2:J275,Медикаменты!$J275,$L$2:L275,\">\"&0))","v":0},"шт."]
[null,null,null,null,null,null,null,null,"склад","Многоразовые расходники","Термоиндикатор ФС-3",{"$f":"SUMIFS(Главная_tb[Расход],Главная_tb[Наименование],Медикаменты!$K276,Главная_tb[Место],Медикаменты!$I276,Главная_tb[Дата],\">=\"&$R$1,Главная_tb[Дата],\"<=\"&$R$2)","v":0},{"$f":"IF(Медикаменты!$L276=0,0,COUNTIFS($J$2:J276,Медикаменты!$J276,$L$2:L276,\">\"&0))","v":0},"шт."]
[null,null,null,null,null,null,null,null,"Склад","Многоразовые расходники","Шприц многоразовый стеклянный (20 мл.)",{"$f":"SUMIFS(Главная_tb[Расход],Главная_tb[Наименование],Медикаменты!$K277,Главная_tb[Место],Медикаменты!$I277,Главная_tb[Дата],\">=\"&$R$1,Главная_tb[Дата],\"<=\"&$R$2)","v":0},{"$f":"IF(Медикаменты!$L277=0,0,COUNTIFS($J$2:J277,Медикаменты!$J277,$L$2:L277,\">\"&0))","v":0},"шт."]
[null,null,null,null,null,null,null,null,"Склад","Расходники","Шовный материал хирургический (Этикон Эл-Эл-Си)",{"$f":"SUMIFS(Главная_tb[Расход],Главная_tb[Наименование],Медикаменты!$K278,Главная_tb[Место],Медикаменты!$I278,Главная_tb[Дата],\">=\"&$R$1,Главная_tb[Дата],\"<=\"&$R$2)","v":0},{"$f":"IF(Медикаменты!$L278=0,0,COUNTIFS($J$2:J278,Медикаменты!$J278,$L$2:L278,\">\"&0))","v":0},"уп"]
[null,null,null,null,null,null,null,null,"Склад","Расходники","Набор оториноларинголога одноразовый, стерильный",{"$f":"SUMIFS(Главная_tb[Расход],Главная_tb[Наименование],Медикаменты!$K279,Главная_tb[Место],Медикаменты!$I279,Главная_tb[Дата],\">=\"&$R$1,Главная_tb[Дата],\"<=\"&$R$2)","v":0},{"$f":"IF(Медикаменты!$L279=0,0,COUNTIFS($J$2:J279,Медикаменты!$J279,$L$2:L279,\">\"&0))","v":0},"шт."]
[null,null,null,null,null,null,null,null,"Склад","Расходники","Карандаш по стеклу (50 шт. в уп.)",{"$f":"SUMIFS(Главная_tb[Расход],Главная_tb[Наименование],Медикаменты!$K280,Главная_tb[Место],Медикаменты!$I280,Главная_tb[Дата],\">=\"&$R$1,Главная_tb[Дата],\"<=\"&$R$2)","v":0},{"$f":"IF(Медикаменты!$L280=0,0,COUNTIFS($J$2:J280,Медикаменты!$J280,$L$2:L280,\">\"&0))","v":0},"уп."]
[null,null,null,null,null,null,null,null,"Склад","Расходники","Пакет для утилизации медицинских отходов (кл.Б, 330х300мм.)",{"$f":"SUMIFS(Главная_tb[Расход],Главная_tb[Наименование],Медикаменты!$K281,Главная_tb[Место],Медикаменты!$I281,Главная_tb[Дата],\">=\"&$R$1,Главная_tb[Дата],\"<=\"&$R$2)","v":0},{"$f":"IF(Медикаменты!$L281=0,0,COUNTIFS($J$2:J281,Медикаменты!$J281,$L$2:L281,\">\"&0))","v":0},"шт."]
[null,null,null,null,null,null,null,null,"Склад","Многоразовые расходники","Контейнер для сбора м/отх. Кл. Б (50 л.)",{"$f":"SUMIFS(Главная_tb[Расход],Главная_tb[Наименование],Медикаменты!$K282,Главная_tb[Место],Медикаменты!$I282,Главная_tb[Дата],\">=\"&$R$1,Главная_tb[Дата],\"<=\"&$R$2)","v":0},{"$f":"IF(Медикаменты!$L282=0,0,COUNTIFS($J$2:J282,Медикаменты!$J282,$L$2:L282,\">\"&0))","v":0},"шт."]
[null,null,null,null,null,null,null,null,"Склад","Многоразовые расходники","Контейнер для предварительной дезинфекции и стерилизации (7,5 л.)",{"$f":"SUMIFS(Главная_tb[Расход],Главная_tb[Наименование],Медикаменты!$K283,Главная_tb[Место],Медикаменты!$I283,Главная_tb[Дата],\">=\"&$R$1,Главная_tb[Дата],\"<=\"&$R$2)","v":0},{"$f":"IF(Медикаменты!$L283=0,0,COUNTIFS($J$2:J283,Медикаменты!$J283,$L$2:L283,\">\"&0))","v":0},"шт."]
[null,null,null,null,null,null,null,null,"Склад","Многоразовые расходники","Контейнер для предварительной дезинфекции и стерилизации (4,5л.)",{"$f":"SUMIFS(Главная_tb[Расход],Главная_tb[Наименование],Медикаменты!$K284,Главная_tb[Место],Медикаменты!$I284,Главная_tb[Дата],\">=\"&$R$1,Главная_tb[Дата],\"<=\"&$R$2)","v":0},{"$f":"IF(Медикаменты!$L284=0,0,COUNTIFS($J$2:J284,Медикаменты!$J284,$L$2:L284,\">\"&0))","v":0},"шт."]
[null,null,null,null,null,null,null,null,"Склад","Многоразовые расходники","Контейнер для предварительной дезинфекции и стерилизации (1,3л.)",{"$f":"SUMIFS(Главная_tb[Расход],Главная_tb[Наименование],Медикаменты!$K285,Главная_tb[Место],Медикаменты!$I285,Главная_tb[Дата],\">=\"&$R$1,Главная_tb[Дата],\"<=\"&$R$2)","v":0},{"$f":"IF(Медикаменты!$L285=0,0,COUNTIFS($J$2:J285,Медикаменты!$J285,$L$2:L285,\">\"&0))","v":0},"шт."]
[null,null,null,null,null,null,null,null,"Склад","Растворы","Эуфиллин (р-р 1%-100 мл.)",{"$f":"SUMIFS(Главная_tb[Расход],Главная_tb[Наименование],Медикаменты!$K286,Главная_tb[Место],Медикаменты!$I286,Главная_tb[Дата],\">=\"&$R$1,Главная_tb[Дата],\"<=\"&$R$2)","v":0},{"$f":"IF(Медикаменты!$L286=0,0,COUNTIFS($J$2:J286,Медикаменты!$J286,$L$2:L286,\">\"&0))","v":0},"фл."]
[null,null,null,null,null,null,null,null,"Склад","Растворы","Папаверина г/х (р-р 0,1%-100 мл.)",{"$f":"SUMIFS(Главная_tb[Расход],Главная_tb[Наименование],Медикаменты!$K287,Главная_tb[Место],Медикаменты!$I287,Главная_tb[Дата],\">=\"&$R$1,Главная_tb[Дата],\"<=\"&$R$2)","v":0},{"$f":"IF(Медикаменты!$L287=0,0,COUNTIFS($J$2:J287,Медикаменты!$J287,$L$2:L287,\">\"&0))","v":0},"фл."]

{"sheet":"Накладная","index":2,"n_rows":32,"n_cols":14,"rows_kept":32,"cut":false,"hidden":false,"merged":[[31,4,31,13],[27,4,27,13],[29,4,29,13],[30,4,30,13],[26,4,26,13],[28,4,28,13]]}
[]
[null,null,null,null,"АДС-М","АКДС","Би Вак полио","Биолек-туберкулин","Бубо-кок","БЦЖ","БЦЖ-М","Гепатит В","Диаскинтест","Краснушная"]
[null,null,null,null,"Паротитно-корьевая","Пентаксим","Полимилекс","Превенар-13","Совигрипп"]
[]
[]
[]
[]
[]
[]
[]
[null,null,null,null,1,2,3,4,5,6,7,8,9,10]
[]
[null,null,null,null,{"$f":"IFERROR(INDEX(Медикаменты!$K$2:$K$287,MATCH(Медикаменты!$Q$1&COLUMN(A2:J2),Медикаменты!$J$2:$J$287&Медикаменты!$M$2:$M$287,),1),\"\")","v":"АДС-М"},{"$f":"IFERROR(INDEX(Медикаменты!$K$2:$K$287,MATCH(Медикаменты!$Q$1&COLUMN(B2:K2),Медикаменты!$J$2:$J$287&Медикаменты!$M$2:$M$287,),1),\"\")","v":"АКДС"},{"$f":"IFERROR(INDEX(Медикаменты!$K$2:$K$287,MATCH(Медикаменты!$Q$1&COLUMN(D2:L2),Медикаменты!$J$2:$J$287&Медикаменты!$M$2:$M$287,),1),\"\")","v":"Биолек-туберкулин"},{"$f":"IFERROR(INDEX(Медикаменты!$K$2:$K$287,MATCH(Медикаменты!$Q$1&COLUMN(D2:M2),Медикаменты!$J$2:$J$287&Медикаменты!$M$2:$M$287,),1),\"\")","v":"Биолек-туберкулин"},{"$f":"IFERROR(INDEX(Медикаменты!$K$2:$K$287,MATCH(Медикаменты!$Q$1&COLUMN(E2:N2),Медикаменты!$J$2:$J$287&Медикаменты!$M$2:$M$287,),1),\"\")","v":"Бубо-кок"},{"$f":"IFERROR(INDEX(Медикаменты!$K$2:$K$287,MATCH(Медикаменты!$Q$1&COLUMN(F2:O2),Медикаменты!$J$2:$J$287&Медикаменты!$M$2:$M$287,),1),\"\")","v":"БЦЖ"},{"$f":"IFERROR(INDEX(Медикаменты!$K$2:$K$287,MATCH(Медикаменты!$Q$1&COLUMN(G2:P2),Медикаменты!$J$2:$J$287&Медикаменты!$M$2:$M$287,),1),\"\")","v":"БЦЖ-М"},{"$f":"IFERROR(INDEX(Медикаменты!$K$2:$K$287,MATCH(Медикаменты!$Q$1&COLUMN(H2:Q2),Медикаменты!$J$2:$J$287&Медикаменты!$M$2:$M$287,),1),\"\")","v":"Гепатит В"},{"$f":"IFERROR(INDEX(Медикаменты!$K$2:$K$287,MATCH(Медикаменты!$Q$1&COLUMN(I2:R2),Медикаменты!$J$2:$J$287&Медикаменты!$M$2:$M$287,),1),\"\")","v":"Диаскинтест"},{"$f":"IFERROR(INDEX(Медикаменты!$K$2:$K$287,MATCH(Медикаменты!$Q$1&COLUMN(J2:S2),Медикаменты!$J$2:$J$287&Медикаменты!$M$2:$M$287,),1),\"\")","v":"Краснушная"}]
[]
[]
[]
[]
[]
[null,null,null,null,{"$f":"IFERROR(INDEX(Медикаменты!$K$2:$K$287,MATCH(Медикаменты!$Q$1&COLUMN(K2:T2),Медикаменты!$J$2:$J$287&Медикаменты!$M$2:$M$287,),1),\"\")","v":"Паротитно-корьевая"},{"$f":"IFERROR(INDEX(Медикаменты!$K$2:$K$287,MATCH(Медикаменты!$Q$1&COLUMN(L2:U2),Медикаменты!$J$2:$J$287&Медикаменты!$M$2:$M$287,),1),\"\")","v":"Пентаксим"},{"$f":"IFERROR(INDEX(Медикаменты!$K$2:$K$287,MATCH(Медикаменты!$Q$1&COLUMN(M2:V2),Медикаменты!$J$2:$J$287&Медикаменты!$M$2:$M$287,),1),\"\")","v":"Полимилекс"},{"$f":"IFERROR(INDEX(Медикаменты!$K$2:$K$287,MATCH(Медикаменты!$Q$1&COLUMN(N2:W2),Медикаменты!$J$2:$J$287&Медикаменты!$M$2:$M$287,),1),\"\")","v":"Превенар-13"},{"$f":"IFERROR(INDEX(Медикаменты!$K$2:$K$287,MATCH(Медикаменты!$Q$1&COLUMN(O2:X2),Медикаменты!$J$2:$J$287&Медикаменты!$M$2:$M$287,),1),\"\")","v":"Совигрипп"},{"$f":"IFERROR(INDEX(Медикаменты!$K$2:$K$287,MATCH(Медикаменты!$Q$1&COLUMN(P2:Y2),Медикаменты!$J$2:$J$287&Медикаменты!$M$2:$M$287,),1),\"\")","v":""},{"$f":"IFERROR(INDEX(Медикаменты!$K$2:$K$287,MATCH(Медикаменты!$Q$1&COLUMN(Q2:Z2),Медикаменты!$J$2:$J$287&Медикаменты!$M$2:$M$287,),1),\"\")","v":""},{"$f":"IFERROR(INDEX(Медикаменты!$K$2:$K$287,MATCH(Медикаменты!$Q$1&COLUMN(R2:AA2),Медикаменты!$J$2:$J$287&Медикаменты!$M$2:$M$287,),1),\"\")","v":""},{"$f":"IFERROR(INDEX(Медикаменты!$K$2:$K$287,MATCH(Медикаменты!$Q$1&COLUMN(S2:AB2),Медикаменты!$J$2:$J$287&Медикаменты!$M$2:$M$287,),1),\"\")","v":""},{"$f":"IFERROR(INDEX(Медикаменты!$K$2:$K$287,MATCH(Медикаменты!$Q$1&COLUMN(T2:AC2),Медикаменты!$J$2:$J$287&Медикаменты!$M$2:$M$287,),1),\"\")","v":""}]
[]
[]
[]
[]
[]
[null,null,null,null,{"$f":"IFERROR(INDEX(Медикаменты!$K$2:$K$287,MATCH(Медикаменты!$Q$1&COLUMN(U2:AD2),Медикаменты!$J$2:$J$287&Медикаменты!$M$2:$M$287,),1),\"\")","v":""},{"$f":"IFERROR(INDEX(Медикаменты!$K$2:$K$287,MATCH(Медикаменты!$Q$1&COLUMN(V2:AE2),Медикаменты!$J$2:$J$287&Медикаменты!$M$2:$M$287,),1),\"\")","v":""},{"$f":"IFERROR(INDEX(Медикаменты!$K$2:$K$287,MATCH(Медикаменты!$Q$1&COLUMN(W2:AF2),Медикаменты!$J$2:$J$287&Медикаменты!$M$2:$M$287,),1),\"\")","v":""},{"$f":"IFERROR(INDEX(Медикаменты!$K$2:$K$287,MATCH(Медикаменты!$Q$1&COLUMN(X2:AG2),Медикаменты!$J$2:$J$287&Медикаменты!$M$2:$M$287,),1),\"\")","v":""},{"$f":"IFERROR(INDEX(Медикаменты!$K$2:$K$287,MATCH(Медикаменты!$Q$1&COLUMN(Y2:AH2),Медикаменты!$J$2:$J$287&Медикаменты!$M$2:$M$287,),1),\"\")","v":""},{"$f":"IFERROR(INDEX(Медикаменты!$K$2:$K$287,MATCH(Медикаменты!$Q$1&COLUMN(Z2:AI2),Медикаменты!$J$2:$J$287&Медикаменты!$M$2:$M$287,),1),\"\")","v":""},{"$f":"IFERROR(INDEX(Медикаменты!$K$2:$K$287,MATCH(Медикаменты!$Q$1&COLUMN(AA2:AJ2),Медикаменты!$J$2:$J$287&Медикаменты!$M$2:$M$287,),1),\"\")","v":""},{"$f":"IFERROR(INDEX(Медикаменты!$K$2:$K$287,MATCH(Медикаменты!$Q$1&COLUMN(AB2:AK2),Медикаменты!$J$2:$J$287&Медикаменты!$M$2:$M$287,),1),\"\")","v":""},{"$f":"IFERROR(INDEX(Медикаменты!$K$2:$K$287,MATCH(Медикаменты!$Q$1&COLUMN(AC2:AL2),Медикаменты!$J$2:$J$287&Медикаменты!$M$2:$M$287,),1),\"\")","v":""},{"$f":"IFERROR(INDEX(Медикаменты!$K$2:$K$287,MATCH(Медикаменты!$Q$1&COLUMN(AD2:AM2),Медикаменты!$J$2:$J$287&Медикаменты!$M$2:$M$287,),1),\"\")","v":""}]
[]
[]
[]
[]
[null,null,null,null,"На листе \"Накладная\" есть три выделенные строки по 10 ячеек. В эти ячейки переносятся наименования из таблицы \"Главная_tb\", которые соответствуют периоду, указанному на листе \"Медикаменты\" в ячейках R1  и R2, и группе, которая указана на листе \"Медикаменты\" в ячейке Q1, и в случае, если сумма значений найденных наименований по столбцу Расход в Главной таблице больше нуля, то такое наименование попадает на лист \"накладная\". И так отбираются все наименования и записываются именно в те ячейки, которые веделены на листе \"Накладная\""]
[null,null,null,null,"На листе \"Расчет\" есть форма, которая меняет данные и показывает правильный результат на листе \"накладная\""]
[null,null,null,null,"Наверное, я со временем справлюсь с отбором нужных наименований, но я упорно не понимаю как их запихать именно в нужные ячейки…"]